Workbook

Sheet Übern.Jahr
B1: Übernachtungen in den Berichtsgemeinden im Jahre
A3: GKZ | B3: Region | C3: 1996 | D3: 1997 | E3: 1998 | F3: 1999 | G3: 2000 | H3: 2001 | I3: 2002 | J3: 2003 | K3: 2004 | L3: 2005 | M3: 2006 | N3: 2007 | O3: 2008 | P3: 2009 | Q3: 2010 | R3: 2011 | S3: 2012 | T3: 2013 | U3: 2014 | V3: 2015 | W3: 2016 | X3: 2017 | Y3: 2018 | Z3: 2019 | AA3: 2020 | AB3: 2021 | AC3: 2022 | AD3: 2023 | AE3: 2024
B4: Gemeinde
B6: Neusiedler See | C6: =SUM(Übern.Mon!C6:N6) -> 1,250,623 | D6: =SUM(Übern.Mon!O6:Z6) -> 1,194,908 | E6: =SUM(Übern.Mon!AA6:AL6) -> 1,304,388 | F6: =SUM(Übern.Mon!AM6:AX6) -> 1,343,803 | G6: =SUM(Übern.Mon!AY6:BJ6) -> 1,379,415 | H6: =SUM(Übern.Mon!BK6:BV6) -> 1,407,792 | I6: =SUM(Übern.Mon!BW6:CH6) -> 1,413,644 | J6: =SUM(Übern.Mon!CI6:CT6) -> 1,381,385 | K6: =SUM(Übern.Mon!CU6:DF6) -> 1,279,140 | L6: =SUM(Übern.Mon!DG6:DR6) -> 1,283,696 | M6: =SUM(Übern.Mon!DS6:ED6) -> 1,224,425 | N6: =SUM(Übern.Mon!EE6:EP6) -> 1,273,560 | O6: =SUM(Übern.Mon!EQ6:FB6) -> 1,308,338 | P6: =SUM(Übern.Mon!FC6:FN6) -> 1,369,395 | Q6: =SUM(Übern.Mon!FO6:FZ6) -> 1,390,442 | R6: =SUM(Übern.Mon!GA6:GL6) -> 1,439,403 | S6: =SUM(Übern.Mon!GM6:GX6) -> 1,456,027 | T6: =SUM(Übern.Mon!GY6:HJ6) -> 1,430,001 | U6: =SUM(Übern.Mon!HK6:HV6) -> 1,430,328 | V6: =SUM(Übern.Mon!HW6:IH6) -> 1,435,958 | W6: =SUM(Übern.Mon!II6:IT6) -> 1,544,673 | X6: =SUM(Übern.Mon!IU6:JF6) -> 1,577,114 | Y6: =SUM(Übern.Mon!JG6:JR6) -> 1,558,115 | Z6: =SUM(Übern.Mon!JS6:KD6) -> 1,629,118 | AA6: =SUM(Übern.Mon!KE6:KP6) -> 1,285,401 | AB6: =SUM(Übern.Mon!KQ6:LB6) -> 1,393,976 | AC6: =SUM(Übern.Mon!LC6:LN6) -> 1,547,283 | AD6: =SUM(AD7:AD42) -> 1,724,664 | AE6: =SUM(AE7:AE42) -> 1,796,629
A7: 10701 | B7: Andau (ab 5/99) | C7: =SUM(Übern.Mon!C7:N7) -> 0 | D7: =SUM(Übern.Mon!O7:Z7) -> 0 | E7: =SUM(Übern.Mon!AA7:AL7) -> 0 | F7: =SUM(Übern.Mon!AM7:AX7) -> 11,426 | G7: =SUM(Übern.Mon!AY7:BJ7) -> 10,171 | H7: =SUM(Übern.Mon!BK7:BV7) -> 9,050 | I7: =SUM(Übern.Mon!BW7:CH7) -> 8,462 | J7: =SUM(Übern.Mon!CI7:CT7) -> 7,678 | K7: =SUM(Übern.Mon!CU7:DF7) -> 7,039 | L7: =SUM(Übern.Mon!DG7:DR7) -> 7,495 | M7: =SUM(Übern.Mon!DS7:ED7) -> 7,074 | N7: =SUM(Übern.Mon!EE7:EP7) -> 7,087 | O7: =SUM(Übern.Mon!EQ7:FB7) -> 6,295 | P7: =SUM(Übern.Mon!FC7:FN7) -> 6,398 | Q7: =SUM(Übern.Mon!FO7:FZ7) -> 4,162 | R7: =SUM(Übern.Mon!GA7:GL7) -> 7,465 | S7: =SUM(Übern.Mon!GM7:GX7) -> 6,403 | T7: =SUM(Übern.Mon!GY7:HJ7) -> 5,217 | U7: =SUM(Übern.Mon!HK7:HV7) -> 5,271 | V7: =SUM(Übern.Mon!HW7:IH7) -> 4,871 | W7: =SUM(Übern.Mon!II7:IT7) -> 6,996 | X7: =SUM(Übern.Mon!IU7:JF7) -> 7,255 | Y7: =SUM(Übern.Mon!JG7:JR7) -> 8,946 | Z7: =SUM(Übern.Mon!JS7:KD7) -> 10,739 | AA7: =SUM(Übern.Mon!KE7:KP7) -> 12,010 | AB7: =SUM(Übern.Mon!KQ7:LB7) -> 13,456 | AC7: =SUM(Übern.Mon!LC7:LN7) -> 43,091 | AD7: =SUM(Übern.Mon!LO7:LZ7) -> 63,350 | AE7: =SUM(Übern.Mon!MA7:ML7) -> 67,009
A8: 10702 | B8: Apetlon | C8: =SUM(Übern.Mon!C8:N8) -> 22,378 | D8: =SUM(Übern.Mon!O8:Z8) -> 20,581 | E8: =SUM(Übern.Mon!AA8:AL8) -> 20,192 | F8: =SUM(Übern.Mon!AM8:AX8) -> 21,264 | G8: =SUM(Übern.Mon!AY8:BJ8) -> 20,184 | H8: =SUM(Übern.Mon!BK8:BV8) -> 20,170 | I8: =SUM(Übern.Mon!BW8:CH8) -> 20,497 | J8: =SUM(Übern.Mon!CI8:CT8) -> 20,989 | K8: =SUM(Übern.Mon!CU8:DF8) -> 20,744 | L8: =SUM(Übern.Mon!DG8:DR8) -> 18,260 | M8: =SUM(Übern.Mon!DS8:ED8) -> 15,743 | N8: =SUM(Übern.Mon!EE8:EP8) -> 16,956 | O8: =SUM(Übern.Mon!EQ8:FB8) -> 17,149 | P8: =SUM(Übern.Mon!FC8:FN8) -> 20,524 | Q8: =SUM(Übern.Mon!FO8:FZ8) -> 19,627 | R8: =SUM(Übern.Mon!GA8:GL8) -> 17,991 | S8: =SUM(Übern.Mon!GM8:GX8) -> 16,949 | T8: =SUM(Übern.Mon!GY8:HJ8) -> 17,782 | U8: =SUM(Übern.Mon!HK8:HV8) -> 17,504 | V8: =SUM(Übern.Mon!HW8:IH8) -> 16,302 | W8: =SUM(Übern.Mon!II8:IT8) -> 16,553 | X8: =SUM(Übern.Mon!IU8:JF8) -> 18,466 | Y8: =SUM(Übern.Mon!JG8:JR8) -> 16,476 | Z8: =SUM(Übern.Mon!JS8:KD8) -> 17,849 | AA8: =SUM(Übern.Mon!KE8:KP8) -> 17,089 | AB8: =SUM(Übern.Mon!KQ8:LB8) -> 16,870 | AC8: =SUM(Übern.Mon!LC8:LN8) -> 15,990 | AD8: =SUM(Übern.Mon!LO8:LZ8) -> 13,594 | AE8: =SUM(Übern.Mon!MA8:ML8) -> 12,894
A9: 10301 | B9: Breitenbrunn | C9: =SUM(Übern.Mon!C9:N9) -> 19,446 | D9: =SUM(Übern.Mon!O9:Z9) -> 16,507 | E9: =SUM(Übern.Mon!AA9:AL9) -> 18,423 | F9: =SUM(Übern.Mon!AM9:AX9) -> 18,778 | G9: =SUM(Übern.Mon!AY9:BJ9) -> 19,333 | H9: =SUM(Übern.Mon!BK9:BV9) -> 16,727 | I9: =SUM(Übern.Mon!BW9:CH9) -> 19,881 | J9: =SUM(Übern.Mon!CI9:CT9) -> 19,380 | K9: =SUM(Übern.Mon!CU9:DF9) -> 17,924 | L9: =SUM(Übern.Mon!DG9:DR9) -> 17,334 | M9: =SUM(Übern.Mon!DS9:ED9) -> 17,149 | N9: =SUM(Übern.Mon!EE9:EP9) -> 17,702 | O9: =SUM(Übern.Mon!EQ9:FB9) -> 16,862 | P9: =SUM(Übern.Mon!FC9:FN9) -> 16,610 | Q9: =SUM(Übern.Mon!FO9:FZ9) -> 15,776 | R9: =SUM(Übern.Mon!GA9:GL9) -> 16,610 | S9: =SUM(Übern.Mon!GM9:GX9) -> 17,312 | T9: =SUM(Übern.Mon!GY9:HJ9) -> 15,876 | U9: =SUM(Übern.Mon!HK9:HV9) -> 13,740 | V9: =SUM(Übern.Mon!HW9:IH9) -> 13,006 | W9: =SUM(Übern.Mon!II9:IT9) -> 13,319 | X9: =SUM(Übern.Mon!IU9:JF9) -> 15,249 | Y9: =SUM(Übern.Mon!JG9:JR9) -> 12,545 | Z9: =SUM(Übern.Mon!JS9:KD9) -> 16,416 | AA9: =SUM(Übern.Mon!KE9:KP9) -> 17,405 | AB9: =SUM(Übern.Mon!KQ9:LB9) -> 17,024 | AC9: =SUM(Übern.Mon!LC9:LN9) -> 16,026 | AD9: =SUM(Übern.Mon!LO9:LZ9) -> 13,725 | AE9: =SUM(Übern.Mon!MA9:ML9) -> 14,280
A10: 10703 | B10: Bruckneudorf | C10: =SUM(Übern.Mon!C10:N10) -> 10,572 | D10: =SUM(Übern.Mon!O10:Z10) -> 10,312 | E10: =SUM(Übern.Mon!AA10:AL10) -> 8,518 | F10: =SUM(Übern.Mon!AM10:AX10) -> 9,261 | G10: =SUM(Übern.Mon!AY10:BJ10) -> 8,262 | H10: =SUM(Übern.Mon!BK10:BV10) -> 7,296 | I10: =SUM(Übern.Mon!BW10:CH10) -> 6,644 | J10: =SUM(Übern.Mon!CI10:CT10) -> 5,769 | K10: =SUM(Übern.Mon!CU10:DF10) -> 5,290 | L10: =SUM(Übern.Mon!DG10:DR10) -> 5,476 | M10: =SUM(Übern.Mon!DS10:ED10) -> 5,557 | N10: =SUM(Übern.Mon!EE10:EP10) -> 5,259 | O10: =SUM(Übern.Mon!EQ10:FB10) -> 3,509 | P10: =SUM(Übern.Mon!FC10:FN10) -> 2,756 | Q10: =SUM(Übern.Mon!FO10:FZ10) -> 5,431 | R10: =SUM(Übern.Mon!GA10:GL10) -> 6,692 | S10: =SUM(Übern.Mon!GM10:GX10) -> 6,221 | T10: =SUM(Übern.Mon!GY10:HJ10) -> 3,455 | U10: =SUM(Übern.Mon!HK10:HV10) -> 3,792 | V10: =SUM(Übern.Mon!HW10:IH10) -> 4,054 | W10: =SUM(Übern.Mon!II10:IT10) -> 2,742 | X10: =SUM(Übern.Mon!IU10:JF10) -> 5,064 | Y10: =SUM(Übern.Mon!JG10:JR10) -> 6,681 | Z10: =SUM(Übern.Mon!JS10:KD10) -> 7,509 | AA10: =SUM(Übern.Mon!KE10:KP10) -> 3,637 | AB10: =SUM(Übern.Mon!KQ10:LB10) -> 4,809 | AC10: =SUM(Übern.Mon!LC10:LN10) -> 4,650 | AD10: =SUM(Übern.Mon!LO10:LZ10) -> 4,192 | AE10: =SUM(Übern.Mon!MA10:ML10) -> 6,460
A11: 10302 | B11: Donnerskirchen | C11: =SUM(Übern.Mon!C11:N11) -> 11,889 | D11: =SUM(Übern.Mon!O11:Z11) -> 9,408 | E11: =SUM(Übern.Mon!AA11:AL11) -> 9,933 | F11: =SUM(Übern.Mon!AM11:AX11) -> 9,553 | G11: =SUM(Übern.Mon!AY11:BJ11) -> 9,480 | H11: =SUM(Übern.Mon!BK11:BV11) -> 8,462 | I11: =SUM(Übern.Mon!BW11:CH11) -> 8,530 | J11: =SUM(Übern.Mon!CI11:CT11) -> 9,406 | K11: =SUM(Übern.Mon!CU11:DF11) -> 10,297 | L11: =SUM(Übern.Mon!DG11:DR11) -> 14,307 | M11: =SUM(Übern.Mon!DS11:ED11) -> 13,549 | N11: =SUM(Übern.Mon!EE11:EP11) -> 13,493 | O11: =SUM(Übern.Mon!EQ11:FB11) -> 20,797 | P11: =SUM(Übern.Mon!FC11:FN11) -> 20,379 | Q11: =SUM(Übern.Mon!FO11:FZ11) -> 15,545 | R11: =SUM(Übern.Mon!GA11:GL11) -> 10,699 | S11: =SUM(Übern.Mon!GM11:GX11) -> 10,184 | T11: =SUM(Übern.Mon!GY11:HJ11) -> 13,303 | U11: =SUM(Übern.Mon!HK11:HV11) -> 12,924 | V11: =SUM(Übern.Mon!HW11:IH11) -> 9,953 | W11: =SUM(Übern.Mon!II11:IT11) -> 8,954 | X11: =SUM(Übern.Mon!IU11:JF11) -> 9,727 | Y11: =SUM(Übern.Mon!JG11:JR11) -> 10,495 | Z11: =SUM(Übern.Mon!JS11:KD11) -> 13,422 | AA11: =SUM(Übern.Mon!KE11:KP11) -> 9,676 | AB11: =SUM(Übern.Mon!KQ11:LB11) -> 10,932 | AC11: =SUM(Übern.Mon!LC11:LN11) -> 10,952 | AD11: =SUM(Übern.Mon!LO11:LZ11) -> 11,229 | AE11: =SUM(Übern.Mon!MA11:ML11) -> 12,346
A12: 10101 | B12: Eisenstadt | C12: =SUM(Übern.Mon!C12:N12) -> 32,668 | D12: =SUM(Übern.Mon!O12:Z12) -> 35,412 | E12: =SUM(Übern.Mon!AA12:AL12) -> 42,572 | F12: =SUM(Übern.Mon!AM12:AX12) -> 45,041 | G12: =SUM(Übern.Mon!AY12:BJ12) -> 45,927 | H12: =SUM(Übern.Mon!BK12:BV12) -> 50,861 | I12: =SUM(Übern.Mon!BW12:CH12) -> 47,342 | J12: =SUM(Übern.Mon!CI12:CT12) -> 45,899 | K12: =SUM(Übern.Mon!CU12:DF12) -> 42,108 | L12: =SUM(Übern.Mon!DG12:DR12) -> 49,414 | M12: =SUM(Übern.Mon!DS12:ED12) -> 52,568 | N12: =SUM(Übern.Mon!EE12:EP12) -> 59,996 | O12: =SUM(Übern.Mon!EQ12:FB12) -> 56,028 | P12: =SUM(Übern.Mon!FC12:FN12) -> 61,755 | Q12: =SUM(Übern.Mon!FO12:FZ12) -> 59,913 | R12: =SUM(Übern.Mon!GA12:GL12) -> 59,445 | S12: =SUM(Übern.Mon!GM12:GX12) -> 51,845 | T12: =SUM(Übern.Mon!GY12:HJ12) -> 50,536 | U12: =SUM(Übern.Mon!HK12:HV12) -> 59,148 | V12: =SUM(Übern.Mon!HW12:IH12) -> 55,681 | W12: =SUM(Übern.Mon!II12:IT12) -> 52,795 | X12: =SUM(Übern.Mon!IU12:JF12) -> 54,640 | Y12: =SUM(Übern.Mon!JG12:JR12) -> 55,932 | Z12: =SUM(Übern.Mon!JS12:KD12) -> 62,879 | AA12: =SUM(Übern.Mon!KE12:KP12) -> 23,106 | AB12: =SUM(Übern.Mon!KQ12:LB12) -> 32,058 | AC12: =SUM(Übern.Mon!LC12:LN12) -> 35,786 | AD12: =SUM(Übern.Mon!LO12:LZ12) -> 56,805 | AE12: =SUM(Übern.Mon!MA12:ML12) -> 62,713
A13: 10705 | B13: Frauenkirchen | C13: =SUM(Übern.Mon!C13:N13) -> 3,501 | D13: =SUM(Übern.Mon!O13:Z13) -> 3,721 | E13: =SUM(Übern.Mon!AA13:AL13) -> 2,932 | F13: =SUM(Übern.Mon!AM13:AX13) -> 3,205 | G13: =SUM(Übern.Mon!AY13:BJ13) -> 2,985 | H13: =SUM(Übern.Mon!BK13:BV13) -> 2,154 | I13: =SUM(Übern.Mon!BW13:CH13) -> 1,599 | J13: =SUM(Übern.Mon!CI13:CT13) -> 1,561 | K13: =SUM(Übern.Mon!CU13:DF13) -> 1,978 | L13: =SUM(Übern.Mon!DG13:DR13) -> 2,400 | M13: =SUM(Übern.Mon!DS13:ED13) -> 3,099 | N13: =SUM(Übern.Mon!EE13:EP13) -> 2,528 | O13: =SUM(Übern.Mon!EQ13:FB13) -> 2,572 | P13: =SUM(Übern.Mon!FC13:FN13) -> 9,671 | Q13: =SUM(Übern.Mon!FO13:FZ13) -> 66,179 | R13: =SUM(Übern.Mon!GA13:GL13) -> 72,616 | S13: =SUM(Übern.Mon!GM13:GX13) -> 76,590 | T13: =SUM(Übern.Mon!GY13:HJ13) -> 79,276 | U13: =SUM(Übern.Mon!HK13:HV13) -> 84,528 | V13: =SUM(Übern.Mon!HW13:IH13) -> 105,991 | W13: =SUM(Übern.Mon!II13:IT13) -> 117,777 | X13: =SUM(Übern.Mon!IU13:JF13) -> 119,696 | Y13: =SUM(Übern.Mon!JG13:JR13) -> 120,863 | Z13: =SUM(Übern.Mon!JS13:KD13) -> 127,115 | AA13: =SUM(Übern.Mon!KE13:KP13) -> 84,981 | AB13: =SUM(Übern.Mon!KQ13:LB13) -> 82,239 | AC13: =SUM(Übern.Mon!LC13:LN13) -> 125,028 | AD13: =SUM(Übern.Mon!LO13:LZ13) -> 123,295 | AE13: =SUM(Übern.Mon!MA13:ML13) -> 125,363
A14: 10707 | B14: Gols | C14: =SUM(Übern.Mon!C14:N14) -> 9,521 | D14: =SUM(Übern.Mon!O14:Z14) -> 8,868 | E14: =SUM(Übern.Mon!AA14:AL14) -> 9,775 | F14: =SUM(Übern.Mon!AM14:AX14) -> 9,134 | G14: =SUM(Übern.Mon!AY14:BJ14) -> 11,735 | H14: =SUM(Übern.Mon!BK14:BV14) -> 14,731 | I14: =SUM(Übern.Mon!BW14:CH14) -> 16,106 | J14: =SUM(Übern.Mon!CI14:CT14) -> 14,270 | K14: =SUM(Übern.Mon!CU14:DF14) -> 15,587 | L14: =SUM(Übern.Mon!DG14:DR14) -> 15,967 | M14: =SUM(Übern.Mon!DS14:ED14) -> 17,905 | N14: =SUM(Übern.Mon!EE14:EP14) -> 16,640 | O14: =SUM(Übern.Mon!EQ14:FB14) -> 19,990 | P14: =SUM(Übern.Mon!FC14:FN14) -> 19,176 | Q14: =SUM(Übern.Mon!FO14:FZ14) -> 16,582 | R14: =SUM(Übern.Mon!GA14:GL14) -> 16,431 | S14: =SUM(Übern.Mon!GM14:GX14) -> 17,246 | T14: =SUM(Übern.Mon!GY14:HJ14) -> 16,875 | U14: =SUM(Übern.Mon!HK14:HV14) -> 18,552 | V14: =SUM(Übern.Mon!HW14:IH14) -> 21,259 | W14: =SUM(Übern.Mon!II14:IT14) -> 28,365 | X14: =SUM(Übern.Mon!IU14:JF14) -> 30,498 | Y14: =SUM(Übern.Mon!JG14:JR14) -> 29,607 | Z14: =SUM(Übern.Mon!JS14:KD14) -> 29,631 | AA14: =SUM(Übern.Mon!KE14:KP14) -> 22,894 | AB14: =SUM(Übern.Mon!KQ14:LB14) -> 24,891 | AC14: =SUM(Übern.Mon!LC14:LN14) -> 29,008 | AD14: =SUM(Übern.Mon!LO14:LZ14) -> 23,419 | AE14: =SUM(Übern.Mon!MA14:ML14) -> 29,718
A15: 10708 | B15: Halbturn (bis 4/99) (ab 11/13) | C15: =SUM(Übern.Mon!C15:N15) -> 680 | D15: =SUM(Übern.Mon!O15:Z15) -> 329 | E15: =SUM(Übern.Mon!AA15:AL15) -> 628 | T15: =SUM(Übern.Mon!GY15:HJ15) -> 275 | U15: =SUM(Übern.Mon!HK15:HV15) -> 3,469 | V15: =SUM(Übern.Mon!HW15:IH15) -> 2,957 | W15: =SUM(Übern.Mon!II15:IT15) -> 2,961 | X15: =SUM(Übern.Mon!IU15:JF15) -> 2,770 | Y15: =SUM(Übern.Mon!JG15:JR15) -> 1,428 | Z15: =SUM(Übern.Mon!JS15:KD15) -> 6,047 | AA15: =SUM(Übern.Mon!KE15:KP15) -> 6,696 | AB15: =SUM(Übern.Mon!KQ15:LB15) -> 6,867 | AC15: =SUM(Übern.Mon!LC15:LN15) -> 7,787 | AD15: =SUM(Übern.Mon!LO15:LZ15) -> 5,940 | AE15: =SUM(Übern.Mon!MA15:ML15) -> 6,669
A16: 10304 | B16: Hornstein (bis 4/99) (ab 11/15 bis 10/17) | C16: =SUM(Übern.Mon!C16:N16) -> 818 | D16: =SUM(Übern.Mon!O16:Z16) -> 621 | E16: =SUM(Übern.Mon!AA16:AL16) -> 843 | W16: =SUM(Übern.Mon!II16:IT16) -> 422 | X16: =SUM(Übern.Mon!IU16:JF16) -> 423
A17: 10709 | B17: Illmitz | C17: =SUM(Übern.Mon!C17:N17) -> 128,548 | D17: =SUM(Übern.Mon!O17:Z17) -> 126,756 | E17: =SUM(Übern.Mon!AA17:AL17) -> 129,331 | F17: =SUM(Übern.Mon!AM17:AX17) -> 140,494 | G17: =SUM(Übern.Mon!AY17:BJ17) -> 152,092 | H17: =SUM(Übern.Mon!BK17:BV17) -> 160,249 | I17: =SUM(Übern.Mon!BW17:CH17) -> 161,495 | J17: =SUM(Übern.Mon!CI17:CT17) -> 156,003 | K17: =SUM(Übern.Mon!CU17:DF17) -> 147,028 | L17: =SUM(Übern.Mon!DG17:DR17) -> 147,954 | M17: =SUM(Übern.Mon!DS17:ED17) -> 136,305 | N17: =SUM(Übern.Mon!EE17:EP17) -> 141,695 | O17: =SUM(Übern.Mon!EQ17:FB17) -> 147,105 | P17: =SUM(Übern.Mon!FC17:FN17) -> 152,384 | Q17: =SUM(Übern.Mon!FO17:FZ17) -> 150,544 | R17: =SUM(Übern.Mon!GA17:GL17) -> 149,464 | S17: =SUM(Übern.Mon!GM17:GX17) -> 151,062 | T17: =SUM(Übern.Mon!GY17:HJ17) -> 140,420 | U17: =SUM(Übern.Mon!HK17:HV17) -> 138,539 | V17: =SUM(Übern.Mon!HW17:IH17) -> 136,424 | W17: =SUM(Übern.Mon!II17:IT17) -> 142,017 | X17: =SUM(Übern.Mon!IU17:JF17) -> 145,197 | Y17: =SUM(Übern.Mon!JG17:JR17) -> 141,400 | Z17: =SUM(Übern.Mon!JS17:KD17) -> 144,929 | AA17: =SUM(Übern.Mon!KE17:KP17) -> 112,204 | AB17: =SUM(Übern.Mon!KQ17:LB17) -> 120,694 | AC17: =SUM(Übern.Mon!LC17:LN17) -> 116,953 | AD17: =SUM(Übern.Mon!LO17:LZ17) -> 113,764 | AE17: =SUM(Übern.Mon!MA17:ML17) -> 108,409
A18: 10710 | B18: Jois | C18: =SUM(Übern.Mon!C18:N18) -> 29,500 | D18: =SUM(Übern.Mon!O18:Z18) -> 26,622 | E18: =SUM(Übern.Mon!AA18:AL18) -> 31,161 | F18: =SUM(Übern.Mon!AM18:AX18) -> 33,718 | G18: =SUM(Übern.Mon!AY18:BJ18) -> 33,683 | H18: =SUM(Übern.Mon!BK18:BV18) -> 33,965 | I18: =SUM(Übern.Mon!BW18:CH18) -> 33,318 | J18: =SUM(Übern.Mon!CI18:CT18) -> 34,236 | K18: =SUM(Übern.Mon!CU18:DF18) -> 31,916 | L18: =SUM(Übern.Mon!DG18:DR18) -> 29,190 | M18: =SUM(Übern.Mon!DS18:ED18) -> 26,975 | N18: =SUM(Übern.Mon!EE18:EP18) -> 24,150 | O18: =SUM(Übern.Mon!EQ18:FB18) -> 27,561 | P18: =SUM(Übern.Mon!FC18:FN18) -> 20,118 | Q18: =SUM(Übern.Mon!FO18:FZ18) -> 24,869 | R18: =SUM(Übern.Mon!GA18:GL18) -> 24,305 | S18: =SUM(Übern.Mon!GM18:GX18) -> 28,662 | T18: =SUM(Übern.Mon!GY18:HJ18) -> 28,205 | U18: =SUM(Übern.Mon!HK18:HV18) -> 25,572 | V18: =SUM(Übern.Mon!HW18:IH18) -> 28,143 | W18: =SUM(Übern.Mon!II18:IT18) -> 29,984 | X18: =SUM(Übern.Mon!IU18:JF18) -> 35,228 | Y18: =SUM(Übern.Mon!JG18:JR18) -> 36,049 | Z18: =SUM(Übern.Mon!JS18:KD18) -> 39,755 | AA18: =SUM(Übern.Mon!KE18:KP18) -> 29,309 | AB18: =SUM(Übern.Mon!KQ18:LB18) -> 33,388 | AC18: =SUM(Übern.Mon!LC18:LN18) -> 37,418 | AD18: =SUM(Übern.Mon!LO18:LZ18) -> 35,756 | AE18: =SUM(Übern.Mon!MA18:ML18) -> 35,774
A19: 10711 | B19: Kittsee (ab 11/09) | P19: =SUM(Übern.Mon!FC19:FN19) -> 223 | Q19: =SUM(Übern.Mon!FO19:FZ19) -> 1,200 | R19: =SUM(Übern.Mon!GA19:GL19) -> 1,365 | S19: =SUM(Übern.Mon!GM19:GX19) -> 2,657 | T19: =SUM(Übern.Mon!GY19:HJ19) -> 30,924 | U19: =SUM(Übern.Mon!HK19:HV19) -> 31,707 | V19: =SUM(Übern.Mon!HW19:IH19) -> 34,283 | W19: =SUM(Übern.Mon!II19:IT19) -> 35,688 | X19: =SUM(Übern.Mon!IU19:JF19) -> 35,968 | Y19: =SUM(Übern.Mon!JG19:JR19) -> 37,930 | Z19: =SUM(Übern.Mon!JS19:KD19) -> 38,569 | AA19: =SUM(Übern.Mon!KE19:KP19) -> 28,433 | AB19: =SUM(Übern.Mon!KQ19:LB19) -> 34,174 | AC19: =SUM(Übern.Mon!LC19:LN19) -> 34,561 | AD19: =SUM(Übern.Mon!LO19:LZ19) -> 40,027 | AE19: =SUM(Übern.Mon!MA19:ML19) -> 39,758
A20: 10305 | B20: Klingenbach (ab11/15) | V20: =SUM(Übern.Mon!HW20:IH20) -> 692 | W20: =SUM(Übern.Mon!II20:IT20) -> 4,703 | X20: =SUM(Übern.Mon!IU20:JF20) -> 4,398 | Y20: =SUM(Übern.Mon!JG20:JR20) -> 4,708 | Z20: =SUM(Übern.Mon!JS20:KD20) -> 6,966 | AA20: =SUM(Übern.Mon!KE20:KP20) -> 6,300 | AB20: =SUM(Übern.Mon!KQ20:LB20) -> 6,986 | AC20: =SUM(Übern.Mon!LC20:LN20) -> 7,525 | AD20: =SUM(Übern.Mon!LO20:LZ20) -> 6,605 | AE20: =SUM(Übern.Mon!MA20:ML20) -> 5,908
A21: 10712 | B21: Mönchhof | C21: =SUM(Übern.Mon!C21:N21) -> 45,195 | D21: =SUM(Übern.Mon!O21:Z21) -> 46,935 | E21: =SUM(Übern.Mon!AA21:AL21) -> 43,963 | F21: =SUM(Übern.Mon!AM21:AX21) -> 39,822 | G21: =SUM(Übern.Mon!AY21:BJ21) -> 39,520 | H21: =SUM(Übern.Mon!BK21:BV21) -> 39,018 | I21: =SUM(Übern.Mon!BW21:CH21) -> 37,188 | J21: =SUM(Übern.Mon!CI21:CT21) -> 35,585 | K21: =SUM(Übern.Mon!CU21:DF21) -> 34,350 | L21: =SUM(Übern.Mon!DG21:DR21) -> 36,486 | M21: =SUM(Übern.Mon!DS21:ED21) -> 36,707 | N21: =SUM(Übern.Mon!EE21:EP21) -> 36,362 | O21: =SUM(Übern.Mon!EQ21:FB21) -> 32,691 | P21: =SUM(Übern.Mon!FC21:FN21) -> 31,128 | Q21: =SUM(Übern.Mon!FO21:FZ21) -> 26,317 | R21: =SUM(Übern.Mon!GA21:GL21) -> 27,437 | S21: =SUM(Übern.Mon!GM21:GX21) -> 33,104 | T21: =SUM(Übern.Mon!GY21:HJ21) -> 35,242 | U21: =SUM(Übern.Mon!HK21:HV21) -> 33,081 | V21: =SUM(Übern.Mon!HW21:IH21) -> 34,252 | W21: =SUM(Übern.Mon!II21:IT21) -> 34,109 | X21: =SUM(Übern.Mon!IU21:JF21) -> 30,227 | Y21: =SUM(Übern.Mon!JG21:JR21) -> 5,778 | Z21: =SUM(Übern.Mon!JS21:KD21) -> 15,952 | AA21: =SUM(Übern.Mon!KE21:KP21) -> 13,834 | AB21: =SUM(Übern.Mon!KQ21:LB21) -> 20,544 | AC21: =SUM(Übern.Mon!LC21:LN21) -> 18,459 | AD21: =SUM(Übern.Mon!LO21:LZ21) -> 15,474 | AE21: =SUM(Übern.Mon!MA21:ML21) -> 15,798
A22: 10307 | B22: Mörbisch a. See | C22: =SUM(Übern.Mon!C22:N22) -> 113,578 | D22: =SUM(Übern.Mon!O22:Z22) -> 105,537 | E22: =SUM(Übern.Mon!AA22:AL22) -> 118,607 | F22: =SUM(Übern.Mon!AM22:AX22) -> 120,152 | G22: =SUM(Übern.Mon!AY22:BJ22) -> 122,466 | H22: =SUM(Übern.Mon!BK22:BV22) -> 126,457 | I22: =SUM(Übern.Mon!BW22:CH22) -> 128,885 | J22: =SUM(Übern.Mon!CI22:CT22) -> 126,059 | K22: =SUM(Übern.Mon!CU22:DF22) -> 121,121 | L22: =SUM(Übern.Mon!DG22:DR22) -> 112,954 | M22: =SUM(Übern.Mon!DS22:ED22) -> 99,885 | N22: =SUM(Übern.Mon!EE22:EP22) -> 103,837 | O22: =SUM(Übern.Mon!EQ22:FB22) -> 110,313 | P22: =SUM(Übern.Mon!FC22:FN22) -> 112,547 | Q22: =SUM(Übern.Mon!FO22:FZ22) -> 99,754 | R22: =SUM(Übern.Mon!GA22:GL22) -> 104,787 | S22: =SUM(Übern.Mon!GM22:GX22) -> 107,093 | T22: =SUM(Übern.Mon!GY22:HJ22) -> 101,944 | U22: =SUM(Übern.Mon!HK22:HV22) -> 100,648 | V22: =SUM(Übern.Mon!HW22:IH22) -> 98,475 | W22: =SUM(Übern.Mon!II22:IT22) -> 98,972 | X22: =SUM(Übern.Mon!IU22:JF22) -> 103,039 | Y22: =SUM(Übern.Mon!JG22:JR22) -> 105,398 | Z22: =SUM(Übern.Mon!JS22:KD22) -> 110,023 | AA22: =SUM(Übern.Mon!KE22:KP22) -> 88,570 | AB22: =SUM(Übern.Mon!KQ22:LB22) -> 101,217 | AC22: =SUM(Übern.Mon!LC22:LN22) -> 96,183 | AD22: =SUM(Übern.Mon!LO22:LZ22) -> 97,526 | AE22: =SUM(Übern.Mon!MA22:ML22) -> 93,903
A23: 10713 | B23: Neusiedl a. See | C23: =SUM(Übern.Mon!C23:N23) -> 100,003 | D23: =SUM(Übern.Mon!O23:Z23) -> 88,204 | E23: =SUM(Übern.Mon!AA23:AL23) -> 87,918 | F23: =SUM(Übern.Mon!AM23:AX23) -> 86,789 | G23: =SUM(Übern.Mon!AY23:BJ23) -> 89,713 | H23: =SUM(Übern.Mon!BK23:BV23) -> 96,363 | I23: =SUM(Übern.Mon!BW23:CH23) -> 98,044 | J23: =SUM(Übern.Mon!CI23:CT23) -> 91,516 | K23: =SUM(Übern.Mon!CU23:DF23) -> 88,305 | L23: =SUM(Übern.Mon!DG23:DR23) -> 102,588 | M23: =SUM(Übern.Mon!DS23:ED23) -> 97,305 | N23: =SUM(Übern.Mon!EE23:EP23) -> 89,895 | O23: =SUM(Übern.Mon!EQ23:FB23) -> 93,918 | P23: =SUM(Übern.Mon!FC23:FN23) -> 88,103 | Q23: =SUM(Übern.Mon!FO23:FZ23) -> 84,711 | R23: =SUM(Übern.Mon!GA23:GL23) -> 90,108 | S23: =SUM(Übern.Mon!GM23:GX23) -> 82,972 | T23: =SUM(Übern.Mon!GY23:HJ23) -> 74,138 | U23: =SUM(Übern.Mon!HK23:HV23) -> 66,733 | V23: =SUM(Übern.Mon!HW23:IH23) -> 61,941 | W23: =SUM(Übern.Mon!II23:IT23) -> 62,106 | X23: =SUM(Übern.Mon!IU23:JF23) -> 59,627 | Y23: =SUM(Übern.Mon!JG23:JR23) -> 58,780 | Z23: =SUM(Übern.Mon!JS23:KD23) -> 60,072 | AA23: =SUM(Übern.Mon!KE23:KP23) -> 46,136 | AB23: =SUM(Übern.Mon!KQ23:LB23) -> 52,106 | AC23: =SUM(Übern.Mon!LC23:LN23) -> 59,324 | AD23: =SUM(Übern.Mon!LO23:LZ23) -> 57,403 | AE23: =SUM(Übern.Mon!MA23:ML23) -> 61,888
A24: 10714 | B24: Nickelsdorf | C24: =SUM(Übern.Mon!C24:N24) -> 4,714 | D24: =SUM(Übern.Mon!O24:Z24) -> 3,910 | E24: =SUM(Übern.Mon!AA24:AL24) -> 3,945 | F24: =SUM(Übern.Mon!AM24:AX24) -> 3,984 | G24: =SUM(Übern.Mon!AY24:BJ24) -> 3,021 | H24: =SUM(Übern.Mon!BK24:BV24) -> 2,990 | I24: =SUM(Übern.Mon!BW24:CH24) -> 2,788 | J24: =SUM(Übern.Mon!CI24:CT24) -> 3,145 | K24: =SUM(Übern.Mon!CU24:DF24) -> 3,203 | L24: =SUM(Übern.Mon!DG24:DR24) -> 4,609 | M24: =SUM(Übern.Mon!DS24:ED24) -> 4,924 | N24: =SUM(Übern.Mon!EE24:EP24) -> 3,827 | O24: =SUM(Übern.Mon!EQ24:FB24) -> 2,521 | P24: =SUM(Übern.Mon!FC24:FN24) -> 2,259 | Q24: =SUM(Übern.Mon!FO24:FZ24) -> 1,732 | R24: =SUM(Übern.Mon!GA24:GL24) -> 2,559 | S24: =SUM(Übern.Mon!GM24:GX24) -> 1,874 | T24: =SUM(Übern.Mon!GY24:HJ24) -> 2,755 | U24: =SUM(Übern.Mon!HK24:HV24) -> 3,683 | V24: =SUM(Übern.Mon!HW24:IH24) -> 3,773 | W24: =SUM(Übern.Mon!II24:IT24) -> 4,593 | X24: =SUM(Übern.Mon!IU24:JF24) -> 4,338 | Y24: =SUM(Übern.Mon!JG24:JR24) -> 4,551 | Z24: =SUM(Übern.Mon!JS24:KD24) -> 4,709 | AA24: =SUM(Übern.Mon!KE24:KP24) -> 2,940 | AB24: =SUM(Übern.Mon!KQ24:LB24) -> 3,960 | AC24: =SUM(Übern.Mon!LC24:LN24) -> 3,971 | AD24: =SUM(Übern.Mon!LO24:LZ24) -> 141,094 | AE24: =SUM(Übern.Mon!MA24:ML24) -> 123,194
A25: 10310 | B25: Oggau a. Neusiedler See | C25: =SUM(Übern.Mon!C25:N25) -> 16,105 | D25: =SUM(Übern.Mon!O25:Z25) -> 14,570 | E25: =SUM(Übern.Mon!AA25:AL25) -> 14,392 | F25: =SUM(Übern.Mon!AM25:AX25) -> 14,779 | G25: =SUM(Übern.Mon!AY25:BJ25) -> 15,059 | H25: =SUM(Übern.Mon!BK25:BV25) -> 15,106 | I25: =SUM(Übern.Mon!BW25:CH25) -> 17,638 | J25: =SUM(Übern.Mon!CI25:CT25) -> 20,895 | K25: =SUM(Übern.Mon!CU25:DF25) -> 19,936 | L25: =SUM(Übern.Mon!DG25:DR25) -> 20,877 | M25: =SUM(Übern.Mon!DS25:ED25) -> 18,727 | N25: =SUM(Übern.Mon!EE25:EP25) -> 21,388 | O25: =SUM(Übern.Mon!EQ25:FB25) -> 21,717 | P25: =SUM(Übern.Mon!FC25:FN25) -> 22,251 | Q25: =SUM(Übern.Mon!FO25:FZ25) -> 21,953 | R25: =SUM(Übern.Mon!GA25:GL25) -> 22,027 | S25: =SUM(Übern.Mon!GM25:GX25) -> 23,750 | T25: =SUM(Übern.Mon!GY25:HJ25) -> 20,844 | U25: =SUM(Übern.Mon!HK25:HV25) -> 22,424 | V25: =SUM(Übern.Mon!HW25:IH25) -> 20,944 | W25: =SUM(Übern.Mon!II25:IT25) -> 24,192 | X25: =SUM(Übern.Mon!IU25:JF25) -> 28,010 | Y25: =SUM(Übern.Mon!JG25:JR25) -> 29,100 | Z25: =SUM(Übern.Mon!JS25:KD25) -> 31,766 | AA25: =SUM(Übern.Mon!KE25:KP25) -> 30,259 | AB25: =SUM(Übern.Mon!KQ25:LB25) -> 28,503 | AC25: =SUM(Übern.Mon!LC25:LN25) -> 22,605 | AD25: =SUM(Übern.Mon!LO25:LZ25) -> 21,143 | AE25: =SUM(Übern.Mon!MA25:ML25) -> 22,061
A26: 10311 | B26: Oslip (ab 11/23) | AD26: =SUM(Übern.Mon!LO26:LZ26) -> 144 | AE26: =SUM(Übern.Mon!MA26:ML26) -> 3,984
A27: 10716 | B27: Pamhagen | C27: =SUM(Übern.Mon!C27:N27) -> 58,269 | D27: =SUM(Übern.Mon!O27:Z27) -> 50,964 | E27: =SUM(Übern.Mon!AA27:AL27) -> 63,549 | F27: =SUM(Übern.Mon!AM27:AX27) -> 82,656 | G27: =SUM(Übern.Mon!AY27:BJ27) -> 86,078 | H27: =SUM(Übern.Mon!BK27:BV27) -> 91,837 | I27: =SUM(Übern.Mon!BW27:CH27) -> 87,564 | J27: =SUM(Übern.Mon!CI27:CT27) -> 89,947 | K27: =SUM(Übern.Mon!CU27:DF27) -> 82,668 | L27: =SUM(Übern.Mon!DG27:DR27) -> 78,544 | M27: =SUM(Übern.Mon!DS27:ED27) -> 80,877 | N27: =SUM(Übern.Mon!EE27:EP27) -> 85,859 | O27: =SUM(Übern.Mon!EQ27:FB27) -> 86,505 | P27: =SUM(Übern.Mon!FC27:FN27) -> 87,574 | Q27: =SUM(Übern.Mon!FO27:FZ27) -> 84,252 | R27: =SUM(Übern.Mon!GA27:GL27) -> 78,512 | S27: =SUM(Übern.Mon!GM27:GX27) -> 82,314 | T27: =SUM(Übern.Mon!GY27:HJ27) -> 80,147 | U27: =SUM(Übern.Mon!HK27:HV27) -> 83,134 | V27: =SUM(Übern.Mon!HW27:IH27) -> 79,794 | W27: =SUM(Übern.Mon!II27:IT27) -> 85,207 | X27: =SUM(Übern.Mon!IU27:JF27) -> 86,073 | Y27: =SUM(Übern.Mon!JG27:JR27) -> 87,110 | Z27: =SUM(Übern.Mon!JS27:KD27) -> 85,282 | AA27: =SUM(Übern.Mon!KE27:KP27) -> 63,561 | AB27: =SUM(Übern.Mon!KQ27:LB27) -> 67,308 | AC27: =SUM(Übern.Mon!LC27:LN27) -> 93,004 | AD27: =SUM(Übern.Mon!LO27:LZ27) -> 71,410 | AE27: =SUM(Übern.Mon!MA27:ML27) -> 88,107
A28: 10717 | B28: Parndorf (ab 5/09) | P28: =SUM(Übern.Mon!FC28:FN28) -> 18,693 | Q28: =SUM(Übern.Mon!FO28:FZ28) -> 35,207 | R28: =SUM(Übern.Mon!GA28:GL28) -> 40,908 | S28: =SUM(Übern.Mon!GM28:GX28) -> 50,866 | T28: =SUM(Übern.Mon!GY28:HJ28) -> 46,839 | U28: =SUM(Übern.Mon!HK28:HV28) -> 53,049 | V28: =SUM(Übern.Mon!HW28:IH28) -> 44,381 | W28: =SUM(Übern.Mon!II28:IT28) -> 45,077 | X28: =SUM(Übern.Mon!IU28:JF28) -> 46,891 | Y28: =SUM(Übern.Mon!JG28:JR28) -> 46,752 | Z28: =SUM(Übern.Mon!JS28:KD28) -> 61,446 | AA28: =SUM(Übern.Mon!KE28:KP28) -> 38,637 | AB28: =SUM(Übern.Mon!KQ28:LB28) -> 62,144 | AC28: =SUM(Übern.Mon!LC28:LN28) -> 107,616 | AD28: =SUM(Übern.Mon!LO28:LZ28) -> 132,982 | AE28: =SUM(Übern.Mon!MA28:ML28) -> 138,610
A29: 10718 | B29: Podersdorf a. See | C29: =SUM(Übern.Mon!C29:N29) -> 337,492 | D29: =SUM(Übern.Mon!O29:Z29) -> 332,310 | E29: =SUM(Übern.Mon!AA29:AL29) -> 390,288 | F29: =SUM(Übern.Mon!AM29:AX29) -> 394,376 | G29: =SUM(Übern.Mon!AY29:BJ29) -> 396,404 | H29: =SUM(Übern.Mon!BK29:BV29) -> 398,042 | I29: =SUM(Übern.Mon!BW29:CH29) -> 410,939 | J29: =SUM(Übern.Mon!CI29:CT29) -> 394,937 | K29: =SUM(Übern.Mon!CU29:DF29) -> 338,773 | L29: =SUM(Übern.Mon!DG29:DR29) -> 336,768 | M29: =SUM(Übern.Mon!DS29:ED29) -> 320,380 | N29: =SUM(Übern.Mon!EE29:EP29) -> 345,697 | O29: =SUM(Übern.Mon!EQ29:FB29) -> 356,964 | P29: =SUM(Übern.Mon!FC29:FN29) -> 389,542 | Q29: =SUM(Übern.Mon!FO29:FZ29) -> 381,034 | R29: =SUM(Übern.Mon!GA29:GL29) -> 378,877 | S29: =SUM(Übern.Mon!GM29:GX29) -> 385,194 | T29: =SUM(Übern.Mon!GY29:HJ29) -> 366,956 | U29: =SUM(Übern.Mon!HK29:HV29) -> 356,836 | V29: =SUM(Übern.Mon!HW29:IH29) -> 366,809 | W29: =SUM(Übern.Mon!II29:IT29) -> 422,177 | X29: =SUM(Übern.Mon!IU29:JF29) -> 421,570 | Y29: =SUM(Übern.Mon!JG29:JR29) -> 422,304 | Z29: =SUM(Übern.Mon!JS29:KD29) -> 428,417 | AA29: =SUM(Übern.Mon!KE29:KP29) -> 378,898 | AB29: =SUM(Übern.Mon!KQ29:LB29) -> 376,545 | AC29: =SUM(Übern.Mon!LC29:LN29) -> 380,185 | AD29: =SUM(Übern.Mon!LO29:LZ29) -> 382,356 | AE29: =SUM(Übern.Mon!MA29:ML29) -> 407,149
A30: 10312 | B30: Purbach a. Neusiedler See | C30: =SUM(Übern.Mon!C30:N30) -> 26,207 | D30: =SUM(Übern.Mon!O30:Z30) -> 24,546 | E30: =SUM(Übern.Mon!AA30:AL30) -> 27,509 | F30: =SUM(Übern.Mon!AM30:AX30) -> 22,960 | G30: =SUM(Übern.Mon!AY30:BJ30) -> 26,759 | H30: =SUM(Übern.Mon!BK30:BV30) -> 25,065 | I30: =SUM(Übern.Mon!BW30:CH30) -> 27,565 | J30: =SUM(Übern.Mon!CI30:CT30) -> 25,638 | K30: =SUM(Übern.Mon!CU30:DF30) -> 22,816 | L30: =SUM(Übern.Mon!DG30:DR30) -> 24,874 | M30: =SUM(Übern.Mon!DS30:ED30) -> 24,471 | N30: =SUM(Übern.Mon!EE30:EP30) -> 26,190 | O30: =SUM(Übern.Mon!EQ30:FB30) -> 24,827 | P30: =SUM(Übern.Mon!FC30:FN30) -> 27,365 | Q30: =SUM(Übern.Mon!FO30:FZ30) -> 27,193 | R30: =SUM(Übern.Mon!GA30:GL30) -> 27,000 | S30: =SUM(Übern.Mon!GM30:GX30) -> 28,048 | T30: =SUM(Übern.Mon!GY30:HJ30) -> 27,556 | U30: =SUM(Übern.Mon!HK30:HV30) -> 27,934 | V30: =SUM(Übern.Mon!HW30:IH30) -> 26,510 | W30: =SUM(Übern.Mon!II30:IT30) -> 24,733 | X30: =SUM(Übern.Mon!IU30:JF30) -> 24,322 | Y30: =SUM(Übern.Mon!JG30:JR30) -> 20,497 | Z30: =SUM(Übern.Mon!JS30:KD30) -> 24,203 | AA30: =SUM(Übern.Mon!KE30:KP30) -> 18,886 | AB30: =SUM(Übern.Mon!KQ30:LB30) -> 20,276 | AC30: =SUM(Übern.Mon!LC30:LN30) -> 24,704 | AD30: =SUM(Übern.Mon!LO30:LZ30) -> 23,877 | AE30: =SUM(Übern.Mon!MA30:ML30) -> 25,486
A31: 10201 | B31: Rust | C31: =SUM(Übern.Mon!C31:N31) -> 113,692 | D31: =SUM(Übern.Mon!O31:Z31) -> 110,841 | E31: =SUM(Übern.Mon!AA31:AL31) -> 115,302 | F31: =SUM(Übern.Mon!AM31:AX31) -> 113,362 | G31: =SUM(Übern.Mon!AY31:BJ31) -> 116,402 | H31: =SUM(Übern.Mon!BK31:BV31) -> 126,726 | I31: =SUM(Übern.Mon!BW31:CH31) -> 119,801 | J31: =SUM(Übern.Mon!CI31:CT31) -> 129,173 | K31: =SUM(Übern.Mon!CU31:DF31) -> 123,698 | L31: =SUM(Übern.Mon!DG31:DR31) -> 120,172 | M31: =SUM(Übern.Mon!DS31:ED31) -> 117,783 | N31: =SUM(Übern.Mon!EE31:EP31) -> 122,940 | O31: =SUM(Übern.Mon!EQ31:FB31) -> 123,522 | P31: =SUM(Übern.Mon!FC31:FN31) -> 121,761 | Q31: =SUM(Übern.Mon!FO31:FZ31) -> 119,568 | R31: =SUM(Übern.Mon!GA31:GL31) -> 150,165 | S31: =SUM(Übern.Mon!GM31:GX31) -> 145,010 | T31: =SUM(Übern.Mon!GY31:HJ31) -> 145,742 | U31: =SUM(Übern.Mon!HK31:HV31) -> 150,404 | V31: =SUM(Übern.Mon!HW31:IH31) -> 148,482 | W31: =SUM(Übern.Mon!II31:IT31) -> 149,471 | X31: =SUM(Übern.Mon!IU31:JF31) -> 156,048 | Y31: =SUM(Übern.Mon!JG31:JR31) -> 167,221 | Z31: =SUM(Übern.Mon!JS31:KD31) -> 170,883 | AA31: =SUM(Übern.Mon!KE31:KP31) -> 143,281 | AB31: =SUM(Übern.Mon!KQ31:LB31) -> 156,844 | AC31: =SUM(Übern.Mon!LC31:LN31) -> 161,211 | AD31: =SUM(Übern.Mon!LO31:LZ31) -> 159,813 | AE31: =SUM(Übern.Mon!MA31:ML31) -> 159,798
A32: 10719 | B32: Sankt Andrä a. Zicksee | C32: =SUM(Übern.Mon!C32:N32) -> 91,037 | D32: =SUM(Übern.Mon!O32:Z32) -> 86,495 | E32: =SUM(Übern.Mon!AA32:AL32) -> 90,454 | F32: =SUM(Übern.Mon!AM32:AX32) -> 93,141 | G32: =SUM(Übern.Mon!AY32:BJ32) -> 94,887 | H32: =SUM(Übern.Mon!BK32:BV32) -> 86,955 | I32: =SUM(Übern.Mon!BW32:CH32) -> 84,714 | J32: =SUM(Übern.Mon!CI32:CT32) -> 78,049 | K32: =SUM(Übern.Mon!CU32:DF32) -> 79,629 | L32: =SUM(Übern.Mon!DG32:DR32) -> 73,852 | M32: =SUM(Übern.Mon!DS32:ED32) -> 70,250 | N32: =SUM(Übern.Mon!EE32:EP32) -> 73,185 | O32: =SUM(Übern.Mon!EQ32:FB32) -> 73,913 | P32: =SUM(Übern.Mon!FC32:FN32) -> 74,304 | Q32: =SUM(Übern.Mon!FO32:FZ32) -> 64,499 | R32: =SUM(Übern.Mon!GA32:GL32) -> 68,045 | S32: =SUM(Übern.Mon!GM32:GX32) -> 62,959 | T32: =SUM(Übern.Mon!GY32:HJ32) -> 64,411 | U32: =SUM(Übern.Mon!HK32:HV32) -> 62,191 | V32: =SUM(Übern.Mon!HW32:IH32) -> 63,103 | W32: =SUM(Übern.Mon!II32:IT32) -> 72,046 | X32: =SUM(Übern.Mon!IU32:JF32) -> 77,568 | Y32: =SUM(Übern.Mon!JG32:JR32) -> 74,919 | Z32: =SUM(Übern.Mon!JS32:KD32) -> 73,006 | AA32: =SUM(Übern.Mon!KE32:KP32) -> 54,860 | AB32: =SUM(Übern.Mon!KQ32:LB32) -> 62,818 | AC32: =SUM(Übern.Mon!LC32:LN32) -> 59,115 | AD32: =SUM(Übern.Mon!LO32:LZ32) -> 59,020 | AE32: =SUM(Übern.Mon!MA32:ML32) -> 68,279
A33: 10313 | B33: Sankt Margarethen i. Bgld. | C33: =SUM(Übern.Mon!C33:N33) -> 6,033 | D33: =SUM(Übern.Mon!O33:Z33) -> 4,697 | E33: =SUM(Übern.Mon!AA33:AL33) -> 4,954 | F33: =SUM(Übern.Mon!AM33:AX33) -> 4,535 | G33: =SUM(Übern.Mon!AY33:BJ33) -> 5,887 | H33: =SUM(Übern.Mon!BK33:BV33) -> 6,990 | I33: =SUM(Übern.Mon!BW33:CH33) -> 6,370 | J33: =SUM(Übern.Mon!CI33:CT33) -> 5,715 | K33: =SUM(Übern.Mon!CU33:DF33) -> 5,491 | L33: =SUM(Übern.Mon!DG33:DR33) -> 6,369 | M33: =SUM(Übern.Mon!DS33:ED33) -> 5,042 | N33: =SUM(Übern.Mon!EE33:EP33) -> 6,955 | O33: =SUM(Übern.Mon!EQ33:FB33) -> 8,110 | P33: =SUM(Übern.Mon!FC33:FN33) -> 8,935 | Q33: =SUM(Übern.Mon!FO33:FZ33) -> 9,055 | R33: =SUM(Übern.Mon!GA33:GL33) -> 9,019 | S33: =SUM(Übern.Mon!GM33:GX33) -> 6,930 | T33: =SUM(Übern.Mon!GY33:HJ33) -> 5,213 | U33: =SUM(Übern.Mon!HK33:HV33) -> 5,245 | V33: =SUM(Übern.Mon!HW33:IH33) -> 5,495 | W33: =SUM(Übern.Mon!II33:IT33) -> 4,979 | X33: =SUM(Übern.Mon!IU33:JF33) -> 5,048 | Y33: =SUM(Übern.Mon!JG33:JR33) -> 4,446 | Z33: =SUM(Übern.Mon!JS33:KD33) -> 4,478 | AA33: =SUM(Übern.Mon!KE33:KP33) -> 2,610 | AB33: =SUM(Übern.Mon!KQ33:LB33) -> 4,118 | AC33: =SUM(Übern.Mon!LC33:LN33) -> 3,552 | AD33: =SUM(Übern.Mon!LO33:LZ33) -> 2,910 | AE33: =SUM(Übern.Mon!MA33:ML33) -> 2,615
A34: 10314 | B34: Schützen a. Geb. (11/23) | AD34: =SUM(Übern.Mon!LO34:LZ34) -> 40 | AE34: =SUM(Übern.Mon!MA34:ML34) -> 1,306
A35: 10315 | B35: Siegendorf (bis 4/99) | C35: =SUM(Übern.Mon!C35:N35) -> 1,059 | D35: =SUM(Übern.Mon!O35:Z35) -> 932 | E35: =SUM(Übern.Mon!AA35:AL35) -> 1,344 | F35: =SUM(Übern.Mon!AM35:AX35) -> 21
A36: 10720 | B36: Tadten (ab 11/23) | AD36: =SUM(Übern.Mon!LO36:LZ36) -> 53 | AE36: =SUM(Übern.Mon!MA36:ML36) -> 1,214
A37: 10317 | B37: Trausdorf a. d. Wulka | C37: =SUM(Übern.Mon!C37:N37) -> 6,994 | D37: =SUM(Übern.Mon!O37:Z37) -> 4,520 | E37: =SUM(Übern.Mon!AA37:AL37) -> 4,515 | F37: =SUM(Übern.Mon!AM37:AX37) -> 4,642 | G37: =SUM(Übern.Mon!AY37:BJ37) -> 4,755 | H37: =SUM(Übern.Mon!BK37:BV37) -> 5,225 | I37: =SUM(Übern.Mon!BW37:CH37) -> 4,699 | J37: =SUM(Übern.Mon!CI37:CT37) -> 4,101 | K37: =SUM(Übern.Mon!CU37:DF37) -> 4,458 | L37: =SUM(Übern.Mon!DG37:DR37) -> 4,976 | M37: =SUM(Übern.Mon!DS37:ED37) -> 3,798 | N37: =SUM(Übern.Mon!EE37:EP37) -> 5,376 | O37: =SUM(Übern.Mon!EQ37:FB37) -> 5,149 | P37: =SUM(Übern.Mon!FC37:FN37) -> 4,135 | Q37: =SUM(Übern.Mon!FO37:FZ37) -> 3,736 | R37: =SUM(Übern.Mon!GA37:GL37) -> 3,507 | S37: =SUM(Übern.Mon!GM37:GX37) -> 3,197 | T37: =SUM(Übern.Mon!GY37:HJ37) -> 2,451 | U37: =SUM(Übern.Mon!HK37:HV37) -> 2,620 | V37: =SUM(Übern.Mon!HW37:IH37) -> 1,955 | W37: =SUM(Übern.Mon!II37:IT37) -> 2,394 | X37: =SUM(Übern.Mon!IU37:JF37) -> 2,293 | Y37: =SUM(Übern.Mon!JG37:JR37) -> 1,779 | Z37: =SUM(Übern.Mon!JS37:KD37) -> 2,817 | AA37: =SUM(Übern.Mon!KE37:KP37) -> 1,916 | AB37: =SUM(Übern.Mon!KQ37:LB37) -> 2,870 | AC37: =SUM(Übern.Mon!LC37:LN37) -> 3,090 | AD37: =SUM(Übern.Mon!LO37:LZ37) -> 3,822 | AE37: =SUM(Übern.Mon!MA37:ML37) -> 4,473
A38: 10721 | B38: Wallern i. Bgld. | C38: =SUM(Übern.Mon!C38:N38) -> 4,788 | D38: =SUM(Übern.Mon!O38:Z38) -> 3,882 | E38: =SUM(Übern.Mon!AA38:AL38) -> 3,202 | F38: =SUM(Übern.Mon!AM38:AX38) -> 2,122 | G38: =SUM(Übern.Mon!AY38:BJ38) -> 3,290 | H38: =SUM(Übern.Mon!BK38:BV38) -> 3,719 | I38: =SUM(Übern.Mon!BW38:CH38) -> 2,461 | J38: =SUM(Übern.Mon!CI38:CT38) -> 4,095 | K38: =SUM(Übern.Mon!CU38:DF38) -> 4,318 | L38: =SUM(Übern.Mon!DG38:DR38) -> 5,236 | M38: =SUM(Übern.Mon!DS38:ED38) -> 5,187 | N38: =SUM(Übern.Mon!EE38:EP38) -> 4,518 | O38: =SUM(Übern.Mon!EQ38:FB38) -> 4,493 | P38: =SUM(Übern.Mon!FC38:FN38) -> 4,886 | Q38: =SUM(Übern.Mon!FO38:FZ38) -> 4,348 | R38: =SUM(Übern.Mon!GA38:GL38) -> 4,740 | S38: =SUM(Übern.Mon!GM38:GX38) -> 6,998 | T38: =SUM(Übern.Mon!GY38:HJ38) -> 5,371 | U38: =SUM(Übern.Mon!HK38:HV38) -> 5,364 | V38: =SUM(Übern.Mon!HW38:IH38) -> 5,096 | W38: =SUM(Übern.Mon!II38:IT38) -> 7,202 | X38: =SUM(Übern.Mon!IU38:JF38) -> 5,662 | Y38: =SUM(Übern.Mon!JG38:JR38) -> 4,947 | Z38: =SUM(Übern.Mon!JS38:KD38) -> 5,596 | AA38: =SUM(Übern.Mon!KE38:KP38) -> 4,232 | AB38: =SUM(Übern.Mon!KQ38:LB38) -> 4,886 | AC38: =SUM(Übern.Mon!LC38:LN38) -> 5,064 | AD38: =SUM(Übern.Mon!LO38:LZ38) -> 4,050 | AE38: =SUM(Übern.Mon!MA38:ML38) -> 3,950
A39: 10722 | B39: Weiden a. See | C39: =SUM(Übern.Mon!C39:N39) -> 54,758 | D39: =SUM(Übern.Mon!O39:Z39) -> 56,598 | E39: =SUM(Übern.Mon!AA39:AL39) -> 59,105 | F39: =SUM(Übern.Mon!AM39:AX39) -> 58,035 | G39: =SUM(Übern.Mon!AY39:BJ39) -> 61,322 | H39: =SUM(Übern.Mon!BK39:BV39) -> 59,634 | I39: =SUM(Übern.Mon!BW39:CH39) -> 61,114 | J39: =SUM(Übern.Mon!CI39:CT39) -> 57,339 | K39: =SUM(Übern.Mon!CU39:DF39) -> 50,463 | L39: =SUM(Übern.Mon!DG39:DR39) -> 47,594 | M39: =SUM(Übern.Mon!DS39:ED39) -> 42,651 | N39: =SUM(Übern.Mon!EE39:EP39) -> 37,022 | O39: =SUM(Übern.Mon!EQ39:FB39) -> 40,311 | P39: =SUM(Übern.Mon!FC39:FN39) -> 40,419 | Q39: =SUM(Übern.Mon!FO39:FZ39) -> 41,953 | R39: =SUM(Übern.Mon!GA39:GL39) -> 43,301 | S39: =SUM(Übern.Mon!GM39:GX39) -> 45,397 | T39: =SUM(Übern.Mon!GY39:HJ39) -> 43,995 | U39: =SUM(Übern.Mon!HK39:HV39) -> 36,884 | V39: =SUM(Übern.Mon!HW39:IH39) -> 35,795 | W39: =SUM(Übern.Mon!II39:IT39) -> 36,490 | X39: =SUM(Übern.Mon!IU39:JF39) -> 34,147 | Y39: =SUM(Übern.Mon!JG39:JR39) -> 33,428 | Z39: =SUM(Übern.Mon!JS39:KD39) -> 20,501 | AA39: =SUM(Übern.Mon!KE39:KP39) -> 16,581 | AB39: =SUM(Übern.Mon!KQ39:LB39) -> 17,103 | AC39: =SUM(Übern.Mon!LC39:LN39) -> 14,411 | AD39: =SUM(Übern.Mon!LO39:LZ39) -> 30,653 | AE39: =SUM(Übern.Mon!MA39:ML39) -> 38,236
A40: 10318 | B40: Wimpassing a. d. Leitha (bis 4/99) | C40: =SUM(Übern.Mon!C40:N40) -> 1,178 | D40: =SUM(Übern.Mon!O40:Z40) -> 830 | E40: =SUM(Übern.Mon!AA40:AL40) -> 1,033 | F40: =SUM(Übern.Mon!AM40:AX40) -> 553
A41: 10723 | B41: Winden a. See (ab 11/06) | M41: =SUM(Übern.Mon!DS41:ED41) -> 24 | N41: =SUM(Übern.Mon!EE41:EP41) -> 1,920 | O41: =SUM(Übern.Mon!EQ41:FB41) -> 2,448 | P41: =SUM(Übern.Mon!FC41:FN41) -> 2,618 | Q41: =SUM(Übern.Mon!FO41:FZ41) -> 1,912 | R41: =SUM(Übern.Mon!GA41:GL41) -> 2,044 | S41: =SUM(Übern.Mon!GM41:GX41) -> 2,002 | T41: =SUM(Übern.Mon!GY41:HJ41) -> 1,687 | U41: =SUM(Übern.Mon!HK41:HV41) -> 1,587 | V41: =SUM(Übern.Mon!HW41:IH41) -> 1,719 | W41: =SUM(Übern.Mon!II41:IT41) -> 2,242 | X41: =SUM(Übern.Mon!IU41:JF41) -> 2,360 | Y41: =SUM(Übern.Mon!JG41:JR41) -> 2,474 | Z41: =SUM(Übern.Mon!JS41:KD41) -> 2,178 | AA41: =SUM(Übern.Mon!KE41:KP41) -> 2,195 | AB41: =SUM(Übern.Mon!KQ41:LB41) -> 2,778 | AC41: =SUM(Übern.Mon!LC41:LN41) -> 2,417 | AD41: =SUM(Übern.Mon!LO41:LZ41) -> 2,705 | AE41: =SUM(Übern.Mon!MA41:ML41) -> 3,258
A42: 10724 | B42: Zurndorf (ab 11/06) | M42: =SUM(Übern.Mon!DS42:ED42) -> 490 | N42: =SUM(Übern.Mon!EE42:EP42) -> 3,083 | O42: =SUM(Übern.Mon!EQ42:FB42) -> 3,068 | P42: =SUM(Übern.Mon!FC42:FN42) -> 2,881 | Q42: =SUM(Übern.Mon!FO42:FZ42) -> 3,390 | R42: =SUM(Übern.Mon!GA42:GL42) -> 3,284 | S42: =SUM(Übern.Mon!GM42:GX42) -> 3,188 | T42: =SUM(Übern.Mon!GY42:HJ42) -> 2,566 | U42: =SUM(Übern.Mon!HK42:HV42) -> 3,765 | V42: =SUM(Übern.Mon!HW42:IH42) -> 3,818 | W42: =SUM(Übern.Mon!II42:IT42) -> 5,407 | X42: =SUM(Übern.Mon!IU42:JF42) -> 5,312 | Y42: =SUM(Übern.Mon!JG42:JR42) -> 5,571 | Z42: =SUM(Übern.Mon!JS42:KD42) -> 5,963 | AA42: =SUM(Übern.Mon!KE42:KP42) -> 4,265 | AB42: =SUM(Übern.Mon!KQ42:LB42) -> 5,568 | AC42: =SUM(Übern.Mon!LC42:LN42) -> 7,597 | AD42: =SUM(Übern.Mon!LO42:LZ42) -> 6,488 | AE42: =SUM(Übern.Mon!MA42:ML42) -> 6,019

Sheet Übern.Mon
B1: Übernachtungen in den Berichtsgemeinden nach Monaten
A3: GKZ | B3: Region | C3: 1996 | O3: 1997 | AA3: 1998 | AM3: 1999 | AY3: 2000 | BK3: 2001 | BW3: 2002 | CI3: 2003 | CU3: 2004 | DG3: 2005 | DS3: 2006 | EE3: 2007 | EQ3: 2008 | FC3: 2009 | FO3: 2010 | GA3: 2011 | GM3: 2012 | GY3: 2013 | HK3: 2014 | HW3: 2015 | II3: 2016 | IU3: 2017 | JG3: 2018 | JS3: 2019 | KE3: 2020 | KQ3: 2021 | LC3: 2022 | LO3: 2023 | MA3: 2024
B4: Gemeinde | C4: 1 | D4: 2 | E4: 3 | F4: 4 | G4: 5 | H4: 6 | I4: 7 | J4: 8 | K4: 9 | L4: 10 | M4: 11 | N4: 12 | O4: 1 | P4: 2 | Q4: 3 | R4: 4 | S4: 5 | T4: 6 | U4: 7 | V4: 8 | W4: 9 | X4: 10 | Y4: 11 | Z4: 12 | AA4: 1 | AB4: 2 | AC4: 3 | AD4: 4 | AE4: 5 | AF4: 6 | AG4: 7 | AH4: 8 | AI4: 9 | AJ4: 10 | AK4: 11 | AL4: 12 | AM4: 1 | AN4: 2 | AO4: 3 | AP4: 4 | AQ4: 5 | AR4: 6 | AS4: 7 | AT4: 8 | AU4: 9 | AV4: 10 | AW4: 11 | AX4: 12 | AY4: 1 | AZ4: 2 | BA4: 3 | BB4: 4 | BC4: 5 | BD4: 6 | BE4: 7 | BF4: 8 | BG4: 9 | BH4: 10 | BI4: 11 | BJ4: 12 | BK4: 1 | BL4: 2 | BM4: 3 | BN4: 4 | BO4: 5 | BP4: 6 | BQ4: 7 | BR4: 8 | BS4: 9 | BT4: 10 | BU4: 11 | BV4: 12 | BW4: 1 | BX4: 2 | BY4: 3 | BZ4: 4 | CA4: 5 | CB4: 6 | CC4: 7 | CD4: 8 | CE4: 9 | CF4: 10 | CG4: 11 | CH4: 12 | CI4: 1 | CJ4: 2 | CK4: 3 | CL4: 4 | CM4: 5 | CN4: 6 | CO4: 7 | CP4: 8 | CQ4: 9 | CR4: 10 | CS4: 11 | CT4: 12 | CU4: 1 | CV4: 2 | CW4: 3 | CX4: 4 | CY4: 5 | CZ4: 6 | DA4: 7 | DB4: 8 | DC4: 9 | DD4: 10 | DE4: 11 | DF4: 12 | DG4: 1 | DH4: 2 | DI4: 3 | DJ4: 4 | DK4: 5 | DL4: 6 | DM4: 7 | DN4: 8 | DO4: 9 | DP4: 10 | DQ4: 11 | DR4: 12 | DS4: 1 | DT4: 2 | DU4: 3 | DV4: 4 | DW4: 5 | DX4: 6 | DY4: 7 | DZ4: 8 | EA4: 9 | EB4: 10 | EC4: 11 | ED4: 12 | EE4: 1 | EF4: 2 | EG4: 3 | EH4: 4 | EI4: 5 | EJ4: 6 | EK4: 7 | EL4: 8 | EM4: 9 | EN4: 10 | EO4: 11 | EP4: 12 | EQ4: 1 | ER4: 2 | ES4: 3 | ET4: 4 | EU4: 5 | EV4: 6 | EW4: 7 | EX4: 8 | EY4: 9 | EZ4: 10 | FA4: 11 | FB4: 12 | FC4: 1 | FD4: 2 | FE4: 3 | FF4: 4 | FG4: 5 | FH4: 6 | FI4: 7 | FJ4: 8 | FK4: 9 | FL4: 10 | FM4: 11 | FN4: 12 | FO4: 1 | FP4: 2 | FQ4: 3 | FR4: 4 | FS4: 5 | FT4: 6 | FU4: 7 | FV4: 8 | FW4: 9 | FX4: 10 | FY4: 11 | FZ4: 12 | GA4: 1 | GB4: 2 | GC4: 3 | GD4: 4 | GE4: 5 | GF4: 6 | GG4: 7 | GH4: 8 | GI4: 9 | GJ4: 10 | GK4: 11 | GL4: 12 | GM4: 1 | GN4: 2 | GO4: 3 | GP4: 4 | GQ4: 5 | GR4: 6 | GS4: 7 | GT4: 8 | GU4: 9 | GV4: 10 | GW4: 11 | GX4: 12 | GY4: 1 | GZ4: 2 | HA4: 3 | HB4: 4 | HC4: 5 | HD4: 6 | HE4: 7 | HF4: 8 | HG4: 9 | HH4: 10 | HI4: 11 | HJ4: 12 | HK4: 1 | HL4: 2 | HM4: 3 | HN4: 4 | HO4: 5 | HP4: 6 | HQ4: 7 | HR4: 8 | HS4: 9 | HT4: 10 | HU4: 11 | HV4: 12 | HW4: 1 | HX4: 2 | HY4: 3 | HZ4: 4 | IA4: 5 | IB4: 6 | IC4: 7 | ID4: 8 | IE4: 9 | IF4: 10 | IG4: 11 | IH4: 12 | II4: 1 | IJ4: 2 | IK4: 3 | IL4: 4 | IM4: 5 | IN4: 6 | IO4: 7 | IP4: 8 | IQ4: 9 | IR4: 10 | IS4: 11 | IT4: 12 | IU4: 1 | IV4: 2 | IW4: 3 | IX4: 4 | IY4: 5 | IZ4: 6 | JA4: 7 | JB4: 8 | JC4: 9 | JD4: 10 | JE4: 11 | JF4: 12 | JG4: 1 | JH4: 2 | JI4: 3 | JJ4: 4 | JK4: 5 | JL4: 6 | JM4: 7 | JN4: 8 | JO4: 9 | JP4: 10 | JQ4: 11 | JR4: 12 | JS4: 1 | JT4: 2 | JU4: 3 | JV4: 4 | JW4: 5 | JX4: 6 | JY4: 7 | JZ4: 8 | KA4: 9 | KB4: 10 | KC4: 11 | KD4: 12 | KE4: 1 | KF4: 2 | KG4: 3 | KH4: 4 | KI4: 5 | KJ4: 6 | KK4: 7 | KL4: 8 | KM4: 9 | KN4: 10 | KO4: 11 | KP4: 12 | KQ4: 1 | KR4: 2 | KS4: 3 | KT4: 4 | KU4: 5 | KV4: 6 | KW4: 7 | KX4: 8 | KY4: 9 | KZ4: 10 | LA4: 11 | LB4: 12 | LC4: 1 | LD4: 2 | LE4: 3 | LF4: 4 | LG4: 5 | LH4: 6 | LI4: 7 | LJ4: 8 | LK4: 9 | LL4: 10 | LM4: 11 | LN4: 12 | LO4: 1 | LP4: 2 | LQ4: 3 | LR4: 4 | LS4: 5 | LT4: 6 | LU4: 7 | LV4: 8 | LW4: 9 | LX4: 10 | LY4: 11 | LZ4: 12 | MA4: 1 | MB4: 2 | MC4: 3 | MD4: 4 | ME4: 5 | MF4: 6 | MG4: 7 | MH4: 8 | MI4: 9 | MJ4: 10 | MK4: 11 | ML4: 12
B6: Neusiedler See | C6: 12,697 | D6: 13,663 | E6: 19,004 | F6: 44,019 | G6: 143,151 | H6: 177,177 | I6: 261,762 | J6: 361,518 | K6: 127,626 | L6: 61,675 | M6: 18,165 | N6: 10,166 | O6: 12,673 | P6: 11,755 | Q6: 20,571 | R6: 38,763 | S6: 160,309 | T6: =139554-384 -> 139,170 | U6: 234,276 | V6: 355,890 | W6: 135,814 | X6: 54,856 | Y6: 19,721 | Z6: 11,110 | AA6: 14,140 | AB6: 14,565 | AC6: 18,740 | AD6: 50,595 | AE6: 162,784 | AF6: 205,664 | AG6: 248,279 | AH6: 370,846 | AI6: 131,641 | AJ6: 57,040 | AK6: 19,894 | AL6: 10,200 | AM6: 14,687 | AN6: 14,566 | AO6: 21,746 | AP6: 49,579 | AQ6: 160,266 | AR6: 195,277 | AS6: 274,798 | AT6: 376,807 | AU6: 138,713 | AV6: 61,253 | AW6: 20,549 | AX6: 15,562 | AY6: 16,391 | AZ6: 14,855 | BA6: 20,708 | BB6: 70,765 | BC6: 139,794 | BD6: 218,897 | BE6: =SUM(BE7:BE40) -> 274,852 | BF6: 384,433 | BG6: 139,337 | BH6: 60,646 | BI6: 24,805 | BJ6: 13,932 | BK6: 17,023 | BL6: 15,896 | BM6: 23,798 | BN6: 75,971 | BO6: 149,551 | BP6: 207,587 | BQ6: =291044+2390 -> 293,434 | BR6: =384695+1004 -> 385,699 | BS6: 127,926 | BT6: 68,415 | BU6: 30,660 | BV6: 11,832 | BW6: 17,862 | BX6: 16,511 | BY6: 29,039 | BZ6: 60,063 | CA6: 202,764 | CB6: 177,511 | CC6: 288,266 | CD6: 369,712 | CE6: 145,931 | CF6: 62,863 | CG6: 30,897 | CH6: 12,225 | CI6: 15,817 | CJ6: 15,121 | CK6: 20,844 | CL6: 71,366 | CM6: 166,106 | CN6: 214,525 | CO6: 277,339 | CP6: 354,446 | CQ6: 141,057 | CR6: 59,590 | CS6: 28,175 | CT6: =14627+2372 -> 16,999 | CU6: 16,513 | CV6: 15,213 | CW6: 25,746 | CX6: 65,236 | CY6: 153,820 | CZ6: 164,492 | DA6: 251,578 | DB6: 349,425 | DC6: 140,369 | DD6: 57,450 | DE6: 25,036 | DF6: 14,262 | DG6: 16,866 | DH6: 15,074 | DI6: 28,169 | DJ6: =54862+238 -> 55,100 | DK6: =173636+499 -> 174,135 | DL6: 157,312 | DM6: 256,467 | DN6: 332,882 | DO6: =141868+251 -> 142,119 | DP6: 62,626 | DQ6: 27,660 | DR6: 15,286 | DS6: 17,861 | DT6: 16,551 | DU6: 24,603 | DV6: 65,669 | DW6: 140,773 | DX6: 169,768 | DY6: 240,376 | DZ6: 290,175 | EA6: 144,553 | EB6: 65,419 | EC6: 31,517 | ED6: 17,160 | EE6: 18,053 | EF6: =18037+103 -> 18,140 | EG6: 24,138 | EH6: 78,708 | EI6: 142,073 | EJ6: 166,318 | EK6: 255,124 | EL6: 319,568 | EM6: 137,166 | EN6: 66,873 | EO6: =31555+843 -> 32,398 | EP6: 15,001 | EQ6: 20,833 | ER6: 18,786 | ES6: =27643+70 -> 27,713 | ET6: 58,328 | EU6: =180483+1017 -> 181,500 | EV6: 153,874 | EW6: =257704+1210 -> 258,914 | EX6: =328335+929+2034 -> 331,298 | EY6: 137,964 | EZ6: 65,545 | FA6: 33,651 | FB6: 19,932 | FC6: 22,086 | FD6: =18556+11 -> 18,567 | FE6: 26,325 | FF6: 73,755 | FG6: =164707+496 -> 165,203 | FH6: 176,250 | FI6: 271,959 | FJ6: 332,332 | FK6: 151,194 | FL6: 71,551 | FM6: 34,299 | FN6: 25,874 | FO6: 26,486 | FP6: 23,977 | FQ6: 33,531 | FR6: 76,960 | FS6: =156852+464 -> 157,316 | FT6: 174,541 | FU6: =264746+354 -> 265,100 | FV6: =341528+59 -> 341,587 | FW6: 149,677 | FX6: 74,640 | FY6: 41,256 | FZ6: 25,371 | GA6: 26,589 | GB6: 24,897 | GC6: 33,250 | GD6: 87,845 | GE6: 142,647 | GF6: 212,674 | GG6: =261503+43 -> 261,546 | GH6: 340,845 | GI6: 157,186 | GJ6: =76013+633 -> 76,646 | GK6: 45,383 | GL6: 29,895 | GM6: 28,720 | GN6: 24,146 | GO6: 32,564 | GP6: 96,916 | GQ6: 164,072 | GR6: 185,901 | GS6: =259456+863 -> 260,319 | GT6: =343188+971 -> 344,159 | GU6: 162,623 | GV6: 77,330 | GW6: 51,400 | GX6: 27,877 | GY6: 33,042 | GZ6: 28,867 | HA6: 42,745 | HB6: 81,649 | HC6: 174,287 | HD6: 166,549 | HE6: 268,885 | HF6: 323,873 | HG6: 148,094 | HH6: 77,411 | HI6: 53,309 | HJ6: =31041+249 -> 31,290 | HK6: 34,918 | HL6: 32,840 | HM6: 39,149 | HN6: =93383+16 -> 93,399 | HO6: 161,016 | HP6: =197613+89 -> 197,702 | HQ6: 259,226 | HR6: 312,351 | HS6: 140,030 | HT6: 76,190 | HU6: 49,675 | HV6: 33,832 | HW6: =34529+19 -> 34,548 | HX6: =32390+21 -> 32,411 | HY6: 41,201 | HZ6: 89,126 | IA6: 162,482 | IB6: 186,324 | IC6: 265,545 | ID6: =307469+99 -> 307,568 | IE6: 154,337 | IF6: 73,192 | IG6: 53,505 | IH6: 35,719 | II6: 37,872 | IJ6: 33,742 | IK6: 50,848 | IL6: =91257+243 -> 91,500 | IM6: 194,025 | IN6: 184,901 | IO6: =283068+8 -> 283,076 | IP6: 321,160 | IQ6: 170,296 | IR6: 80,890 | IS6: 56,294 | IT6: 40,069 | IU6: =38813+1+9 -> 38,823 | IV6: 35,175 | IW6: =46161+13+44 -> 46,218 | IX6: 109,223 | IY6: =162426+4 -> 162,430 | IZ6: 221,809 | JA6: =284515+31 -> 284,546 | JB6: 324,360 | JC6: =173992+29 -> 174,021 | JD6: 81,304 | JE6: 59,606 | JF6: 39,599 | JG6: 38,353 | JH6: 34,326 | JI6: 45,973 | JJ6: 110,361 | JK6: 187,070 | JL6: 194,929 | JM6: 277,518 | JN6: 310,599 | JO6: 172,516 | JP6: 85,706 | JQ6: 61,579 | JR6: =39181+4 -> 39,185 | JS6: 40,755 | JT6: 31,476 | JU6: 48,171 | JV6: =121128+4 -> 121,132 | JW6: =163460+2 -> 163,462 | JX6: =227213+3 -> 227,216 | JY6: =280908+167+35 -> 281,110 | JZ6: =331946-18+2223 -> 334,151 | KA6: 179,488 | KB6: 92,802 | KC6: 64,444 | KD6: 44,911 | KE6: 44,148 | KF6: 38,617 | KG6: 18,303 | KH6: 2,981 | KI6: 34,071 | KJ6: 161,713 | KK6: 292,110 | KL6: =354960+43 -> 355,003 | KM6: 226,201 | KN6: 83,156 | KO6: 17,151 | KP6: =11922+25 -> 11,947 | KQ6: 12,703 | KR6: 15,431 | KS6: 20,324 | KT6: 21,684 | KU6: =84410+10+53 -> 84,473 | KV6: 194,523 | KW6: 303,045 | KX6: =346476+9 -> 346,485 | KY6: 215,100 | KZ6: =106087+29 -> 106,116 | LA6: 45,902 | LB6: 28,190 | LC6: 35,526 | LD6: 34,075 | LE6: 41,791 | LF6: 108,689 | LG6: 169,259 | LH6: 218,202 | LI6: =260623+1603 -> 262,226 | LJ6: 292,819 | LK6: 172,941 | LL6: 100,456 | LM6: 62,979 | LN6: 48,320 | LO6: 46,601 | LP6: 43,522 | LQ6: 51,613 | LR6: 106552 | LS6: =SUM(LS7:LS42) -> 162,424 | LT6: 322,722 | LU6: 265,339 | LV6: 311,628 | LW6: 191,066 | LX6: 102,134 | LY6: 69,111 | LZ6: 51,952 | MA6: =SUM(MA7:MA42) -> 51,218 | MB6: =SUM(MB7:MB42) -> 48,511 | MC6: =SUM(MC7:MC42) -> 69,465 | MD6: =SUM(MD7:MD42) -> 105,732 | ME6: =SUM(ME7:ME42) -> 201,341 | MF6: =SUM(MF7:MF42) -> 311,255 | MG6: =SUM(MG7:MG42) -> 281,592 | MH6: =SUM(MH7:MH42) -> 320,689 | MI6: =SUM(MI7:MI42) -> 166,464 | MJ6: =SUM(MJ7:MJ42) -> 104,204 | MK6: =SUM(MK7:MK42) -> 77,564 | ML6: =SUM(ML7:ML42) -> 58,594
A7: 10701 | B7: Andau (ab 5/99) | AQ7: 881 | AR7: 1,047 | AS7: 4,522 | AT7: 4,346 | AU7: 596 | AV7: 34 | AW7: 0 | AX7: 0 | AY7: 0 | AZ7: 0 | BA7: 5 | BB7: 442 | BC7: 330 | BD7: 1,968 | BE7: 2,248 | BF7: 4,541 | BG7: 611 | BH7: 26 | BI7: 0 | BJ7: 0 | BK7: 0 | BL7: 0 | BM7: 0 | BN7: 262 | BO7: 666 | BP7: 1,326 | BQ7: 2,750 | BR7: 3,609 | BS7: 284 | BT7: 153 | BU7: 0 | BV7: 0 | BW7: 0 | BX7: 0 | BY7: 0 | BZ7: 102 | CA7: 1,334 | CB7: 787 | CC7: 1,966 | CD7: 3,753 | CE7: 473 | CF7: 35 | CG7: 12 | CH7: 0 | CI7: 0 | CJ7: 0 | CK7: 0 | CL7: 167 | CM7: 704 | CN7: 1,689 | CO7: 2,189 | CP7: 2,294 | CQ7: 509 | CR7: 118 | CS7: 8 | CT7: 0 | CU7: 0 | CV7: 0 | CW7: 0 | CX7: 38 | CY7: 638 | CZ7: 767 | DA7: 2,212 | DB7: 2,572 | DC7: 719 | DD7: 71 | DE7: 22 | DF7: 0 | DG7: 0 | DH7: 0 | DI7: 0 | DJ7: 64 | DK7: 1,330 | DL7: 690 | DM7: 2,229 | DN7: 2,458 | DO7: 633 | DP7: 91 | DQ7: 0 | DR7: 0 | DS7: 0 | DT7: 0 | DU7: 0 | DV7: 144 | DW7: 496 | DX7: 1,106 | DY7: 1,920 | DZ7: 2,700 | EA7: 614 | EB7: 94 | EC7: 0 | ED7: 0 | EE7: 0 | EF7: 0 | EG7: 2 | EH7: 367 | EI7: 498 | EJ7: 607 | EK7: 1,974 | EL7: 3,132 | EM7: 430 | EN7: 58 | EO7: 19 | EP7: 0 | EQ7: 0 | ER7: 0 | ES7: 0 | ET7: 46 | EU7: 868 | EV7: 592 | EW7: 1,607 | EX7: 2,579 | EY7: 491 | EZ7: 92 | FA7: 20 | FB7: 0 | FC7: 0 | FD7: 0 | FE7: 0 | FF7: 78 | FG7: 645 | FH7: 542 | FI7: 1,701 | FJ7: 3,029 | FK7: 367 | FL7: 32 | FM7: 4 | FN7: 0 | FO7: 0 | FP7: 0 | FQ7: 0 | FR7: 127 | FS7: 247 | FT7: 397 | FU7: 1,147 | FV7: 1,828 | FW7: 359 | FX7: 53 | FY7: 4 | FZ7: 0 | GA7: 0 | GB7: 0 | GC7: 4 | GD7: 83 | GE7: 406 | GF7: 1,381 | GG7: 1,543 | GH7: 2,979 | GI7: 869 | GJ7: 181 | GK7: 13 | GL7: 6 | GM7: 0 | GN7: 0 | GO7: 0 | GP7: 152 | GQ7: 757 | GR7: 693 | GS7: 1,275 | GT7: 2,789 | GU7: 654 | GV7: 70 | GW7: 13 | GX7: 0 | GY7: 0 | GZ7: 0 | HA7: 0 | HB7: 106 | HC7: 473 | HD7: 501 | HE7: 1,480 | HF7: 2,175 | HG7: 452 | HH7: 28 | HI7: 2 | HJ7: 0 | HK7: 0 | HL7: 0 | HM7: 0 | HN7: 91 | HO7: 469 | HP7: 960 | HQ7: 1,379 | HR7: 1,932 | HS7: 340 | HT7: 61 | HU7: 39 | HV7: 0 | HW7: 0 | HX7: 0 | HY7: 0 | HZ7: 62 | IA7: 434 | IB7: 892 | IC7: 1,174 | ID7: 1,752 | IE7: 473 | IF7: 69 | IG7: 15 | IH7: 0 | II7: 6 | IJ7: 42 | IK7: 19 | IL7: 138 | IM7: 615 | IN7: 656 | IO7: 1,687 | IP7: 2,586 | IQ7: 914 | IR7: 217 | IS7: 73 | IT7: 43 | IU7: 2 | IV7: 48 | IW7: 62 | IX7: 125 | IY7: 511 | IZ7: 1,071 | JA7: 2,025 | JB7: 2,536 | JC7: =580+21 -> 601 | JD7: 149 | JE7: 91 | JF7: 34 | JG7: 37 | JH7: 105 | JI7: 91 | JJ7: 308 | JK7: 912 | JL7: 811 | JM7: 2,423 | JN7: 2,905 | JO7: 991 | JP7: 257 | JQ7: 69 | JR7: 37 | JS7: 13 | JT7: 43 | JU7: 99 | JV7: 341 | JW7: 490 | JX7: 1,794 | JY7: 2,479 | JZ7: 4,072 | KA7: 940 | KB7: 321 | KC7: 87 | KD7: 60 | KE7: 57 | KF7: 69 | KG7: 0 | KH7: 8 | KI7: 4 | KJ7: 1,547 | KK7: 3,389 | KL7: 4,172 | KM7: 2,147 | KN7: 555 | KO7: 20 | KP7: 42 | KQ7: 0 | KR7: 15 | KS7: 32 | KT7: 22 | KU7: 528 | KV7: 2,099 | KW7: 3,407 | KX7: 3,986 | KY7: 1,933 | KZ7: 1,004 | LA7: 350 | LB7: 80 | LC7: 102 | LD7: 169 | LE7: 148 | LF7: 682 | LG7: 2,643 | LH7: 4,157 | LI7: 7,002 | LJ7: 9,493 | LK7: 5,566 | LL7: 5,787 | LM7: 4,164 | LN7: 3,178 | LO7: 4,201 | LP7: 3,483 | LQ7: 3,667 | LR7: 5,609 | LS7: 6,053 | LT7: 5,381 | LU7: 6,845 | LV7: 9,269 | LW7: 5,585 | LX7: 5,155 | LY7: 4,462 | LZ7: 3,640 | MA7: 4,075 | MB7: 4,097 | MC7: 4,674 | MD7: 4,032 | ME7: 7,475 | MF7: 6,290 | MG7: 7,756 | MH7: 9,752 | MI7: 5,059 | MJ7: 5,061 | MK7: 5,151 | ML7: 3,587
A8: 10702 | B8: Apetlon | C8: 0 | D8: 0 | E8: 0 | F8: 333 | G8: 2,167 | H8: 3,714 | I8: 5,318 | J8: 7,986 | K8: 2,562 | L8: 298 | M8: 0 | N8: 0 | O8: 0 | P8: 0 | Q8: 0 | R8: 34 | S8: 3,057 | T8: 2,394 | U8: 5,393 | V8: 7,199 | W8: 2,258 | X8: 246 | Y8: 0 | Z8: 0 | AA8: 0 | AB8: 0 | AC8: 0 | AD8: 829 | AE8: 2,740 | AF8: 2,964 | AG8: 4,654 | AH8: 7,408 | AI8: 1,348 | AJ8: 182 | AK8: 67 | AL8: 0 | AM8: 0 | AN8: 0 | AO8: 0 | AP8: 136 | AQ8: 3,066 | AR8: 2,619 | AS8: 6,357 | AT8: 6,986 | AU8: 1,936 | AV8: 117 | AW8: 0 | AX8: 47 | AY8: 0 | AZ8: 0 | BA8: 0 | BB8: 686 | BC8: 2,578 | BD8: 3,847 | BE8: 4,797 | BF8: 6,308 | BG8: 1,766 | BH8: 186 | BI8: 16 | BJ8: 0 | BK8: 0 | BL8: 12 | BM8: 0 | BN8: 318 | BO8: 3,191 | BP8: 3,275 | BQ8: 4,756 | BR8: 6,470 | BS8: 1,973 | BT8: 144 | BU8: 31 | BV8: 0 | BW8: 0 | BX8: 0 | BY8: 43 | BZ8: 725 | CA8: 3,128 | CB8: 2,649 | CC8: 5,478 | CD8: 6,527 | CE8: 1,646 | CF8: 117 | CG8: 150 | CH8: 34 | CI8: 34 | CJ8: 0 | CK8: 0 | CL8: 882 | CM8: 3,686 | CN8: 3,686 | CO8: 4,920 | CP8: 6,062 | CQ8: 1,031 | CR8: 565 | CS8: 116 | CT8: 7 | CU8: 0 | CV8: 0 | CW8: 16 | CX8: 907 | CY8: 2,870 | CZ8: 3,512 | DA8: 5,158 | DB8: 5,451 | DC8: 2,191 | DD8: 435 | DE8: 204 | DF8: 0 | DG8: 10 | DH8: 0 | DI8: 156 | DJ8: 467 | DK8: 3,385 | DL8: 2,788 | DM8: 4,634 | DN8: 4,797 | DO8: 1,604 | DP8: 292 | DQ8: 127 | DR8: 0 | DS8: 0 | DT8: 0 | DU8: 0 | DV8: 885 | DW8: 2,246 | DX8: 3,059 | DY8: 3,617 | DZ8: 4,088 | EA8: 1,498 | EB8: 112 | EC8: 192 | ED8: 46 | EE8: 0 | EF8: 0 | EG8: 0 | EH8: 820 | EI8: 2,927 | EJ8: 2,432 | EK8: 4,405 | EL8: 4,357 | EM8: 1,520 | EN8: 198 | EO8: 242 | EP8: 55 | EQ8: 14 | ER8: 0 | ES8: 34 | ET8: 325 | EU8: 2,537 | EV8: 2,431 | EW8: 3,976 | EX8: 5,180 | EY8: 1,788 | EZ8: 414 | FA8: 366 | FB8: 84 | FC8: 273 | FD8: 143 | FE8: 203 | FF8: 1,134 | FG8: 2,978 | FH8: 2,460 | FI8: 4,218 | FJ8: 5,407 | FK8: 2,359 | FL8: 746 | FM8: 491 | FN8: 112 | FO8: 60 | FP8: 39 | FQ8: 150 | FR8: 1,128 | FS8: 2,916 | FT8: 2,325 | FU8: 4,074 | FV8: 5,537 | FW8: 2,270 | FX8: 660 | FY8: 410 | FZ8: 58 | GA8: 77 | GB8: 9 | GC8: 44 | GD8: 895 | GE8: 1,568 | GF8: 3,193 | GG8: 3,841 | GH8: 5,022 | GI8: 1,928 | GJ8: 645 | GK8: 711 | GL8: 58 | GM8: 19 | GN8: 22 | GO8: 24 | GP8: 1,098 | GQ8: 2,272 | GR8: 1,896 | GS8: 3,299 | GT8: 5,096 | GU8: 1,934 | GV8: 485 | GW8: 766 | GX8: 38 | GY8: 45 | GZ8: 26 | HA8: 147 | HB8: 685 | HC8: 2,738 | HD8: 1,904 | HE8: 3,440 | HF8: 5,640 | HG8: 1,871 | HH8: 483 | HI8: 749 | HJ8: 54 | HK8: 30 | HL8: 0 | HM8: 77 | HN8: 1,030 | HO8: 2,084 | HP8: 2,509 | HQ8: 3,550 | HR8: 4,960 | HS8: 1,835 | HT8: 651 | HU8: 746 | HV8: 32 | HW8: 0 | HX8: 73 | HY8: 78 | HZ8: 710 | IA8: 2,190 | IB8: 2,198 | IC8: 3,542 | ID8: 4,214 | IE8: 1,592 | IF8: 749 | IG8: 736 | IH8: 220 | II8: 56 | IJ8: 0 | IK8: 229 | IL8: 649 | IM8: 2,847 | IN8: 1,870 | IO8: 3,542 | IP8: 4,841 | IQ8: 1,685 | IR8: 257 | IS8: 577 | IT8: 0 | IU8: 204 | IV8: 243 | IW8: 416 | IX8: 1,649 | IY8: 2,090 | IZ8: 2,744 | JA8: 3,764 | JB8: 4,463 | JC8: 1,632 | JD8: 427 | JE8: 724 | JF8: 110 | JG8: 167 | JH8: 19 | JI8: 69 | JJ8: 1,034 | JK8: 2,255 | JL8: 1,908 | JM8: 3,920 | JN8: 4,497 | JO8: 1,387 | JP8: 614 | JQ8: 541 | JR8: 65 | JS8: 112 | JT8: 28 | JU8: 113 | JV8: 1,001 | JW8: 1,695 | JX8: 2,594 | JY8: =3669+167 -> 3,836 | JZ8: 5,161 | KA8: 1,686 | KB8: 754 | KC8: 715 | KD8: 154 | KE8: 253 | KF8: 114 | KG8: 25 | KH8: 0 | KI8: 217 | KJ8: 2,323 | KK8: 4,508 | KL8: 5,497 | KM8: 3,098 | KN8: 758 | KO8: 142 | KP8: 154 | KQ8: 159 | KR8: 99 | KS8: 72 | KT8: 93 | KU8: 804 | KV8: 2,256 | KW8: 4,298 | KX8: 5,110 | KY8: 2,467 | KZ8: 962 | LA8: 528 | LB8: 22 | LC8: 60 | LD8: 51 | LE8: 242 | LF8: 1,105 | LG8: 1,948 | LH8: 2,484 | LI8: 3,076 | LJ8: 4,049 | LK8: 1,609 | LL8: 802 | LM8: 514 | LN8: 50 | LO8: 32 | LP8: 25 | LQ8: 152 | LR8: 928 | LS8: 1,597 | LT8: 1,822 | LU8: 2,537 | LV8: 3,356 | LW8: 1,863 | LX8: 550 | LY8: 676 | LZ8: 56 | MA8: 93 | MB8: 25 | MC8: 265 | MD8: 934 | ME8: 1,894 | MF8: 1,380 | MG8: 2,679 | MH8: 3,273 | MI8: 1,274 | MJ8: 437 | MK8: 598 | ML8: 42
A9: 10301 | B9: Breitenbrunn | C9: 68 | D9: 148 | E9: 289 | F9: 525 | G9: 2,412 | H9: 2,077 | I9: 5,344 | J9: 5,740 | K9: 1,452 | L9: 684 | M9: 388 | N9: 319 | O9: 82 | P9: 130 | Q9: 295 | R9: 348 | S9: 2,158 | T9: 2,047 | U9: 3,715 | V9: 5,241 | W9: 1,464 | X9: 667 | Y9: 204 | Z9: 156 | AA9: 0 | AB9: 120 | AC9: 43 | AD9: 449 | AE9: 1,756 | AF9: 2,807 | AG9: 3,867 | AH9: 6,699 | AI9: 1,953 | AJ9: 579 | AK9: 58 | AL9: 92 | AM9: 141 | AN9: 20 | AO9: 116 | AP9: 235 | AQ9: 1,833 | AR9: 2,000 | AS9: 3,842 | AT9: 7,994 | AU9: 1,850 | AV9: 597 | AW9: 53 | AX9: 97 | AY9: 99 | AZ9: 28 | BA9: 91 | BB9: 599 | BC9: 1,132 | BD9: 2,855 | BE9: 4,123 | BF9: 8,299 | BG9: 1,501 | BH9: 458 | BI9: 113 | BJ9: 35 | BK9: 0 | BL9: 41 | BM9: 114 | BN9: 348 | BO9: 762 | BP9: 2,852 | BQ9: 3,901 | BR9: 7,314 | BS9: 812 | BT9: 406 | BU9: 103 | BV9: 74 | BW9: 65 | BX9: 112 | BY9: 355 | BZ9: 493 | CA9: 2,733 | CB9: 2,010 | CC9: 5,157 | CD9: 6,568 | CE9: 1,769 | CF9: 339 | CG9: 123 | CH9: 157 | CI9: 77 | CJ9: 77 | CK9: 65 | CL9: 944 | CM9: 2,090 | CN9: 2,731 | CO9: 4,652 | CP9: 5,483 | CQ9: 2,071 | CR9: 375 | CS9: 370 | CT9: 445 | CU9: 0 | CV9: 160 | CW9: 43 | CX9: 894 | CY9: 1,472 | CZ9: 1,928 | DA9: 3,724 | DB9: 6,806 | DC9: 2,063 | DD9: 499 | DE9: 253 | DF9: 82 | DG9: 0 | DH9: 330 | DI9: 137 | DJ9: 155 | DK9: 2,437 | DL9: 1,834 | DM9: 4,578 | DN9: 5,087 | DO9: 2,061 | DP9: 501 | DQ9: 214 | DR9: 0 | DS9: 62 | DT9: 120 | DU9: 65 | DV9: 393 | DW9: 2,109 | DX9: 2,628 | DY9: 4,144 | DZ9: 4,888 | EA9: 1,775 | EB9: 572 | EC9: 325 | ED9: 68 | EE9: 0 | EF9: 136 | EG9: 224 | EH9: 786 | EI9: 1,849 | EJ9: 2,282 | EK9: 3,849 | EL9: 6,297 | EM9: 1,320 | EN9: 523 | EO9: 319 | EP9: 117 | EQ9: 289 | ER9: 59 | ES9: 199 | ET9: 216 | EU9: 2,268 | EV9: 1,834 | EW9: 4,042 | EX9: 5,702 | EY9: 1,319 | EZ9: 517 | FA9: 286 | FB9: 131 | FC9: 44 | FD9: 138 | FE9: 181 | FF9: 464 | FG9: 1,489 | FH9: 1,901 | FI9: 4,404 | FJ9: 5,600 | FK9: 1,319 | FL9: 577 | FM9: 391 | FN9: 102 | FO9: 65 | FP9: 27 | FQ9: 133 | FR9: 257 | FS9: 1,362 | FT9: 1,678 | FU9: 4,333 | FV9: 5,599 | FW9: 1,476 | FX9: 356 | FY9: 373 | FZ9: 117 | GA9: 100 | GB9: 79 | GC9: 58 | GD9: 615 | GE9: 1,034 | GF9: 2,856 | GG9: =3330+43 -> 3,373 | GH9: 6,088 | GI9: 1,709 | GJ9: 248 | GK9: 347 | GL9: 103 | GM9: 65 | GN9: 67 | GO9: 211 | GP9: 634 | GQ9: 1,421 | GR9: 2,175 | GS9: 3,754 | GT9: 6,724 | GU9: 1,535 | GV9: 259 | GW9: 350 | GX9: 117 | GY9: 172 | GZ9: 13 | HA9: 122 | HB9: 246 | HC9: 1,774 | HD9: 1,605 | HE9: 4,428 | HF9: 5,357 | HG9: 1,248 | HH9: 327 | HI9: 366 | HJ9: 218 | HK9: 149 | HL9: 90 | HM9: 47 | HN9: 473 | HO9: 999 | HP9: 2,632 | HQ9: 3,514 | HR9: 4,368 | HS9: 912 | HT9: 184 | HU9: 304 | HV9: 68 | HW9: =76+19 -> 95 | HX9: 6 | HY9: 88 | HZ9: 294 | IA9: 877 | IB9: 2,132 | IC9: 3,974 | ID9: 4,008 | IE9: 1,053 | IF9: 196 | IG9: 233 | IH9: 50 | II9: 35 | IJ9: 23 | IK9: 46 | IL9: 245 | IM9: 1,640 | IN9: 1,314 | IO9: 3,872 | IP9: 4,329 | IQ9: 1,200 | IR9: 330 | IS9: 229 | IT9: 56 | IU9: 52 | IV9: 14 | IW9: 43 | IX9: 371 | IY9: 1,274 | IZ9: 2,501 | JA9: 4,460 | JB9: 4,996 | JC9: 1,073 | JD9: 247 | JE9: 194 | JF9: 24 | JG9: 116 | JH9: 12 | JI9: 28 | JJ9: 454 | JK9: 873 | JL9: 1,617 | JM9: 3,910 | JN9: 3,843 | JO9: 903 | JP9: 391 | JQ9: 228 | JR9: 170 | JS9: 92 | JT9: 50 | JU9: 62 | JV9: 483 | JW9: 818 | JX9: 3,079 | JY9: 4,154 | JZ9: 5,855 | KA9: 1,061 | KB9: 419 | KC9: 218 | KD9: 125 | KE9: 66 | KF9: 42 | KG9: 14 | KH9: 4 | KI9: 209 | KJ9: 1,958 | KK9: 5,142 | KL9: 6,418 | KM9: 2,950 | KN9: 586 | KO9: 6 | KP9: 10 | KQ9: 4 | KR9: 124 | KS9: 174 | KT9: 181 | KU9: 972 | KV9: 2,652 | KW9: 4,305 | KX9: 5,427 | KY9: 2,122 | KZ9: 840 | LA9: 158 | LB9: 65 | LC9: 64 | LD9: 71 | LE9: 62 | LF9: 580 | LG9: 1,650 | LH9: 3,405 | LI9: 4,234 | LJ9: 4,090 | LK9: 1,137 | LL9: 404 | LM9: 166 | LN9: 163 | LO9: 50 | LP9: 37 | LQ9: 129 | LR9: 365 | LS9: 1,063 | LT9: 1,492 | LU9: 3,470 | LV9: 4,579 | LW9: 1,851 | LX9: 416 | LY9: 216 | LZ9: 57 | MA9: 24 | MB9: 34 | MC9: 60 | MD9: 494 | ME9: 2,070 | MF9: 2,021 | MG9: 3,274 | MH9: 4,135 | MI9: 1,123 | MJ9: 494 | MK9: 339 | ML9: 212
A10: 10703 | B10: Bruckneudorf | C10: 306 | D10: 278 | E10: 142 | F10: 904 | G10: 1,386 | H10: 1,350 | I10: 1,826 | J10: 1,632 | K10: 1,170 | L10: 917 | M10: 394 | N10: 267 | O10: 275 | P10: 142 | Q10: 252 | R10: 835 | S10: 1,374 | T10: 1,276 | U10: 1,157 | V10: 1,586 | W10: 1,534 | X10: 939 | Y10: 318 | Z10: 624 | AA10: 570 | AB10: 264 | AC10: 223 | AD10: 833 | AE10: 1,046 | AF10: 863 | AG10: 908 | AH10: 1,512 | AI10: 881 | AJ10: 802 | AK10: 355 | AL10: 261 | AM10: 149 | AN10: 243 | AO10: 279 | AP10: 798 | AQ10: 968 | AR10: 1,021 | AS10: 1,374 | AT10: 1,875 | AU10: 896 | AV10: 778 | AW10: 315 | AX10: 565 | AY10: 162 | AZ10: 150 | BA10: 617 | BB10: 747 | BC10: 849 | BD10: 984 | BE10: 1,088 | BF10: 1,408 | BG10: 917 | BH10: 730 | BI10: 328 | BJ10: 282 | BK10: 160 | BL10: 131 | BM10: 73 | BN10: 85 | BO10: 1,528 | BP10: 863 | BQ10: 829 | BR10: 1,288 | BS10: 1,114 | BT10: 672 | BU10: 347 | BV10: 206 | BW10: 147 | BX10: 72 | BY10: 147 | BZ10: 0 | CA10: 869 | CB10: 697 | CC10: 789 | CD10: 1,259 | CE10: 1,277 | CF10: 742 | CG10: 260 | CH10: 385 | CI10: 82 | CJ10: 74 | CK10: 113 | CL10: 582 | CM10: 664 | CN10: 757 | CO10: 679 | CP10: 1,228 | CQ10: 778 | CR10: 345 | CS10: 230 | CT10: 237 | CU10: 120 | CV10: 0 | CW10: 130 | CX10: 530 | CY10: 669 | CZ10: 496 | DA10: 469 | DB10: 1,734 | DC10: 373 | DD10: 320 | DE10: 311 | DF10: 138 | DG10: 192 | DH10: 0 | DI10: 211 | DJ10: 209 | DK10: 290 | DL10: 983 | DM10: 847 | DN10: 1,611 | DO10: 426 | DP10: 39 | DQ10: 408 | DR10: 260 | DS10: 230 | DT10: 241 | DU10: 490 | DV10: 446 | DW10: 786 | DX10: 400 | DY10: 770 | DZ10: 669 | EA10: 652 | EB10: 323 | EC10: 46 | ED10: 504 | EE10: 31 | EF10: 309 | EG10: 45 | EH10: 332 | EI10: 361 | EJ10: 565 | EK10: 944 | EL10: 709 | EM10: 596 | EN10: 1,000 | EO10: 313 | EP10: 54 | EQ10: 532 | ER10: 0 | ES10: 493 | ET10: 0 | EU10: =83+1017 -> 1,100 | EV10: 22 | EW10: 0 | EX10: 879 | EY10: 117 | EZ10: 0 | FA10: 199 | FB10: 167 | FC10: 133 | FD10: 5 | FE10: 0 | FF10: 30 | FG10: 93 | FH10: 44 | FI10: 105 | FJ10: 80 | FK10: 0 | FL10: 1,491 | FM10: 0 | FN10: 775 | FO10: 165 | FP10: 97 | FQ10: 233 | FR10: 450 | FS10: 464 | FT10: 0 | FU10: =747+354 -> 1,101 | FV10: 1,045 | FW10: 494 | FX10: 415 | FY10: 302 | FZ10: 665 | GA10: 338 | GB10: 298 | GC10: 288 | GD10: 327 | GE10: 832 | GF10: 592 | GG10: 756 | GH10: 834 | GI10: 0 | GJ10: =833+633 -> 1,466 | GK10: 0 | GL10: 961 | GM10: 312 | GN10: 125 | GO10: 402 | GP10: 485 | GQ10: 551 | GR10: 550 | GS10: 863 | GT10: 971 | GU10: 490 | GV10: 504 | GW10: 724 | GX10: 244 | GY10: 337 | GZ10: 109 | HA10: 212 | HB10: 317 | HC10: 346 | HD10: 0 | HE10: 0 | HF10: 731 | HG10: 404 | HH10: 536 | HI10: 292 | HJ10: 171 | HK10: 199 | HL10: 110 | HM10: 228 | HN10: 272 | HO10: 368 | HP10: 377 | HQ10: 490 | HR10: 570 | HS10: 399 | HT10: 338 | HU10: 266 | HV10: 175 | HW10: 242 | HX10: 95 | HY10: 186 | HZ10: 309 | IA10: 447 | IB10: 333 | IC10: 725 | ID10: 703 | IE10: 528 | IF10: 401 | IG10: 31 | IH10: 54 | II10: 0 | IJ10: 0 | IK10: 0 | IL10: 0 | IM10: 0 | IN10: 48 | IO10: 908 | IP10: 524 | IQ10: 354 | IR10: 301 | IS10: 308 | IT10: 299 | IU10: 254 | IV10: 132 | IW10: 324 | IX10: 500 | IY10: 373 | IZ10: 420 | JA10: 634 | JB10: 627 | JC10: 495 | JD10: 423 | JE10: 434 | JF10: 448 | JG10: 293 | JH10: 144 | JI10: 229 | JJ10: 408 | JK10: 0 | JL10: 618 | JM10: 804 | JN10: 910 | JO10: 1,571 | JP10: 668 | JQ10: 612 | JR10: 424 | JS10: 643 | JT10: 187 | JU10: 407 | JV10: 669 | JW10: 756 | JX10: 689 | JY10: 868 | JZ10: 52 | KA10: 1,779 | KB10: 566 | KC10: 531 | KD10: 362 | KE10: 26 | KF10: 296 | KG10: 0 | KH10: 0 | KI10: 0 | KJ10: 12 | KK10: 317 | KL10: 1,150 | KM10: 999 | KN10: 828 | KO10: 0 | KP10: 9 | KQ10: 0 | KR10: 0 | KS10: 0 | KT10: 0 | KU10: 0 | KV10: 551 | KW10: 1,138 | KX10: 1,217 | KY10: 928 | KZ10: 547 | LA10: 287 | LB10: 141 | LC10: 345 | LD10: 238 | LE10: 390 | LF10: 256 | LG10: 711 | LH10: 683 | LI10: 385 | LJ10: 573 | LK10: 208 | LL10: 368 | LM10: 327 | LN10: 166 | LO10: 18 | LP10: 19 | LQ10: 334 | LR10: 397 | LS10: 484 | LT10: 525 | LU10: 569 | LV10: 638 | LW10: 405 | LX10: 332 | LY10: 265 | LZ10: 206 | MA10: 196 | MB10: 211 | MC10: 342 | MD10: 492 | ME10: 398 | MF10: 569 | MG10: 562 | MH10: 627 | MI10: 1,135 | MJ10: 862 | MK10: 668 | ML10: 398
A11: 10302 | B11: Donnerskirchen | C11: 0 | D11: 24 | E11: 23 | F11: 246 | G11: 1,516 | H11: 1,644 | I11: 2,979 | J11: 3,545 | K11: 1,205 | L11: 618 | M11: 84 | N11: 5 | O11: 4 | P11: 0 | Q11: 0 | R11: 82 | S11: 1,542 | T11: 1,330 | U11: 2,150 | V11: 2,660 | W11: 1,103 | X11: 476 | Y11: 61 | Z11: 0 | AA11: 12 | AB11: 0 | AC11: 26 | AD11: 400 | AE11: 1,041 | AF11: 1,430 | AG11: 2,539 | AH11: 2,906 | AI11: 1,064 | AJ11: 436 | AK11: 79 | AL11: 0 | AM11: 0 | AN11: 0 | AO11: 75 | AP11: 493 | AQ11: 1,005 | AR11: 1,223 | AS11: 1,999 | AT11: 3,114 | AU11: 1,165 | AV11: 445 | AW11: 22 | AX11: 12 | AY11: 0 | AZ11: 56 | BA11: 56 | BB11: 395 | BC11: 575 | BD11: 1,467 | BE11: 2,270 | BF11: 3,307 | BG11: 875 | BH11: 432 | BI11: 37 | BJ11: 10 | BK11: 0 | BL11: 0 | BM11: 2 | BN11: 365 | BO11: 568 | BP11: 1,254 | BQ11: 2,516 | BR11: 2,753 | BS11: 763 | BT11: 233 | BU11: 0 | BV11: 8 | BW11: 0 | BX11: 0 | BY11: 40 | BZ11: 235 | CA11: 1,168 | CB11: 978 | CC11: 2,124 | CD11: 2,721 | CE11: 967 | CF11: 248 | CG11: 19 | CH11: 30 | CI11: 0 | CJ11: 0 | CK11: 0 | CL11: 194 | CM11: 693 | CN11: 1,656 | CO11: 2,330 | CP11: 3,121 | CQ11: 1,054 | CR11: 277 | CS11: 42 | CT11: 39 | CU11: 0 | CV11: 20 | CW11: 27 | CX11: 232 | CY11: 1,004 | CZ11: 1,280 | DA11: 2,771 | DB11: 3,155 | DC11: 1,084 | DD11: 583 | DE11: 118 | DF11: 23 | DG11: 28 | DH11: 94 | DI11: 36 | DJ11: 48 | DK11: 1,309 | DL11: 1,238 | DM11: 3,563 | DN11: 5,366 | DO11: 1,629 | DP11: 455 | DQ11: 346 | DR11: 195 | DS11: 100 | DT11: 346 | DU11: 144 | DV11: 523 | DW11: 1,180 | DX11: 1,806 | DY11: 3,221 | DZ11: 3,860 | EA11: 1,795 | EB11: 404 | EC11: 89 | ED11: 81 | EE11: 15 | EF11: 76 | EG11: 112 | EH11: 414 | EI11: 1,040 | EJ11: 1,593 | EK11: 2,952 | EL11: 4,198 | EM11: 1,814 | EN11: 685 | EO11: 382 | EP11: 212 | EQ11: 138 | ER11: 175 | ES11: 232 | ET11: 620 | EU11: 2,460 | EV11: 2,016 | EW11: =3697+1210 -> 4,907 | EX11: =3787+2034 -> 5,821 | EY11: 2,234 | EZ11: 1,169 | FA11: 540 | FB11: 485 | FC11: 561 | FD11: 350 | FE11: 467 | FF11: 556 | FG11: 1,928 | FH11: 2,003 | FI11: 4,482 | FJ11: 5,518 | FK11: 2,058 | FL11: 957 | FM11: 695 | FN11: 804 | FO11: 352 | FP11: 381 | FQ11: 431 | FR11: 694 | FS11: 1,482 | FT11: 2,237 | FU11: 3,914 | FV11: =4127+59 -> 4,186 | FW11: 1,100 | FX11: 392 | FY11: 202 | FZ11: 174 | GA11: 53 | GB11: 66 | GC11: 38 | GD11: 345 | GE11: 633 | GF11: 1,500 | GG11: 3,685 | GH11: 2,943 | GI11: 909 | GJ11: 327 | GK11: 166 | GL11: 34 | GM11: 93 | GN11: 41 | GO11: 44 | GP11: 331 | GQ11: 1,243 | GR11: 1,064 | GS11: 2,476 | GT11: 3,417 | GU11: 980 | GV11: 293 | GW11: 125 | GX11: 77 | GY11: 289 | GZ11: 124 | HA11: 42 | HB11: 279 | HC11: 975 | HD11: 738 | HE11: 3,490 | HF11: 4,047 | HG11: 1,740 | HH11: 980 | HI11: 295 | HJ11: =55+249 -> 304 | HK11: 210 | HL11: 305 | HM11: 145 | HN11: 230 | HO11: 1,128 | HP11: 1,893 | HQ11: 3,260 | HR11: 3,713 | HS11: 1,067 | HT11: 431 | HU11: 475 | HV11: 67 | HW11: 126 | HX11: =146+21 -> 167 | HY11: 260 | HZ11: 360 | IA11: 980 | IB11: 991 | IC11: 2,621 | ID11: 2,952 | IE11: 971 | IF11: 283 | IG11: 148 | IH11: 94 | II11: 35 | IJ11: 76 | IK11: 225 | IL11: 451 | IM11: 1,009 | IN11: 836 | IO11: 2,036 | IP11: 2,526 | IQ11: 956 | IR11: 338 | IS11: 246 | IT11: 220 | IU11: 89 | IV11: 255 | IW11: 331 | IX11: 410 | IY11: 629 | IZ11: 1,448 | JA11: 2,008 | JB11: 2,607 | JC11: 804 | JD11: 558 | JE11: 282 | JF11: 306 | JG11: 337 | JH11: 454 | JI11: 282 | JJ11: 526 | JK11: 1,064 | JL11: 1,311 | JM11: 1,861 | JN11: 2,013 | JO11: 1,493 | JP11: 548 | JQ11: 328 | JR11: 278 | JS11: 97 | JT11: 153 | JU11: 359 | JV11: 653 | JW11: 1,077 | JX11: 1,690 | JY11: 2,761 | JZ11: 2,936 | KA11: 1,088 | KB11: 704 | KC11: 1,026 | KD11: 878 | KE11: 549 | KF11: 434 | KG11: 352 | KH11: 169 | KI11: 74 | KJ11: 792 | KK11: 2,590 | KL11: 2,763 | KM11: 1,062 | KN11: 582 | KO11: 143 | KP11: 166 | KQ11: 78 | KR11: 255 | KS11: 247 | KT11: 318 | KU11: 680 | KV11: 1,271 | KW11: 2,526 | KX11: 2,631 | KY11: 1,288 | KZ11: 900 | LA11: 384 | LB11: 354 | LC11: 323 | LD11: 508 | LE11: 564 | LF11: 574 | LG11: 851 | LH11: 1,464 | LI11: 1,944 | LJ11: 2,158 | LK11: 1,360 | LL11: 633 | LM11: 345 | LN11: 228 | LO11: 197 | LP11: 373 | LQ11: 504 | LR11: 374 | LS11: 1,104 | LT11: 1,564 | LU11: 2,354 | LV11: 2,217 | LW11: 1,169 | LX11: 651 | LY11: 399 | LZ11: 323 | MA11: 376 | MB11: 383 | MC11: 445 | MD11: 435 | ME11: 1,441 | MF11: 1,566 | MG11: 2,960 | MH11: 2,518 | MI11: 971 | MJ11: 559 | MK11: 441 | ML11: 251
A12: 10101 | B12: Eisenstadt | C12: 1,007 | D12: 1,324 | E12: 1,514 | F12: 1,587 | G12: 3,611 | H12: 2,911 | I12: 4,037 | J12: 5,888 | K12: 4,340 | L12: 3,364 | M12: 2,115 | N12: 970 | O12: 858 | P12: 1,467 | Q12: 1,583 | R12: 2,382 | S12: 3,722 | T12: 2,991 | U12: 4,164 | V12: 5,922 | W12: 4,731 | X12: 3,554 | Y12: 2,665 | Z12: 1,373 | AA12: 1,481 | AB12: 1,405 | AC12: 2,337 | AD12: 2,868 | AE12: 3,766 | AF12: 4,495 | AG12: 4,898 | AH12: 7,562 | AI12: 6,269 | AJ12: 3,840 | AK12: 2,107 | AL12: 1,544 | AM12: 1,835 | AN12: 1,538 | AO12: 2,419 | AP12: 2,742 | AQ12: 4,710 | AR12: 4,864 | AS12: 5,372 | AT12: 7,539 | AU12: 5,401 | AV12: 3,884 | AW12: 2,430 | AX12: 2,307 | AY12: 1,682 | AZ12: 1,582 | BA12: 2,014 | BB12: 3,283 | BC12: 4,500 | BD12: 4,002 | BE12: 6,055 | BF12: 9,929 | BG12: 4,732 | BH12: 3,839 | BI12: 2,464 | BJ12: 1,845 | BK12: 1,758 | BL12: 1,638 | BM12: 3,184 | BN12: 2,930 | BO12: 4,888 | BP12: 6,045 | BQ12: 6,448 | BR12: 9,794 | BS12: 6,109 | BT12: 4,314 | BU12: 2,531 | BV12: 1,222 | BW12: 1,515 | BX12: 1,316 | BY12: 2,475 | BZ12: 3,236 | CA12: 5,235 | CB12: 4,471 | CC12: 7,375 | CD12: 8,921 | CE12: 5,317 | CF12: 3,587 | CG12: 2,469 | CH12: 1,425 | CI12: 1,599 | CJ12: 1,033 | CK12: 2,422 | CL12: 2,997 | CM12: 4,342 | CN12: 3,242 | CO12: 6,772 | CP12: 8,488 | CQ12: 7,243 | CR12: 3,729 | CS12: 2,409 | CT12: 1,623 | CU12: 1,075 | CV12: 998 | CW12: 2,092 | CX12: 2,540 | CY12: 4,231 | CZ12: 4,503 | DA12: 6,716 | DB12: 7,814 | DC12: 5,480 | DD12: 2,865 | DE12: 2,068 | DF12: 1,726 | DG12: 1,410 | DH12: 1,280 | DI12: 2,640 | DJ12: 2,952 | DK12: 4,854 | DL12: 4,874 | DM12: 6,777 | DN12: 9,450 | DO12: 5,919 | DP12: 3,843 | DQ12: 3,003 | DR12: 2,412 | DS12: 1,402 | DT12: 2,114 | DU12: 2,643 | DV12: 3,296 | DW12: 5,671 | DX12: 5,003 | DY12: 7,108 | DZ12: 7,593 | EA12: 6,371 | EB12: 5,195 | EC12: 3,247 | ED12: 2,925 | EE12: 1,737 | EF12: 1,759 | EG12: 3,063 | EH12: 4,525 | EI12: 5,543 | EJ12: 5,975 | EK12: 7,767 | EL12: 10,480 | EM12: 8,200 | EN12: 4,799 | EO12: 3,578 | EP12: 2,570 | EQ12: 1,903 | ER12: 1,804 | ES12: 2,835 | ET12: 3,431 | EU12: 4,773 | EV12: 5,885 | EW12: 7,870 | EX12: 9,685 | EY12: 6,591 | EZ12: 4,951 | FA12: 3,500 | FB12: 2,800 | FC12: 2,050 | FD12: 2,123 | FE12: 3,425 | FF12: 4,215 | FG12: 6,668 | FH12: 5,107 | FI12: 8,588 | FJ12: 9,436 | FK12: 7,984 | FL12: 5,439 | FM12: 3,772 | FN12: 2,948 | FO12: 2,270 | FP12: 1,901 | FQ12: 2,772 | FR12: 4,764 | FS12: 5,466 | FT12: 5,657 | FU12: 7,870 | FV12: 9,697 | FW12: 7,311 | FX12: 5,674 | FY12: 3,922 | FZ12: 2,609 | GA12: 1,985 | GB12: 2,511 | GC12: 3,722 | GD12: 4,042 | GE12: 6,931 | GF12: 6,007 | GG12: 7,500 | GH12: 9,186 | GI12: 6,833 | GJ12: 5,164 | GK12: 2,969 | GL12: 2,595 | GM12: 2,152 | GN12: 2,170 | GO12: 2,998 | GP12: 3,279 | GQ12: 4,816 | GR12: 4,951 | GS12: 6,485 | GT12: 8,472 | GU12: 5,575 | GV12: 4,842 | GW12: 3,271 | GX12: 2,834 | GY12: 1,652 | GZ12: 1,505 | HA12: 2,262 | HB12: 3,078 | HC12: 4,655 | HD12: 4,435 | HE12: 6,003 | HF12: 7,841 | HG12: 5,714 | HH12: 5,284 | HI12: 4,617 | HJ12: 3,490 | HK12: 2,234 | HL12: 3,514 | HM12: 3,914 | HN12: 3,669 | HO12: 5,653 | HP12: 6,154 | HQ12: 7,565 | HR12: 8,722 | HS12: 6,611 | HT12: 5,298 | HU12: 2,925 | HV12: 2,889 | HW12: 2,037 | HX12: 2,032 | HY12: 2,758 | HZ12: 3,712 | IA12: 6,552 | IB12: 4,862 | IC12: 7,910 | ID12: 7,828 | IE12: 6,570 | IF12: 4,768 | IG12: 3,573 | IH12: 3,079 | II12: 2,367 | IJ12: 1,953 | IK12: 2,810 | IL12: 3,022 | IM12: 4,419 | IN12: 5,427 | IO12: 7,287 | IP12: 7,554 | IQ12: 6,422 | IR12: 5,498 | IS12: 3,419 | IT12: 2,617 | IU12: =2346+1 -> 2,347 | IV12: 2,285 | IW12: =3582+13 -> 3,595 | IX12: 3,995 | IY12: =5478+4 -> 5,482 | IZ12: 5,046 | JA12: =7236+31 -> 7,267 | JB12: 7,941 | JC12: =5709+8 -> 5,717 | JD12: 4,786 | JE12: 3,275 | JF12: 2,904 | JG12: 2,244 | JH12: 2,305 | JI12: 2,879 | JJ12: 3,732 | JK12: 5,182 | JL12: 6,544 | JM12: 5,778 | JN12: 8,974 | JO12: 5,969 | JP12: 4,753 | JQ12: 4,328 | JR12: =3240+4 -> 3,244 | JS12: 2,801 | JT12: 2,431 | JU12: 3,380 | JV12: =4657+4 -> 4,661 | JW12: =5742+2 -> 5,744 | JX12: =6073+3 -> 6,076 | JY12: =9483+35 -> 9,518 | JZ12: =9383-18 -> 9,365 | KA12: 6,096 | KB12: 5,314 | KC12: 3,828 | KD12: 3,665 | KE12: 3,192 | KF12: 2,367 | KG12: 889 | KH12: 292 | KI12: 667 | KJ12: 1,635 | KK12: 3,808 | KL12: =3473+43 -> 3,516 | KM12: 3,460 | KN12: 2,071 | KO12: 793 | KP12: =391+25 -> 416 | KQ12: 482 | KR12: 692 | KS12: 1,181 | KT12: 913 | KU12: =1392+10 -> 1,402 | KV12: 2,329 | KW12: 7,560 | KX12: =7020+9 -> 7,029 | KY12: 3,859 | KZ12: =3677+29 -> 3,706 | LA12: 1,808 | LB12: 1,097 | LC12: 1,163 | LD12: 1,587 | LE12: 1,930 | LF12: 2,080 | LG12: 3,090 | LH12: 3,070 | LI12: 6,610 | LJ12: 4,723 | LK12: 3,793 | LL12: 3,160 | LM12: 1,880 | LN12: 2,700 | LO12: 2,005 | LP12: 1,824 | LQ12: 2,816 | LR12: 3,345 | LS12: 4,159 | LT12: 4,740 | LU12: 9,569 | LV12: 10,002 | LW12: 6,469 | LX12: 5,132 | LY12: 3,478 | LZ12: 3,266 | MA12: 3,223 | MB12: 2,798 | MC12: 3,817 | MD12: 3,683 | ME12: 6,163 | MF12: 4,640 | MG12: 9,890 | MH12: 10,046 | MI12: 5,253 | MJ12: 5,481 | MK12: 4,085 | ML12: 3,634
A13: 10705 | B13: Frauenkirchen | C13: 18 | D13: 24 | E13: 31 | F13: 18 | G13: 187 | H13: 499 | I13: 593 | J13: 1,600 | K13: 463 | L13: 38 | M13: 13 | N13: 17 | O13: 21 | P13: 23 | Q13: 14 | R13: 20 | S13: 300 | T13: 211 | U13: 650 | V13: 2,184 | W13: 200 | X13: 18 | Y13: 59 | Z13: 21 | AA13: 17 | AB13: 44 | AC13: 20 | AD13: 16 | AE13: 144 | AF13: 357 | AG13: 516 | AH13: 1,618 | AI13: 162 | AJ13: 6 | AK13: 7 | AL13: 25 | AM13: 7 | AN13: 17 | AO13: 8 | AP13: 18 | AQ13: 276 | AR13: 406 | AS13: 605 | AT13: 1,580 | AU13: 208 | AV13: 26 | AW13: 33 | AX13: 21 | AY13: 14 | AZ13: 13 | BA13: 9 | BB13: 19 | BC13: 130 | BD13: 678 | BE13: 439 | BF13: 1,421 | BG13: 236 | BH13: 0 | BI13: 18 | BJ13: 8 | BK13: 0 | BL13: 0 | BM13: 4 | BN13: 0 | BO13: 166 | BP13: 157 | BQ13: 430 | BR13: 1,204 | BS13: 129 | BT13: 47 | BU13: 11 | BV13: 6 | BW13: 5 | BX13: 0 | BY13: 12 | BZ13: 6 | CA13: 143 | CB13: 112 | CC13: 262 | CD13: 873 | CE13: 158 | CF13: 2 | CG13: 26 | CH13: 0 | CI13: 5 | CJ13: 3 | CK13: 0 | CL13: 3 | CM13: 95 | CN13: 301 | CO13: 326 | CP13: 749 | CQ13: 56 | CR13: 14 | CS13: 8 | CT13: 1 | CU13: 4 | CV13: 0 | CW13: 17 | CX13: 12 | CY13: 144 | CZ13: 104 | DA13: 160 | DB13: 1,262 | DC13: 173 | DD13: 26 | DE13: 44 | DF13: 32 | DG13: 7 | DH13: 19 | DI13: 112 | DJ13: 5 | DK13: 141 | DL13: 128 | DM13: 339 | DN13: 700 | DO13: 189 | DP13: 716 | DQ13: 11 | DR13: 33 | DS13: 0 | DT13: 25 | DU13: 5 | DV13: 49 | DW13: 156 | DX13: 383 | DY13: 700 | DZ13: 1,493 | EA13: 186 | EB13: 74 | EC13: 28 | ED13: 0 | EE13: 3 | EF13: 0 | EG13: 10 | EH13: 35 | EI13: 258 | EJ13: 254 | EK13: 392 | EL13: 1,376 | EM13: 153 | EN13: 32 | EO13: 15 | EP13: 0 | EQ13: 0 | ER13: 0 | ES13: 0 | ET13: 13 | EU13: 172 | EV13: 271 | EW13: 596 | EX13: 1,132 | EY13: 356 | EZ13: 20 | FA13: 11 | FB13: 1 | FC13: 0 | FD13: 7 | FE13: 0 | FF13: 0 | FG13: 344 | FH13: 434 | FI13: 601 | FJ13: 980 | FK13: 275 | FL13: 362 | FM13: 2,236 | FN13: 4,432 | FO13: 5,278 | FP13: 5,106 | FQ13: 5,392 | FR13: 5,114 | FS13: 5,322 | FT13: 4,906 | FU13: 5,706 | FV13: 10,752 | FW13: 5,057 | FX13: 5,843 | FY13: 3,431 | FZ13: 4,272 | GA13: 3,790 | GB13: 4,279 | GC13: 4,465 | GD13: 5,388 | GE13: 4,896 | GF13: 6,614 | GG13: 8,937 | GH13: 10,793 | GI13: 6,019 | GJ13: 5,990 | GK13: 5,736 | GL13: 5,709 | GM13: 5,221 | GN13: 4,616 | GO13: 4,120 | GP13: 5,701 | GQ13: 5,439 | GR13: 6,196 | GS13: 8,858 | GT13: 11,293 | GU13: 6,607 | GV13: 6,329 | GW13: 6,227 | GX13: 5,983 | GY13: 5,558 | GZ13: 5,722 | HA13: 6,855 | HB13: 5,319 | HC13: 6,449 | HD13: 5,830 | HE13: 8,386 | HF13: 10,717 | HG13: 6,177 | HH13: 6,146 | HI13: 6,415 | HJ13: 5,702 | HK13: 5,832 | HL13: 6,224 | HM13: 5,632 | HN13: 6,191 | HO13: 6,184 | HP13: 6,536 | HQ13: 7,688 | HR13: 11,003 | HS13: 6,969 | HT13: 6,623 | HU13: 7,165 | HV13: 8,481 | HW13: 6,937 | HX13: 7,923 | HY13: 7,806 | HZ13: 8,203 | IA13: 8,147 | IB13: 8,009 | IC13: 11,031 | ID13: 13,375 | IE13: 8,250 | IF13: 8,647 | IG13: 8,187 | IH13: 9,476 | II13: 8,539 | IJ13: 8,339 | IK13: 9,584 | IL13: 7,782 | IM13: 10,169 | IN13: 9,073 | IO13: 12,178 | IP13: 14,630 | IQ13: 9,464 | IR13: 9,014 | IS13: 9,565 | IT13: 9,440 | IU13: 8,927 | IV13: 8,858 | IW13: 7,790 | IX13: 9,541 | IY13: 8,885 | IZ13: 10,515 | JA13: 12,602 | JB13: 14,969 | JC13: 9,909 | JD13: 9,042 | JE13: 9,027 | JF13: 9,631 | JG13: 8,745 | JH13: 9,120 | JI13: 9,629 | JJ13: 8,495 | JK13: 9,539 | JL13: 9,170 | JM13: 13,421 | JN13: 14,574 | JO13: 9,522 | JP13: 9,107 | JQ13: 9,485 | JR13: 10,056 | JS13: 9,081 | JT13: 8,981 | JU13: 8,650 | JV13: 10,574 | JW13: 9,985 | JX13: 10,947 | JY13: 12,434 | JZ13: 15,383 | KA13: 9,836 | KB13: 10,183 | KC13: 10,267 | KD13: 10,794 | KE13: 9,342 | KF13: 10,160 | KG13: 3,032 | KH13: 10 | KI13: 1,043 | KJ13: 10,296 | KK13: 13,627 | KL13: 15,209 | KM13: 12,219 | KN13: 9,529 | KO13: 430 | KP13: 84 | KQ13: 28 | KR13: 79 | KS13: 110 | KT13: 120 | KU13: 4,563 | KV13: 11,576 | KW13: 14,711 | KX13: 15,615 | KY13: 12,079 | KZ13: 11,101 | LA13: 6,096 | LB13: 6,161 | LC13: 8,006 | LD13: 8,191 | LE13: 7,742 | LF13: 10,950 | LG13: 10,086 | LH13: 11,226 | LI13: =11307+1603 -> 12,910 | LJ13: 15,116 | LK13: 10,214 | LL13: 10,835 | LM13: 9,694 | LN13: 10,058 | LO13: 9,482 | LP13: 8,865 | LQ13: 8,951 | LR13: 10,654 | LS13: 9,542 | LT13: 9,529 | LU13: 12,237 | LV13: 14,729 | LW13: 10,783 | LX13: 9,702 | LY13: 9,338 | LZ13: 9,483 | MA13: 8,985 | MB13: 9,008 | MC13: 9,970 | MD13: 8,654 | ME13: 11,277 | MF13: 10,543 | MG13: 12,034 | MH13: 14,462 | MI13: 9,814 | MJ13: 10,495 | MK13: 10,166 | ML13: 9,955
A14: 10707 | B14: Gols | C14: 95 | D14: 74 | E14: 66 | F14: 395 | G14: 769 | H14: 1,006 | I14: 1,757 | J14: 3,070 | K14: 857 | L14: 799 | M14: 507 | N14: 126 | O14: 80 | P14: 50 | Q14: 132 | R14: 275 | S14: 1,307 | T14: 822 | U14: 1,304 | V14: 2,635 | W14: 1,129 | X14: 690 | Y14: 299 | Z14: 145 | AA14: 39 | AB14: 104 | AC14: 99 | AD14: 341 | AE14: 901 | AF14: 882 | AG14: 1,408 | AH14: 3,216 | AI14: 1,241 | AJ14: 914 | AK14: 471 | AL14: 159 | AM14: 143 | AN14: 94 | AO14: 105 | AP14: 404 | AQ14: 858 | AR14: 933 | AS14: 1,471 | AT14: 2,834 | AU14: 955 | AV14: 726 | AW14: 429 | AX14: 182 | AY14: 84 | AZ14: 96 | BA14: 15 | BB14: 297 | BC14: 698 | BD14: 1,559 | BE14: 1,794 | BF14: 3,975 | BG14: 1,609 | BH14: 794 | BI14: 522 | BJ14: 292 | BK14: 147 | BL14: 233 | BM14: 244 | BN14: 764 | BO14: 1,365 | BP14: 1,656 | BQ14: 2,686 | BR14: 3,868 | BS14: 1,483 | BT14: 1,038 | BU14: 836 | BV14: 411 | BW14: 217 | BX14: 139 | BY14: 205 | BZ14: 750 | CA14: 2,082 | CB14: 1,484 | CC14: 2,655 | CD14: 4,005 | CE14: 2,015 | CF14: 1,097 | CG14: 940 | CH14: 517 | CI14: 161 | CJ14: 194 | CK14: 233 | CL14: 904 | CM14: 1,391 | CN14: 1,672 | CO14: 2,312 | CP14: 3,820 | CQ14: 1,432 | CR14: 844 | CS14: 686 | CT14: 621 | CU14: 283 | CV14: 51 | CW14: 362 | CX14: 700 | CY14: 1,879 | CZ14: 1,642 | DA14: 2,450 | DB14: 3,763 | DC14: 1,925 | DD14: 1,095 | DE14: 1,087 | DF14: 350 | DG14: 263 | DH14: 121 | DI14: 202 | DJ14: 664 | DK14: 1,841 | DL14: 1,204 | DM14: 3,281 | DN14: 4,065 | DO14: 2,054 | DP14: 1,388 | DQ14: 728 | DR14: 156 | DS14: 300 | DT14: 338 | DU14: 846 | DV14: 886 | DW14: 2,074 | DX14: 2,342 | DY14: 3,403 | DZ14: 4,029 | EA14: 1,870 | EB14: 1,077 | EC14: 716 | ED14: 24 | EE14: 250 | EF14: 227 | EG14: 406 | EH14: 900 | EI14: 1,521 | EJ14: 1,988 | EK14: 2,643 | EL14: 3,757 | EM14: 2,245 | EN14: 1,599 | EO14: 1,104 | EP14: 0 | EQ14: 1,229 | ER14: 258 | ES14: 787 | ET14: 1,360 | EU14: 2,224 | EV14: 2,228 | EW14: 3,379 | EX14: 4,199 | EY14: 1,838 | EZ14: 1,298 | FA14: 892 | FB14: 298 | FC14: 300 | FD14: 336 | FE14: 189 | FF14: 1,028 | FG14: 2,019 | FH14: 2,049 | FI14: 3,591 | FJ14: 4,360 | FK14: 2,448 | FL14: 1,373 | FM14: 1,118 | FN14: 365 | FO14: 409 | FP14: 195 | FQ14: 566 | FR14: 1,133 | FS14: 1,683 | FT14: 1,583 | FU14: 2,715 | FV14: 3,403 | FW14: 2,230 | FX14: 1,382 | FY14: 999 | FZ14: 284 | GA14: 247 | GB14: 143 | GC14: 114 | GD14: 1,167 | GE14: 1,444 | GF14: 2,043 | GG14: 3,258 | GH14: 4,260 | GI14: 1,704 | GJ14: 655 | GK14: 1,103 | GL14: 293 | GM14: 375 | GN14: 294 | GO14: 390 | GP14: 973 | GQ14: 1,334 | GR14: 1,986 | GS14: 2,662 | GT14: 4,080 | GU14: 2,521 | GV14: 1,164 | GW14: 1,063 | GX14: 404 | GY14: 189 | GZ14: 222 | HA14: 251 | HB14: 1,343 | HC14: 1,825 | HD14: 2,042 | HE14: 2,920 | HF14: 4,074 | HG14: 1,803 | HH14: 818 | HI14: 1,091 | HJ14: 297 | HK14: 295 | HL14: 60 | HM14: 609 | HN14: 1,042 | HO14: 1,958 | HP14: 2,387 | HQ14: 3,139 | HR14: 4,232 | HS14: 2,012 | HT14: 1,473 | HU14: 1,074 | HV14: 271 | HW14: 310 | HX14: 234 | HY14: 566 | HZ14: 1,752 | IA14: 2,103 | IB14: 3,077 | IC14: 3,136 | ID14: 4,310 | IE14: 2,254 | IF14: 1,857 | IG14: 1,301 | IH14: 359 | II14: 402 | IJ14: 337 | IK14: 569 | IL14: 1,830 | IM14: 3,066 | IN14: 2,866 | IO14: 4,163 | IP14: 4,664 | IQ14: 2,869 | IR14: 2,052 | IS14: 3,407 | IT14: 2,140 | IU14: 576 | IV14: 668 | IW14: 1,929 | IX14: 2,138 | IY14: 2,774 | IZ14: 4,792 | JA14: 4,084 | JB14: 4,966 | JC14: 3,357 | JD14: 1,776 | JE14: 1,798 | JF14: 1,640 | JG14: 711 | JH14: 1,655 | JI14: 1,664 | JJ14: 2,831 | JK14: 3,661 | JL14: 3,123 | JM14: 3,837 | JN14: 4,728 | JO14: 2,729 | JP14: 1,851 | JQ14: 2,089 | JR14: 728 | JS14: 490 | JT14: 551 | JU14: 3,049 | JV14: 2,602 | JW14: 2,711 | JX14: 3,400 | JY14: 3,748 | JZ14: 4,418 | KA14: 3,448 | KB14: 2,337 | KC14: 2,134 | KD14: 743 | KE14: 723 | KF14: 645 | KG14: 210 | KH14: 296 | KI14: 819 | KJ14: 2,372 | KK14: 5,198 | KL14: 6,593 | KM14: 3,579 | KN14: 1,591 | KO14: 691 | KP14: 177 | KQ14: 224 | KR14: 967 | KS14: 427 | KT14: 450 | KU14: 1,070 | KV14: 3,077 | KW14: 4,640 | KX14: 6,223 | KY14: 3,731 | KZ14: 2,497 | LA14: 1,337 | LB14: 248 | LC14: 662 | LD14: 635 | LE14: 976 | LF14: 2,045 | LG14: 3,127 | LH14: 3,646 | LI14: 3,646 | LJ14: 5,065 | LK14: 3,748 | LL14: 2,595 | LM14: 2,148 | LN14: 715 | LO14: 681 | LP14: 815 | LQ14: 1,331 | LR14: 1,554 | LS14: 2,075 | LT14: 2,509 | LU14: 3,369 | LV14: 4,508 | LW14: 2,764 | LX14: 2,079 | LY14: 1,277 | LZ14: 457 | MA14: 496 | MB14: 642 | MC14: 987 | MD14: 1,920 | ME14: 3,161 | MF14: 3,445 | MG14: 4,489 | MH14: 5,272 | MI14: 3,140 | MJ14: 2,760 | MK14: 2,310 | ML14: 1,096
A15: 10708 | B15: Halbturn (bis 4/99) (ab 11/13) | C15: 10 | D15: 0 | E15: 14 | F15: 50 | G15: 88 | H15: 120 | I15: 45 | J15: 259 | K15: 14 | L15: 15 | M15: 45 | N15: 20 | O15: 0 | P15: 15 | Q15: 11 | R15: 0 | S15: 14 | T15: 26 | U15: 46 | V15: 147 | W15: 21 | X15: 0 | Y15: 25 | Z15: 24 | AA15: 0 | AB15: 0 | AC15: 0 | AD15: 11 | AE15: 4 | AF15: 6 | AG15: 48 | AH15: 279 | AI15: 182 | AJ15: 0 | AK15: 98 | AL15: 0 | AM15: 0 | AN15: 0 | AO15: 0 | AP15: 0 | AQ15: 0 | AR15: 0 | AS15: 0 | AT15: 0 | AU15: 0 | AV15: 0 | AW15: 0 | AX15: 0 | AY15: 0 | AZ15: 0 | BA15: 0 | BB15: 0 | HI15: 228 | HJ15: 47 | HK15: 77 | HL15: 20 | HM15: 119 | HN15: 270 | HO15: 333 | HP15: 390 | HQ15: 484 | HR15: 725 | HS15: 338 | HT15: 361 | HU15: 268 | HV15: 84 | HW15: 99 | HX15: 57 | HY15: 151 | HZ15: 93 | IA15: 302 | IB15: 346 | IC15: 371 | ID15: 619 | IE15: 367 | IF15: 271 | IG15: 202 | IH15: 79 | II15: 26 | IJ15: 58 | IK15: 106 | IL15: 181 | IM15: 341 | IN15: 286 | IO15: 423 | IP15: 514 | IQ15: 432 | IR15: 317 | IS15: 212 | IT15: 65 | IU15: 85 | IV15: 57 | IW15: 35 | IX15: 548 | IY15: 318 | IZ15: 310 | JA15: 234 | JB15: 340 | JC15: 346 | JD15: 186 | JE15: 251 | JF15: 60 | JG15: 38 | JH15: 25 | JI15: 20 | JJ15: 63 | JK15: 177 | JL15: 117 | JM15: 331 | JN15: 234 | JO15: 174 | JP15: 119 | JQ15: 58 | JR15: 72 | JS15: 153 | JT15: 227 | JU15: 240 | JV15: 557 | JW15: 546 | JX15: 650 | JY15: 741 | JZ15: 979 | KA15: 639 | KB15: 538 | KC15: 530 | KD15: 247 | KE15: 261 | KF15: 283 | KG15: 116 | KH15: 36 | KI15: 104 | KJ15: 842 | KK15: 1,303 | KL15: 1,406 | KM15: 1,188 | KN15: 985 | KO15: 113 | KP15: 59 | KQ15: 2 | KR15: 4 | KS15: 1 | KT15: 2 | KU15: 354 | KV15: 1,063 | KW15: 1,210 | KX15: 1,592 | KY15: 1,093 | KZ15: 977 | LA15: 542 | LB15: 27 | LC15: 534 | LD15: 610 | LE15: 357 | LF15: 780 | LG15: 872 | LH15: 818 | LI15: 859 | LJ15: 936 | LK15: 635 | LL15: 662 | LM15: 495 | LN15: 229 | LO15: 280 | LP15: 471 | LQ15: 284 | LR15: 607 | LS15: 475 | LT15: 610 | LU15: 456 | LV15: 766 | LW15: 622 | LX15: 552 | LY15: 640 | LZ15: 177 | MA15: 228 | MB15: 547 | MC15: 503 | MD15: 335 | ME15: 494 | MF15: 569 | MG15: 714 | MH15: 954 | MI15: 627 | MJ15: 707 | MK15: 650 | ML15: 341
A16: 10304 | B16: Hornstein (bis 4/99) (ab 11/15 bis 10/17) | C16: 0 | D16: 7 | E16: 31 | F16: 185 | G16: 162 | H16: 94 | I16: 75 | J16: 74 | K16: 148 | L16: 42 | M16: 0 | N16: 0 | O16: 0 | P16: 0 | Q16: 0 | R16: 94 | S16: 60 | T16: 52 | U16: 66 | V16: 113 | W16: 191 | X16: 45 | Y16: 0 | Z16: 0 | AA16: 22 | AB16: 23 | AC16: 21 | AD16: 53 | AE16: 105 | AF16: 83 | AG16: 146 | AH16: 177 | AI16: 174 | AJ16: 39 | AK16: 0 | AL16: 0 | AM16: 0 | AN16: 0 | AO16: 0 | AP16: 0 | AQ16: 0 | AR16: 0 | AS16: 0 | AT16: 0 | AU16: 0 | AV16: 0 | AW16: 0 | AX16: 0 | AY16: 0 | AZ16: 0 | BA16: 0 | BB16: 0 | IF16: 0 | IG16: 0 | IH16: 0 | II16: 0 | IJ16: 0 | IK16: 0 | IL16: 0 | IM16: 48 | IN16: 69 | IO16: 128 | IP16: 69 | IQ16: 108 | IR16: 0 | IS16: 0 | IT16: 0 | IU16: 0 | IV16: 0 | IW16: 0 | IX16: 0 | IY16: 90 | IZ16: 96 | JA16: 124 | JB16: 81 | JC16: 32 | JD16: 0 | JE16: 0 | JF16: 0 | JG16: 0 | JH16: 0 | JI16: 0 | JJ16: 0 | JK16: 0 | JL16: 0 | JM16: 0 | JN16: 0 | JO16: 0 | JP16: 0 | JQ16: 0 | MI16: 0 | MJ16: 0 | MK16: 0 | ML16: 0
A17: 10709 | B17: Illmitz | C17: 0 | D17: 0 | E17: 657 | F17: 4,282 | G17: 18,538 | H17: 15,586 | I17: 27,047 | J17: 38,479 | K17: 15,895 | L17: 6,885 | M17: 788 | N17: 391 | O17: 0 | P17: 0 | Q17: 797 | R17: 3,987 | S17: 21,092 | T17: 13,147 | U17: 24,815 | V17: 38,832 | W17: 16,704 | X17: 6,836 | Y17: 302 | Z17: 244 | AA17: 0 | AB17: 156 | AC17: 174 | AD17: 4,590 | AE17: 19,290 | AF17: 16,378 | AG17: 23,633 | AH17: 40,012 | AI17: 17,213 | AJ17: 6,960 | AK17: 771 | AL17: 154 | AM17: 0 | AN17: 191 | AO17: 324 | AP17: 3,917 | AQ17: 20,728 | AR17: 17,190 | AS17: 27,522 | AT17: 43,228 | AU17: 19,461 | AV17: 6,838 | AW17: 936 | AX17: 159 | AY17: 0 | AZ17: 0 | BA17: 651 | BB17: 6,160 | BC17: 17,329 | BD17: 22,551 | BE17: 29,458 | BF17: 48,090 | BG17: 20,778 | BH17: 4,438 | BI17: 2,510 | BJ17: 127 | BK17: 0 | BL17: 0 | BM17: 843 | BN17: 8,788 | BO17: 20,051 | BP17: 21,693 | BQ17: 33,786 | BR17: 46,127 | BS17: 19,541 | BT17: 6,753 | BU17: 2,553 | BV17: 114 | BW17: 0 | BX17: 0 | BY17: 1,039 | BZ17: 4,906 | CA17: 24,444 | CB17: 19,202 | CC17: 32,550 | CD17: 45,735 | CE17: 20,937 | CF17: 6,448 | CG17: 6,062 | CH17: 172 | CI17: 0 | CJ17: 0 | CK17: 540 | CL17: 6,523 | CM17: 20,988 | CN17: 23,652 | CO17: 29,329 | CP17: 42,199 | CQ17: 20,502 | CR17: 5,746 | CS17: 2,738 | CT17: =1414+2372 -> 3,786 | CU17: 0 | CV17: 0 | CW17: 1,491 | CX17: 6,950 | CY17: 20,586 | CZ17: 18,999 | DA17: 29,339 | DB17: 42,343 | DC17: 19,530 | DD17: 5,064 | DE17: 2,364 | DF17: 362 | DG17: 0 | DH17: 0 | DI17: 1,821 | DJ17: 4,151 | DK17: 23,843 | DL17: 16,716 | DM17: 29,418 | DN17: 41,435 | DO17: 20,622 | DP17: 5,938 | DQ17: 3,762 | DR17: 248 | DS17: 0 | DT17: 0 | DU17: 1,728 | DV17: 5,553 | DW17: 16,425 | DX17: 17,918 | DY17: 25,917 | DZ17: 37,393 | EA17: 20,797 | EB17: 5,933 | EC17: 4,068 | ED17: 573 | EE17: 450 | EF17: 443 | EG17: 716 | EH17: 7,052 | EI17: 17,769 | EJ17: 17,108 | EK17: 27,730 | EL17: 40,232 | EM17: 19,089 | EN17: 6,305 | EO17: 4,516 | EP17: 285 | EQ17: 473 | ER17: 541 | ES17: 897 | ET17: 6,062 | EU17: 23,913 | EV17: 16,611 | EW17: 28,101 | EX17: 40,462 | EY17: 18,951 | EZ17: 6,217 | FA17: 4,582 | FB17: 295 | FC17: 441 | FD17: 542 | FE17: 764 | FF17: 7,039 | FG17: 21,853 | FH17: 17,951 | FI17: 29,532 | FJ17: 41,018 | FK17: 21,125 | FL17: 6,721 | FM17: 5,134 | FN17: 264 | FO17: 495 | FP17: 426 | FQ17: 1,330 | FR17: 7,842 | FS17: 21,187 | FT17: 17,980 | FU17: 26,642 | FV17: 40,308 | FW17: 20,957 | FX17: 7,220 | FY17: 5,776 | FZ17: 381 | GA17: 438 | GB17: 402 | GC17: 1,066 | GD17: 9,051 | GE17: 18,248 | GF17: 21,134 | GG17: 26,730 | GH17: 39,998 | GI17: 20,034 | GJ17: 6,525 | GK17: 5,555 | GL17: 283 | GM17: 111 | GN17: 61 | GO17: 1,137 | GP17: 10,612 | GQ17: 20,403 | GR17: 18,428 | GS17: 24,888 | GT17: 40,694 | GU17: 21,345 | GV17: 6,823 | GW17: 5,943 | GX17: 617 | GY17: 299 | GZ17: 368 | HA17: 1,203 | HB17: 8,508 | HC17: 20,366 | HD17: 17,341 | HE17: 24,737 | HF17: 36,068 | HG17: 18,961 | HH17: 6,011 | HI17: 6,115 | HJ17: 443 | HK17: 491 | HL17: 434 | HM17: 1,051 | HN17: 9,992 | HO17: 18,593 | HP17: 20,153 | HQ17: 24,640 | HR17: 35,077 | HS17: 16,422 | HT17: 5,616 | HU17: 5,745 | HV17: 325 | HW17: 404 | HX17: 347 | HY17: 1,055 | HZ17: 9,238 | IA17: 18,850 | IB17: 17,292 | IC17: 25,558 | ID17: 33,187 | IE17: 18,152 | IF17: 6,045 | IG17: 6,015 | IH17: 281 | II17: 488 | IJ17: 337 | IK17: 1,163 | IL17: 9,474 | IM17: 20,540 | IN17: 16,545 | IO17: 26,599 | IP17: 34,095 | IQ17: 19,584 | IR17: 6,902 | IS17: 5,901 | IT17: 389 | IU17: 397 | IV17: 340 | IW17: 3,073 | IX17: 9,841 | IY17: 18,305 | IZ17: 21,559 | JA17: 25,708 | JB17: 34,763 | JC17: 17,839 | JD17: 6,569 | JE17: 6,307 | JF17: 496 | JG17: 509 | JH17: 381 | JI17: 876 | JJ17: 12,286 | JK17: 20,109 | JL17: 18,709 | JM17: 24,851 | JN17: 31,132 | JO17: 18,515 | JP17: 6,911 | JQ17: 6,522 | JR17: 599 | JS17: 711 | JT17: 401 | JU17: 3,080 | JV17: 12,146 | JW17: 17,517 | JX17: 21,412 | JY17: 23,983 | JZ17: 32,929 | KA17: 18,642 | KB17: 6,877 | KC17: 6,725 | KD17: 506 | KE17: 662 | KF17: 647 | KG17: 334 | KH17: 114 | KI17: 1,950 | KJ17: 16,097 | KK17: 26,980 | KL17: 36,644 | KM17: 22,663 | KN17: 5,636 | KO17: 355 | KP17: 122 | KQ17: 93 | KR17: 82 | KS17: 113 | KT17: 50 | KU17: 6,003 | KV17: 18,237 | KW17: 26,805 | KX17: 33,922 | KY17: 22,007 | KZ17: 8,691 | LA17: 4,537 | LB17: 154 | LC17: 177 | LD17: 92 | LE17: 1,951 | LF17: 9,615 | LG17: 15,090 | LH17: 18,046 | LI17: 21,342 | LJ17: 26,204 | LK17: 14,227 | LL17: 4,936 | LM17: 4,924 | LN17: 349 | LO17: 187 | LP17: 512 | LQ17: 2,172 | LR17: 8,486 | LS17: 13,719 | LT17: 15,805 | LU17: 21,390 | LV17: 26,417 | LW17: 14,635 | LX17: 5,181 | LY17: 4,763 | LZ17: 497 | MA17: 711 | MB17: 318 | MC17: 1,563 | MD17: 9,230 | ME17: 16,982 | MF17: 13,546 | MG17: 19,572 | MH17: 23,670 | MI17: 12,413 | MJ17: 4,811 | MK17: 5,267 | ML17: 326
A18: 10710 | B18: Jois | C18: 0 | D18: 0 | E18: 61 | F18: 176 | G18: 5,665 | H18: 8,618 | I18: 4,937 | J18: 6,526 | K18: 2,235 | L18: 892 | M18: 194 | N18: 196 | O18: 221 | P18: 113 | Q18: 125 | R18: 822 | S18: 4,742 | T18: =7854-384 -> 7,470 | U18: 3,847 | V18: 4,701 | W18: 2,896 | X18: 1,249 | Y18: 361 | Z18: 75 | AA18: 10 | AB18: 8 | AC18: 142 | AD18: 350 | AE18: 6,915 | AF18: 6,119 | AG18: 6,149 | AH18: 7,450 | AI18: 2,254 | AJ18: 1,243 | AK18: 398 | AL18: 123 | AM18: 37 | AN18: 4 | AO18: 170 | AP18: 545 | AQ18: 4,818 | AR18: 9,825 | AS18: 5,475 | AT18: 8,394 | AU18: 2,024 | AV18: 1,353 | AW18: 433 | AX18: 640 | AY18: 267 | AZ18: 126 | BA18: 257 | BB18: 997 | BC18: 4,598 | BD18: 6,505 | BE18: 6,272 | BF18: 9,141 | BG18: 3,852 | BH18: 1,193 | BI18: 385 | BJ18: 90 | BK18: 216 | BL18: 130 | BM18: 138 | BN18: 367 | BO18: 5,676 | BP18: 6,435 | BQ18: 6,151 | BR18: 9,733 | BS18: 2,833 | BT18: 1,136 | BU18: 918 | BV18: 232 | BW18: 102 | BX18: 52 | BY18: 140 | BZ18: 1,045 | CA18: 3,914 | CB18: 5,394 | CC18: 6,735 | CD18: 10,714 | CE18: 3,649 | CF18: 788 | CG18: 644 | CH18: 141 | CI18: 63 | CJ18: 83 | CK18: 109 | CL18: 365 | CM18: 5,116 | CN18: 6,690 | CO18: 7,895 | CP18: 8,812 | CQ18: 2,731 | CR18: 1,287 | CS18: 998 | CT18: 87 | CU18: 5 | CV18: 6 | CW18: 181 | CX18: 1,139 | CY18: 4,142 | CZ18: 4,725 | DA18: 6,765 | DB18: 9,771 | DC18: 3,251 | DD18: 1,285 | DE18: 554 | DF18: 92 | DG18: 74 | DH18: 6 | DI18: 77 | DJ18: 1,133 | DK18: 3,753 | DL18: 5,924 | DM18: 5,671 | DN18: 8,033 | DO18: 2,698 | DP18: 1,016 | DQ18: 539 | DR18: 266 | DS18: 57 | DT18: 51 | DU18: 123 | DV18: 799 | DW18: 4,342 | DX18: 4,933 | DY18: 5,122 | DZ18: 6,722 | EA18: 2,788 | EB18: 1,317 | EC18: 670 | ED18: 51 | EE18: 8 | EF18: 14 | EG18: 147 | EH18: 587 | EI18: 2,331 | EJ18: 3,945 | EK18: 4,905 | EL18: 7,351 | EM18: 2,989 | EN18: 1,276 | EO18: 506 | EP18: 91 | EQ18: 86 | ER18: 108 | ES18: 52 | ET18: 363 | EU18: 3,469 | EV18: 3,984 | EW18: 6,378 | EX18: 7,842 | EY18: 2,821 | EZ18: 1,149 | FA18: 989 | FB18: 320 | FC18: 307 | FD18: 0 | FE18: 155 | FF18: 341 | FG18: 2,644 | FH18: 3,146 | FI18: 3,461 | FJ18: 5,998 | FK18: 2,433 | FL18: 869 | FM18: 693 | FN18: 71 | FO18: 202 | FP18: 0 | FQ18: 0 | FR18: 416 | FS18: 2,238 | FT18: 3,505 | FU18: 4,786 | FV18: 8,062 | FW18: 3,283 | FX18: 1,164 | FY18: 1,074 | FZ18: 139 | GA18: 73 | GB18: 62 | GC18: 445 | GD18: 683 | GE18: 1,923 | GF18: 4,205 | GG18: 4,565 | GH18: 6,997 | GI18: 2,491 | GJ18: 1,399 | GK18: 1,347 | GL18: 115 | GM18: 218 | GN18: 359 | GO18: 249 | GP18: 1,148 | GQ18: 2,807 | GR18: 3,895 | GS18: 4,941 | GT18: 8,036 | GU18: 3,695 | GV18: 1,692 | GW18: 1,394 | GX18: 228 | GY18: 272 | GZ18: 200 | HA18: 569 | HB18: 1,357 | HC18: 3,554 | HD18: 3,257 | HE18: 5,609 | HF18: 7,124 | HG18: 3,439 | HH18: 1,512 | HI18: 1,226 | HJ18: 86 | HK18: 295 | HL18: 285 | HM18: 454 | HN18: 1,260 | HO18: 3,093 | HP18: 3,232 | HQ18: 5,665 | HR18: 6,060 | HS18: 2,944 | HT18: 1,248 | HU18: 984 | HV18: 52 | HW18: 201 | HX18: 700 | HY18: 253 | HZ18: 1,127 | IA18: 3,355 | IB18: 3,404 | IC18: 6,038 | ID18: 6,173 | IE18: 3,438 | IF18: 1,979 | IG18: 1,285 | IH18: 190 | II18: 119 | IJ18: 558 | IK18: 825 | IL18: 1,806 | IM18: 3,722 | IN18: 3,343 | IO18: 6,092 | IP18: 6,177 | IQ18: 3,559 | IR18: 2,587 | IS18: 1,018 | IT18: 178 | IU18: 482 | IV18: 583 | IW18: 953 | IX18: 2,728 | IY18: 3,404 | IZ18: 4,942 | JA18: 6,268 | JB18: 7,067 | JC18: 4,024 | JD18: 2,570 | JE18: 1,809 | JF18: 398 | JG18: 548 | JH18: 489 | JI18: 944 | JJ18: 2,635 | JK18: 4,047 | JL18: 4,648 | JM18: 6,184 | JN18: 6,893 | JO18: 4,105 | JP18: 2,671 | JQ18: 2,215 | JR18: 670 | JS18: 673 | JT18: 676 | JU18: 1,307 | JV18: 2,771 | JW18: 4,383 | JX18: 4,988 | JY18: 6,579 | JZ18: 7,774 | KA18: 4,494 | KB18: 2,973 | KC18: 2,348 | KD18: 789 | KE18: 925 | KF18: 539 | KG18: 512 | KH18: 193 | KI18: 667 | KJ18: 4,095 | KK18: 5,970 | KL18: 7,799 | KM18: 5,402 | KN18: 2,715 | KO18: 301 | KP18: 191 | KQ18: 132 | KR18: 295 | KS18: 531 | KT18: 352 | KU18: 1,954 | KV18: 4,773 | KW18: 6,821 | KX18: 8,053 | KY18: 4,940 | KZ18: 3,928 | LA18: 1,376 | LB18: 233 | LC18: 465 | LD18: 545 | LE18: 685 | LF18: 3,024 | LG18: 4,125 | LH18: 4,966 | LI18: 6,279 | LJ18: 6,889 | LK18: 4,618 | LL18: 3,179 | LM18: 2,115 | LN18: 528 | LO18: 340 | LP18: 355 | LQ18: 971 | LR18: 3,095 | LS18: 3,792 | LT18: 4,620 | LU18: 6,369 | LV18: 7,229 | LW18: 4,078 | LX18: 2,484 | LY18: 1,885 | LZ18: 538 | MA18: 276 | MB18: 285 | MC18: 1,187 | MD18: 2,318 | ME18: 4,707 | MF18: 4,336 | MG18: 6,321 | MH18: 6,963 | MI18: 4,078 | MJ18: 2,904 | MK18: 1,838 | ML18: 561
A19: 10711 | B19: Kittsee (ab 11/09) | FM19: 149 | FN19: 74 | FO19: 23 | FP19: 47 | FQ19: 9 | FR19: 75 | FS19: 207 | FT19: 41 | FU19: 110 | FV19: 218 | FW19: 137 | FX19: 112 | FY19: 128 | FZ19: 93 | GA19: 11 | GB19: 192 | GC19: 172 | GD19: 117 | GE19: 161 | GF19: 85 | GG19: 115 | GH19: 147 | GI19: 153 | GJ19: 112 | GK19: 94 | GL19: 6 | GM19: 74 | GN19: 0 | GO19: 5 | GP19: 87 | GQ19: 154 | GR19: 226 | GS19: 385 | GT19: 276 | GU19: 452 | GV19: 357 | GW19: 357 | GX19: 284 | GY19: 1,624 | GZ19: 2,161 | HA19: 2,737 | HB19: 2,699 | HC19: 2,782 | HD19: 2,844 | HE19: 2,546 | HF19: 2,536 | HG19: 2,713 | HH19: 3,063 | HI19: 3,014 | HJ19: 2,205 | HK19: 2,291 | HL19: 2,376 | HM19: 2,591 | HN19: 2,810 | HO19: 2,874 | HP19: 2,748 | HQ19: 2,827 | HR19: 2,633 | HS19: 2,741 | HT19: 2,946 | HU19: 2,900 | HV19: 1,970 | HW19: 2,113 | HX19: 2,469 | HY19: 3,077 | HZ19: 2,863 | IA19: 3,103 | IB19: 3,023 | IC19: 3,038 | ID19: 2,990 | IE19: 3,298 | IF19: 3,375 | IG19: 3,002 | IH19: 1,932 | II19: 2,211 | IJ19: 2,562 | IK19: 3,136 | IL19: 3,039 | IM19: 3,080 | IN19: 3,162 | IO19: 3,143 | IP19: 3,208 | IQ19: 3,023 | IR19: 3,221 | IS19: 3,107 | IT19: 2,796 | IU19: 2,930 | IV19: 2,796 | IW19: 3,069 | IX19: 2,992 | IY19: 3,091 | IZ19: 3,079 | JA19: 3,167 | JB19: 3,203 | JC19: 3,078 | JD19: 3,080 | JE19: 2,987 | JF19: 2,496 | JG19: 2,862 | JH19: 2,703 | JI19: 3,198 | JJ19: 3,168 | JK19: 3,176 | JL19: 3,208 | JM19: 3,448 | JN19: 3,360 | JO19: 3,380 | JP19: 3,415 | JQ19: 3,254 | JR19: 2,758 | JS19: 2,997 | JT19: 2,948 | JU19: 3,359 | JV19: 3,269 | JW19: 3,322 | JX19: 3,103 | JY19: 3,509 | JZ19: 3,408 | KA19: 3,191 | KB19: 3,360 | KC19: 3,156 | KD19: 2,947 | KE19: 2,975 | KF19: 3,010 | KG19: 1,637 | KH19: 703 | KI19: 1,449 | KJ19: 2,061 | KK19: 2,651 | KL19: 2,839 | KM19: 2,853 | KN19: 3,121 | KO19: 2,782 | KP19: 2,352 | KQ19: 2,332 | KR19: 2,388 | KS19: 2,848 | KT19: 2,776 | KU19: 2,972 | KV19: 2,731 | KW19: 3,087 | KX19: 2,971 | KY19: 3,048 | KZ19: 3,072 | LA19: 2,943 | LB19: 3,006 | LC19: 2,977 | LD19: 2,726 | LE19: 1,372 | LF19: 2,946 | LG19: 3,228 | LH19: 3,071 | LI19: 2,916 | LJ19: 3,016 | LK19: 3,020 | LL19: 3,213 | LM19: 2,996 | LN19: 3,080 | LO19: 3,007 | LP19: 2,786 | LQ19: 3,026 | LR19: 3,914 | LS19: 4,856 | LT19: 3,480 | LU19: 3,309 | LV19: 3,227 | LW19: 3,050 | LX19: 3,280 | LY19: 3,124 | LZ19: 2,968 | MA19: 3,124 | MB19: 2,956 | MC19: 3,398 | MD19: 3,328 | ME19: 3,517 | MF19: 3,482 | MG19: 3,491 | MH19: 3,471 | MI19: 3,391 | MJ19: 3,485 | MK19: 3,336 | ML19: 2,779
A20: 10305 | B20: Klingenbach (ab11/15) | IF20: 0 | IG20: 444 | IH20: 248 | II20: 186 | IJ20: 248 | IK20: 236 | IL20: 239 | IM20: 437 | IN20: 340 | IO20: 934 | IP20: 788 | IQ20: 608 | IR20: 348 | IS20: 187 | IT20: 152 | IU20: 128 | IV20: 29 | IW20: 69 | IX20: 221 | IY20: 578 | IZ20: 687 | JA20: 618 | JB20: 728 | JC20: 550 | JD20: 387 | JE20: 197 | JF20: 206 | JG20: 72 | JH20: 221 | JI20: 172 | JJ20: 226 | JK20: 422 | JL20: 866 | JM20: 640 | JN20: 758 | JO20: 417 | JP20: 458 | JQ20: 305 | JR20: 151 | JS20: 82 | JT20: 99 | JU20: 312 | JV20: 451 | JW20: 640 | JX20: 677 | JY20: 989 | JZ20: 1,146 | KA20: 619 | KB20: 810 | KC20: 607 | KD20: 534 | KE20: 253 | KF20: 215 | KG20: 97 | KH20: 211 | KI20: 265 | KJ20: 696 | KK20: 1,098 | KL20: 1,669 | KM20: 967 | KN20: 619 | KO20: 100 | KP20: 110 | KQ20: 138 | KR20: 204 | KS20: 106 | KT20: 291 | KU20: 357 | KV20: 620 | KW20: 1,209 | KX20: 1,719 | KY20: 1,131 | KZ20: 947 | LA20: 203 | LB20: 61 | LC20: 83 | LD20: 143 | LE20: 341 | LF20: 510 | LG20: 875 | LH20: 958 | LI20: 1,263 | LJ20: 1,205 | LK20: 858 | LL20: 701 | LM20: 400 | LN20: 188 | LO20: 146 | LP20: 178 | LQ20: 288 | LR20: 535 | LS20: 460 | LT20: 464 | LU20: 1,277 | LV20: 1,145 | LW20: 769 | LX20: 593 | LY20: 545 | LZ20: 205 | MA20: 163 | MB20: 153 | MC20: 220 | MD20: 336 | ME20: 641 | MF20: 445 | MG20: 1,200 | MH20: 1,195 | MI20: 380 | MJ20: 565 | MK20: 419 | ML20: 191
A21: 10712 | B21: Mönchhof | C21: 4,203 | D21: 3,928 | E21: 4,002 | F21: 4,178 | G21: 4,254 | H21: 3,299 | I21: 3,355 | J21: 4,138 | K21: 4,671 | L21: 4,278 | M21: 3,477 | N21: 1,412 | O21: 4,599 | P21: 3,747 | Q21: 4,193 | R21: 4,725 | S21: 4,512 | T21: 3,504 | U21: 3,880 | V21: 4,403 | W21: 4,337 | X21: 3,724 | Y21: 3,823 | Z21: 1,488 | AA21: 4,242 | AB21: 3,191 | AC21: 3,663 | AD21: 4,127 | AE21: 4,291 | AF21: 3,463 | AG21: 3,630 | AH21: 3,739 | AI21: 4,042 | AJ21: 4,104 | AK21: 4,042 | AL21: 1,429 | AM21: 4,480 | AN21: 3,225 | AO21: 3,102 | AP21: 3,927 | AQ21: 3,712 | AR21: 2,863 | AS21: 3,248 | AT21: 3,263 | AU21: 3,419 | AV21: 3,796 | AW21: 3,519 | AX21: 1,268 | AY21: 3,830 | AZ21: 3,090 | BA21: 3,104 | BB21: 4,012 | BC21: 3,975 | BD21: 2,704 | BE21: 3,707 | BF21: 3,110 | BG21: 3,401 | BH21: 3,510 | BI21: 3,493 | BJ21: 1,584 | BK21: 3,682 | BL21: 3,147 | BM21: 3,173 | BN21: 3,960 | BO21: 3,871 | BP21: 2,228 | BQ21: 3,469 | BR21: 3,574 | BS21: 3,361 | BT21: 3,693 | BU21: 4,090 | BV21: 770 | BW21: 3,428 | BX21: 3,257 | BY21: 3,123 | BZ21: 3,885 | CA21: 2,877 | CB21: 2,491 | CC21: 3,306 | CD21: 3,612 | CE21: 3,312 | CF21: 3,584 | CG21: 3,546 | CH21: 767 | CI21: 3,770 | CJ21: 2,727 | CK21: 2,386 | CL21: 3,565 | CM21: 3,558 | CN21: 2,020 | CO21: 3,205 | CP21: 3,215 | CQ21: 3,527 | CR21: 3,189 | CS21: 3,642 | CT21: 781 | CU21: 3,712 | CV21: 2,549 | CW21: 2,389 | CX21: 3,130 | CY21: 3,137 | CZ21: 1,800 | DA21: 2,731 | DB21: 3,688 | DC21: 3,080 | DD21: 3,461 | DE21: 3,540 | DF21: 1,133 | DG21: 3,111 | DH21: 2,646 | DI21: 2,826 | DJ21: 3,032 | DK21: 2,820 | DL21: 1,428 | DM21: 3,491 | DN21: 4,392 | DO21: 3,519 | DP21: 3,688 | DQ21: 3,273 | DR21: 2,260 | DS21: 3,092 | DT21: 2,602 | DU21: 2,702 | DV21: 3,740 | DW21: 3,210 | DX21: 1,997 | DY21: 3,363 | DZ21: 3,409 | EA21: 3,407 | EB21: 3,517 | EC21: 3,344 | ED21: 2,324 | EE21: 2,850 | EF21: 2,751 | EG21: 2,725 | EH21: 3,579 | EI21: 3,325 | EJ21: 2,512 | EK21: 3,003 | EL21: 3,264 | EM21: 3,365 | EN21: 3,775 | EO21: 3,230 | EP21: 1,983 | EQ21: 2,516 | ER21: 3,142 | ES21: 2,473 | ET21: 2,985 | EU21: 2,993 | EV21: 2,312 | EW21: 2,913 | EX21: 2,959 | EY21: 2,856 | EZ21: 2,823 | FA21: 2,560 | FB21: 2,159 | FC21: 2,351 | FD21: 2,192 | FE21: 2,189 | FF21: 3,180 | FG21: 2,939 | FH21: 2,163 | FI21: 2,998 | FJ21: 3,033 | FK21: 3,004 | FL21: 2,734 | FM21: 2,633 | FN21: 1,712 | FO21: 2,079 | FP21: 1,712 | FQ21: 1,775 | FR21: 2,032 | FS21: 2,344 | FT21: 1,641 | FU21: 3,031 | FV21: 3,508 | FW21: 2,435 | FX21: 2,034 | FY21: 1,962 | FZ21: 1,764 | GA21: 1,888 | GB21: 1,671 | GC21: 2,143 | GD21: 2,588 | GE21: 2,341 | GF21: 1,947 | GG21: 2,982 | GH21: 3,226 | GI21: 2,285 | GJ21: 2,295 | GK21: 2,237 | GL21: 1,834 | GM21: 1,681 | GN21: 1,557 | GO21: 1,894 | GP21: 3,021 | GQ21: 3,451 | GR21: 3,269 | GS21: 3,448 | GT21: 3,590 | GU21: 2,996 | GV21: 3,276 | GW21: 2,842 | GX21: 2,079 | GY21: 2,847 | GZ21: 2,739 | HA21: 3,093 | HB21: 3,020 | HC21: 3,079 | HD21: 2,718 | HE21: 3,060 | HF21: 4,084 | HG21: 3,149 | HH21: 2,735 | HI21: 2,782 | HJ21: 1,936 | HK21: 2,374 | HL21: 2,483 | HM21: 2,408 | HN21: 3,095 | HO21: 3,028 | HP21: 3,051 | HQ21: 3,245 | HR21: 3,891 | HS21: 3,134 | HT21: 3,363 | HU21: 1,180 | HV21: 1,829 | HW21: 2,592 | HX21: 2,280 | HY21: 2,731 | HZ21: 3,261 | IA21: 3,462 | IB21: 2,981 | IC21: 3,082 | ID21: 3,607 | IE21: 2,725 | IF21: 3,206 | IG21: 2,271 | IH21: 2,054 | II21: 2,230 | IJ21: 2,197 | IK21: 2,724 | IL21: =2836+243 -> 3,079 | IM21: 3,406 | IN21: 2,875 | IO21: 3,633 | IP21: 4,140 | IQ21: 2,771 | IR21: 2,978 | IS21: 2,227 | IT21: 1,849 | IU21: 1,885 | IV21: 2,087 | IW21: 2,240 | IX21: 2,630 | IY21: 2,643 | IZ21: 2,761 | JA21: 3,328 | JB21: 3,400 | JC21: 2,497 | JD21: 2,547 | JE21: 2,222 | JF21: 1,987 | JG21: 423 | JH21: 203 | JI21: 137 | JJ21: 247 | JK21: 521 | JL21: 569 | JM21: 1,019 | JN21: 1,314 | JO21: 594 | JP21: 417 | JQ21: 189 | JR21: 145 | JS21: 234 | JT21: 153 | JU21: 219 | JV21: 1,933 | JW21: 2,084 | JX21: 1,360 | JY21: 1,922 | JZ21: 2,501 | KA21: 1,671 | KB21: 1,458 | KC21: 1,379 | KD21: 1,038 | KE21: 1,570 | KF21: 1,543 | KG21: 880 | KH21: 30 | KI21: 73 | KJ21: 422 | KK21: 1,159 | KL21: 2,170 | KM21: 2,027 | KN21: 1,721 | KO21: 1,456 | KP21: 783 | KQ21: 1,344 | KR21: 1,386 | KS21: 1,672 | KT21: 1,634 | KU21: 1,777 | KV21: 1,931 | KW21: 2,214 | KX21: 2,986 | KY21: 1,472 | KZ21: 1,567 | LA21: 1,536 | LB21: 1,025 | LC21: 1,488 | LD21: 1,266 | LE21: 1,884 | LF21: 1,898 | LG21: 1,678 | LH21: 1,435 | LI21: 1,483 | LJ21: 1,978 | LK21: 1,581 | LL21: 1,519 | LM21: 1,292 | LN21: 957 | LO21: 1,098 | LP21: 1,287 | LQ21: 1,674 | LR21: 1,671 | LS21: 1,264 | LT21: 1,115 | LU21: 1,327 | LV21: 2,083 | LW21: 1,047 | LX21: 1,341 | LY21: 1,052 | LZ21: 515 | MA21: 909 | MB21: 1,349 | MC21: 1,438 | MD21: 1,070 | ME21: 1,497 | MF21: 1,000 | MG21: 1,648 | MH21: 1,976 | MI21: 1,025 | MJ21: 1,544 | MK21: 1,527 | ML21: 815
A22: 10307 | B22: Mörbisch a. See | C22: 122 | D22: 4 | E22: 115 | F22: 2,220 | G22: 12,621 | H22: 15,519 | I22: 26,983 | J22: 36,066 | K22: 12,442 | L22: 6,322 | M22: 172 | N22: 992 | O22: 132 | P22: 0 | Q22: 382 | R22: 2,223 | S22: 13,401 | T22: 13,127 | U22: 24,063 | V22: 34,411 | W22: 12,735 | X22: 4,774 | Y22: 140 | Z22: 149 | AA22: 224 | AB22: 223 | AC22: 19 | AD22: 4,036 | AE22: 13,027 | AF22: 18,798 | AG22: 25,422 | AH22: 38,006 | AI22: 13,353 | AJ22: 5,133 | AK22: 182 | AL22: 184 | AM22: 580 | AN22: 18 | AO22: 453 | AP22: 3,157 | AQ22: 12,944 | AR22: 16,938 | AS22: 29,355 | AT22: 37,391 | AU22: 12,822 | AV22: 5,996 | AW22: 5 | AX22: 493 | AY22: 417 | AZ22: 0 | BA22: 295 | BB22: 4,479 | BC22: 16,147 | BD22: 18,478 | BE22: 28,605 | BF22: 37,857 | BG22: 12,113 | BH22: 3,714 | BI22: 63 | BJ22: 298 | BK22: 155 | BL22: 2 | BM22: 214 | BN22: 4,289 | BO22: 12,601 | BP22: 17,817 | BQ22: 31,511 | BR22: 39,130 | BS22: 12,566 | BT22: 6,554 | BU22: 1,051 | BV22: 567 | BW22: 147 | BX22: 10 | BY22: 111 | BZ22: 4,128 | CA22: 15,409 | CB22: 15,307 | CC22: 32,712 | CD22: 40,830 | CE22: 13,691 | CF22: 5,369 | CG22: 468 | CH22: 703 | CI22: 386 | CJ22: 56 | CK22: 238 | CL22: 4,878 | CM22: 11,971 | CN22: 18,278 | CO22: 32,153 | CP22: 37,514 | CQ22: 15,252 | CR22: 5,070 | CS22: 107 | CT22: 156 | CU22: 150 | CV22: 0 | CW22: 1,994 | CX22: 3,844 | CY22: 13,508 | CZ22: 14,636 | DA22: 28,214 | DB22: 39,205 | DC22: 13,855 | DD22: 5,488 | DE22: 103 | DF22: 124 | DG22: 109 | DH22: 0 | DI22: 422 | DJ22: 2,587 | DK22: 13,381 | DL22: 14,034 | DM22: 27,817 | DN22: 35,696 | DO22: 13,374 | DP22: 5,306 | DQ22: 220 | DR22: 8 | DS22: 0 | DT22: 57 | DU22: 52 | DV22: 3,126 | DW22: 9,392 | DX22: 13,041 | DY22: 25,817 | DZ22: 30,877 | EA22: 12,982 | EB22: 4,417 | EC22: 71 | ED22: 53 | EE22: 25 | EF22: 13 | EG22: 20 | EH22: 2,858 | EI22: 9,297 | EJ22: 13,593 | EK22: 28,762 | EL22: 33,385 | EM22: 12,690 | EN22: 2,668 | EO22: 197 | EP22: 329 | EQ22: 95 | ER22: 12 | ES22: 140 | ET22: 2,975 | EU22: 13,502 | EV22: 11,635 | EW22: 29,572 | EX22: 33,482 | EY22: 13,405 | EZ22: 5,386 | FA22: 92 | FB22: 17 | FC22: 21 | FD22: 4 | FE22: 25 | FF22: 3,246 | FG22: 11,729 | FH22: 15,058 | FI22: 29,480 | FJ22: 33,132 | FK22: 13,927 | FL22: 4,873 | FM22: 599 | FN22: 453 | FO22: 355 | FP22: 425 | FQ22: 128 | FR22: 2,670 | FS22: 9,569 | FT22: 13,369 | FU22: 25,438 | FV22: 31,768 | FW22: 11,670 | FX22: 3,946 | FY22: 60 | FZ22: 356 | GA22: 149 | GB22: 0 | GC22: 40 | GD22: 3,412 | GE22: 9,611 | GF22: 16,994 | GG22: 25,772 | GH22: 30,052 | GI22: 14,069 | GJ22: 4,538 | GK22: 70 | GL22: 80 | GM22: 43 | GN22: 40 | GO22: 108 | GP22: 3,797 | GQ22: 10,374 | GR22: 14,164 | GS22: 27,038 | GT22: 32,768 | GU22: 14,336 | GV22: 4,261 | GW22: 149 | GX22: 15 | GY22: 24 | GZ22: 11 | HA22: 292 | HB22: 2,382 | HC22: 11,907 | HD22: 13,673 | HE22: 27,338 | HF22: 29,733 | HG22: 12,626 | HH22: 3,726 | HI22: 155 | HJ22: 77 | HK22: 23 | HL22: 4 | HM22: 69 | HN22: =3040+16 -> 3,056 | HO22: 10,462 | HP22: =14395+89 -> 14,484 | HQ22: 27,802 | HR22: 28,557 | HS22: 12,444 | HT22: 3,331 | HU22: 326 | HV22: 90 | HW22: 83 | HX22: 54 | HY22: 137 | HZ22: 3,276 | IA22: 11,281 | IB22: 14,344 | IC22: 26,655 | ID22: =25749+99 -> 25,848 | IE22: 12,878 | IF22: 3,272 | IG22: 533 | IH22: 114 | II22: 102 | IJ22: 44 | IK22: 375 | IL22: 1,908 | IM22: 12,689 | IN22: 12,903 | IO22: 26,888 | IP22: 25,816 | IQ22: 14,042 | IR22: 3,537 | IS22: 590 | IT22: 78 | IU22: =124+9 -> 133 | IV22: 18 | IW22: =125+44 -> 169 | IX22: 4,074 | IY22: 10,416 | IZ22: 16,751 | JA22: 26,163 | JB22: 27,654 | JC22: 13,086 | JD22: 3,857 | JE22: 557 | JF22: 161 | JG22: 168 | JH22: 39 | JI22: 475 | JJ22: 4,555 | JK22: 13,203 | JL22: 15,141 | JM22: 25,945 | JN22: 27,682 | JO22: 12,997 | JP22: 4,288 | JQ22: 749 | JR22: 156 | JS22: 167 | JT22: 73 | JU22: 131 | JV22: 5,375 | JW22: 11,006 | JX22: 17,949 | JY22: 26,495 | JZ22: 28,893 | KA22: 14,480 | KB22: 4,482 | KC22: 827 | KD22: 145 | KE22: 202 | KF22: 42 | KG22: 31 | KH22: 1 | KI22: 1,008 | KJ22: 12,337 | KK22: 23,323 | KL22: 29,523 | KM22: 17,494 | KN22: 4,539 | KO22: 59 | KP22: 11 | KQ22: 33 | KR22: 36 | KS22: 47 | KT22: 65 | KU22: 4,255 | KV22: 15,395 | KW22: 26,279 | KX22: 29,428 | KY22: 18,365 | KZ22: 6,294 | LA22: 840 | LB22: 180 | LC22: 152 | LD22: 189 | LE22: 441 | LF22: 5,280 | LG22: 11,387 | LH22: 16,602 | LI22: 22,673 | LJ22: 22,978 | LK22: 11,370 | LL22: 4,165 | LM22: 653 | LN22: 293 | LO22: 279 | LP22: 225 | LQ22: 190 | LR22: 4,140 | LS22: 9,114 | LT22: 13,464 | LU22: 24,357 | LV22: 26,621 | LW22: 13,509 | LX22: 4,331 | LY22: 1,077 | LZ22: 219 | MA22: 151 | MB22: 207 | MC22: 850 | MD22: 3,838 | ME22: 11,330 | MF22: 11,807 | MG22: 24,900 | MH22: 23,976 | MI22: 10,421 | MJ22: 4,014 | MK22: 1,580 | ML22: 829
A23: 10713 | B23: Neusiedl a. See | C23: 1,693 | D23: 1,136 | E23: 3,544 | F23: 7,691 | G23: 13,554 | H23: 16,313 | I23: 14,888 | J23: 17,381 | K23: 10,498 | L23: 8,014 | M23: 3,014 | N23: 2,277 | O23: 1,823 | P23: 1,304 | Q23: 3,270 | R23: 6,088 | S23: 13,299 | T23: 12,258 | U23: 12,690 | V23: 16,653 | W23: 9,208 | X23: 6,086 | Y23: 2,926 | Z23: 2,599 | AA23: 1,954 | AB23: 1,732 | AC23: 3,263 | AD23: 5,279 | AE23: 12,430 | AF23: 12,459 | AG23: 13,081 | AH23: 18,119 | AI23: 9,041 | AJ23: 5,733 | AK23: 2,777 | AL23: 2,050 | AM23: 1,830 | AN23: 1,345 | AO23: 3,234 | AP23: 5,924 | AQ23: 11,675 | AR23: 13,238 | AS23: 12,971 | AT23: 17,779 | AU23: 8,924 | AV23: 4,674 | AW23: 2,649 | AX23: 2,546 | AY23: 2,042 | AZ23: 1,679 | BA23: 3,429 | BB23: 6,065 | BC23: 11,176 | BD23: 12,154 | BE23: 13,489 | BF23: 17,644 | BG23: 9,138 | BH23: 5,939 | BI23: 4,254 | BJ23: 2,704 | BK23: 2,869 | BL23: 2,980 | BM23: 4,278 | BN23: 7,255 | BO23: 10,706 | BP23: 13,584 | BQ23: 14,436 | BR23: 18,724 | BS23: 8,507 | BT23: 6,511 | BU23: 4,256 | BV23: 2,257 | BW23: 3,621 | BX23: 2,669 | BY23: 4,690 | BZ23: 6,985 | CA23: 11,917 | CB23: 12,009 | CC23: 14,576 | CD23: 17,753 | CE23: 11,170 | CF23: 6,724 | CG23: 3,859 | CH23: 2,071 | CI23: 2,739 | CJ23: 2,039 | CK23: 3,874 | CL23: 6,666 | CM23: 11,701 | CN23: 12,172 | CO23: 13,665 | CP23: 16,631 | CQ23: 8,807 | CR23: 5,631 | CS23: 4,539 | CT23: 3,052 | CU23: 3,174 | CV23: 2,765 | CW23: 4,673 | CX23: 7,020 | CY23: 9,311 | CZ23: 10,582 | DA23: 12,255 | DB23: 16,359 | DC23: 9,183 | DD23: 5,227 | DE23: 4,564 | DF23: 3,192 | DG23: 4,291 | DH23: 3,321 | DI23: 5,367 | DJ23: 8,586 | DK23: 11,589 | DL23: 12,993 | DM23: 14,012 | DN23: 16,671 | DO23: 9,593 | DP23: 7,159 | DQ23: 5,435 | DR23: 3,571 | DS23: 3,479 | DT23: 2,312 | DU23: 4,919 | DV23: 6,418 | DW23: 16,281 | DX23: 11,315 | DY23: 13,121 | DZ23: 14,930 | EA23: 9,009 | EB23: 6,592 | EC23: 5,570 | ED23: 3,359 | EE23: 2,970 | EF23: 3,171 | EG23: 5,117 | EH23: 7,137 | EI23: 8,936 | EJ23: 10,522 | EK23: 12,240 | EL23: 15,275 | EM23: 8,440 | EN23: 6,912 | EO23: =4946+843 -> 5,789 | EP23: 3,386 | EQ23: 3,563 | ER23: 2,382 | ES23: 4,835 | ET23: 6,367 | EU23: 11,628 | EV23: 12,043 | EW23: 12,793 | EX23: 15,899 | EY23: 8,883 | EZ23: 6,899 | FA23: 5,063 | FB23: 3,563 | FC23: 3,895 | FD23: 3,234 | FE23: 5,229 | FF23: 6,243 | FG23: =10063+496 -> 10,559 | FH23: 11,087 | FI23: 13,447 | FJ23: 15,151 | FK23: 8,000 | FL23: 4,894 | FM23: 4,090 | FN23: 2,274 | FO23: 2,588 | FP23: 2,536 | FQ23: 5,178 | FR23: 6,321 | FS23: 9,270 | FT23: 10,356 | FU23: 11,657 | FV23: 15,336 | FW23: 8,125 | FX23: 5,643 | FY23: 4,754 | FZ23: 2,947 | GA23: 3,083 | GB23: 2,630 | GC23: 4,388 | GD23: 7,725 | GE23: 12,216 | GF23: 11,153 | GG23: 12,264 | GH23: 14,307 | GI23: 8,269 | GJ23: 5,944 | GK23: 4,904 | GL23: 3,225 | GM23: 3,247 | GN23: 2,665 | GO23: 4,661 | GP23: 6,370 | GQ23: 8,082 | GR23: 9,604 | GS23: 12,174 | GT23: 13,807 | GU23: 7,906 | GV23: 5,885 | GW23: 5,559 | GX23: 3,012 | GY23: 3,321 | GZ23: 2,312 | HA23: 4,722 | HB23: 5,109 | HC23: 7,646 | HD23: 8,962 | HE23: 10,130 | HF23: 11,929 | HG23: 7,222 | HH23: 5,735 | HI23: 4,353 | HJ23: 2,697 | HK23: 2,496 | HL23: 1,973 | HM23: 2,841 | HN23: 4,606 | HO23: 7,698 | HP23: 9,034 | HQ23: 10,288 | HR23: 11,102 | HS23: 6,648 | HT23: 4,941 | HU23: 3,361 | HV23: 1,745 | HW23: 2,463 | HX23: 1,965 | HY23: 3,116 | HZ23: 4,216 | IA23: 6,409 | IB23: 8,940 | IC23: 10,243 | ID23: 10,114 | IE23: 6,179 | IF23: 2,865 | IG23: 3,410 | IH23: 2,021 | II23: 2,185 | IJ23: 2,024 | IK23: 3,895 | IL23: 4,019 | IM23: 7,420 | IN23: 7,784 | IO23: 9,010 | IP23: 9,427 | IQ23: 6,198 | IR23: 4,174 | IS23: 3,446 | IT23: 2,524 | IU23: 2,035 | IV23: 1,388 | IW23: 2,789 | IX23: 6,031 | IY23: 6,141 | IZ23: 7,289 | JA23: 7,867 | JB23: 9,836 | JC23: 6,186 | JD23: 3,894 | JE23: 4,237 | JF23: 1,934 | JG23: 2,341 | JH23: 1,442 | JI23: 2,601 | JJ23: 4,210 | JK23: 6,730 | JL23: 7,066 | JM23: 8,307 | JN23: 9,633 | JO23: 5,798 | JP23: 4,475 | JQ23: 3,872 | JR23: 2,305 | JS23: 2,847 | JT23: 1,760 | JU23: 2,532 | JV23: 4,369 | JW23: 6,135 | JX23: 7,664 | JY23: 8,983 | JZ23: 9,760 | KA23: 5,587 | KB23: 4,487 | KC23: 3,803 | KD23: 2,145 | KE23: 2,391 | KF23: 1,346 | KG23: 984 | KH23: 422 | KI23: 1,146 | KJ23: 4,877 | KK23: 9,618 | KL23: 13,324 | KM23: 7,245 | KN23: 3,576 | KO23: 690 | KP23: 517 | KQ23: 475 | KR23: 513 | KS23: 832 | KT23: 883 | KU23: 2,736 | KV23: 6,368 | KW23: 10,093 | KX23: 13,144 | KY23: 8,050 | KZ23: 5,261 | LA23: 2,622 | LB23: 1,129 | LC23: 1,110 | LD23: 1,214 | LE23: 1,908 | LF23: 4,222 | LG23: 5,820 | LH23: 8,017 | LI23: 9,171 | LJ23: 11,436 | LK23: 6,172 | LL23: 4,483 | LM23: 3,258 | LN23: 2,513 | LO23: 1,740 | LP23: 1,401 | LQ23: 2,307 | LR23: 4,130 | LS23: 5,714 | LT23: 6,318 | LU23: 8,849 | LV23: 10,531 | LW23: 6,197 | LX23: 4,241 | LY23: 3,543 | LZ23: 2,432 | MA23: 1,627 | MB23: 1,330 | MC23: 2,964 | MD23: 3,373 | ME23: 6,513 | MF23: 6,208 | MG23: 9,846 | MH23: 11,873 | MI23: 6,191 | MJ23: 4,792 | MK23: 3,821 | ML23: 3,350
A24: 10714 | B24: Nickelsdorf | C24: 198 | D24: 31 | E24: 274 | F24: 343 | G24: 430 | H24: 331 | I24: 746 | J24: 848 | K24: 416 | L24: 359 | M24: 409 | N24: 329 | O24: 286 | P24: 26 | Q24: 106 | R24: 229 | S24: 374 | T24: 363 | U24: 718 | V24: 597 | W24: 339 | X24: 246 | Y24: 349 | Z24: 277 | AA24: 152 | AB24: 106 | AC24: 153 | AD24: 336 | AE24: 537 | AF24: 339 | AG24: 547 | AH24: 605 | AI24: 321 | AJ24: 374 | AK24: 271 | AL24: 204 | AM24: 195 | AN24: 148 | AO24: 272 | AP24: 263 | AQ24: 409 | AR24: 387 | AS24: 486 | AT24: 578 | AU24: 453 | AV24: 325 | AW24: 272 | AX24: 196 | AY24: 191 | AZ24: 112 | BA24: 137 | BB24: 175 | BC24: 330 | BD24: 197 | BE24: 497 | BF24: 468 | BG24: 292 | BH24: 222 | BI24: 260 | BJ24: 140 | BK24: 129 | BL24: 39 | BM24: 99 | BN24: 261 | BO24: 205 | BP24: 233 | BQ24: 377 | BR24: 548 | BS24: 348 | BT24: 287 | BU24: 261 | BV24: 203 | BW24: 74 | BX24: 51 | BY24: 153 | BZ24: 158 | CA24: 366 | CB24: 64 | CC24: 397 | CD24: 483 | CE24: 319 | CF24: 259 | CG24: 250 | CH24: 214 | CI24: 107 | CJ24: 83 | CK24: 145 | CL24: 218 | CM24: 304 | CN24: 235 | CO24: 442 | CP24: 618 | CQ24: 379 | CR24: 272 | CS24: 183 | CT24: 159 | CU24: 92 | CV24: 82 | CW24: 123 | CX24: 293 | CY24: 323 | CZ24: 275 | DA24: 405 | DB24: 547 | DC24: 417 | DD24: 227 | DE24: 241 | DF24: 178 | DG24: 103 | DH24: 44 | DI24: 218 | DJ24: 292 | DK24: 429 | DL24: 506 | DM24: 595 | DN24: 619 | DO24: 546 | DP24: 465 | DQ24: 442 | DR24: 350 | DS24: 196 | DT24: 258 | DU24: 417 | DV24: 373 | DW24: 444 | DX24: 809 | DY24: 477 | DZ24: 498 | EA24: 461 | EB24: 367 | EC24: 320 | ED24: 304 | EE24: 229 | EF24: 238 | EG24: 307 | EH24: 369 | EI24: 349 | EJ24: 721 | EK24: 441 | EL24: 354 | EM24: 318 | EN24: 186 | EO24: 179 | EP24: 136 | EQ24: 106 | ER24: 71 | ES24: 164 | ET24: 165 | EU24: 179 | EV24: 561 | EW24: 362 | EX24: 337 | EY24: 195 | EZ24: 131 | FA24: 98 | FB24: 152 | FC24: 44 | FD24: 67 | FE24: 98 | FF24: 136 | FG24: 233 | FH24: 709 | FI24: 274 | FJ24: 249 | FK24: 157 | FL24: 62 | FM24: 110 | FN24: 120 | FO24: 79 | FP24: 34 | FQ24: 89 | FR24: 204 | FS24: 140 | FT24: 217 | FU24: 243 | FV24: 266 | FW24: 177 | FX24: 92 | FY24: 78 | FZ24: 113 | GA24: 59 | GB24: 56 | GC24: 115 | GD24: 174 | GE24: 292 | GF24: 229 | GG24: 397 | GH24: 460 | GI24: 310 | GJ24: 213 | GK24: 114 | GL24: 140 | GM24: 87 | GN24: 20 | GO24: 105 | GP24: 131 | GQ24: 140 | GR24: 232 | GS24: 253 | GT24: 307 | GU24: 159 | GV24: 155 | GW24: 175 | GX24: 110 | GY24: 77 | GZ24: 53 | HA24: 85 | HB24: 108 | HC24: 174 | HD24: 390 | HE24: 427 | HF24: 608 | HG24: 260 | HH24: 218 | HI24: 195 | HJ24: 160 | HK24: 182 | HL24: 119 | HM24: 146 | HN24: 294 | HO24: 276 | HP24: 386 | HQ24: 578 | HR24: 695 | HS24: 380 | HT24: 299 | HU24: 171 | HV24: 157 | HW24: 219 | HX24: 100 | HY24: 164 | HZ24: 287 | IA24: 277 | IB24: 387 | IC24: 543 | ID24: 716 | IE24: 407 | IF24: 285 | IG24: 228 | IH24: 160 | II24: 154 | IJ24: 139 | IK24: 267 | IL24: 226 | IM24: 425 | IN24: 538 | IO24: 678 | IP24: 740 | IQ24: 478 | IR24: 373 | IS24: 295 | IT24: 280 | IU24: 249 | IV24: 207 | IW24: 202 | IX24: 284 | IY24: 229 | IZ24: 409 | JA24: 682 | JB24: 860 | JC24: 376 | JD24: 282 | JE24: 191 | JF24: 367 | JG24: 298 | JH24: 176 | JI24: 335 | JJ24: 324 | JK24: 342 | JL24: 456 | JM24: 666 | JN24: 786 | JO24: 329 | JP24: 259 | JQ24: 314 | JR24: 266 | JS24: 296 | JT24: 153 | JU24: 255 | JV24: 392 | JW24: 280 | JX24: 440 | JY24: 721 | JZ24: 698 | KA24: 360 | KB24: 430 | KC24: 313 | KD24: 371 | KE24: 445 | KF24: 265 | KG24: 121 | KH24: 95 | KI24: 139 | KJ24: 173 | KK24: 381 | KL24: 432 | KM24: 404 | KN24: 215 | KO24: 158 | KP24: 112 | KQ24: 164 | KR24: 215 | KS24: 148 | KT24: 47 | KU24: 256 | KV24: 399 | KW24: 818 | KX24: 780 | KY24: 373 | KZ24: 388 | LA24: 228 | LB24: 144 | LC24: 145 | LD24: 124 | LE24: 142 | LF24: 307 | LG24: 302 | LH24: 439 | LI24: 658 | LJ24: 667 | LK24: 399 | LL24: 321 | LM24: 243 | LN24: 224 | LO24: 210 | LP24: 104 | LQ24: 160 | LR24: 429 | LS24: 289 | LT24: 137,292 | LU24: 586 | LV24: 741 | LW24: 426 | LX24: 299 | LY24: 285 | LZ24: 273 | MA24: 297 | MB24: 180 | MC24: 275 | MD24: 363 | ME24: 434 | MF24: 118,579 | MG24: 754 | MH24: 852 | MI24: 361 | MJ24: 489 | MK24: 317 | ML24: 293
A25: 10310 | B25: Oggau a. Neusiedler See | C25: 0 | D25: 0 | E25: 0 | F25: 263 | G25: 1,894 | H25: 2,110 | I25: 3,760 | J25: 5,509 | K25: 1,913 | L25: 656 | M25: 0 | N25: 0 | O25: 0 | P25: 0 | Q25: 36 | R25: 404 | S25: 2,222 | T25: 1,336 | U25: 2,635 | V25: 5,694 | W25: 1,531 | X25: 712 | Y25: 0 | Z25: 0 | AA25: 0 | AB25: 0 | AC25: 128 | AD25: 713 | AE25: 2,118 | AF25: 1,494 | AG25: 2,493 | AH25: 5,103 | AI25: 1,655 | AJ25: 641 | AK25: 47 | AL25: 0 | AM25: 0 | AN25: 0 | AO25: 0 | AP25: 286 | AQ25: 1,932 | AR25: 1,590 | AS25: 3,031 | AT25: 5,730 | AU25: 1,356 | AV25: 755 | AW25: 86 | AX25: 13 | AY25: 32 | AZ25: 11 | BA25: 10 | BB25: 617 | BC25: 852 | BD25: 2,394 | BE25: 2,556 | BF25: 6,226 | BG25: 1,771 | BH25: 518 | BI25: 72 | BJ25: 0 | BK25: 14 | BL25: 0 | BM25: 3 | BN25: 422 | BO25: 1,082 | BP25: 1,956 | BQ25: 3,483 | BR25: 5,588 | BS25: 1,771 | BT25: 690 | BU25: 97 | BV25: 0 | BW25: 0 | BX25: 0 | BY25: 87 | BZ25: 624 | CA25: 2,625 | CB25: 1,622 | CC25: 4,170 | CD25: 5,838 | CE25: 1,841 | CF25: 782 | CG25: 49 | CH25: 0 | CI25: 0 | CJ25: 0 | CK25: 26 | CL25: 779 | CM25: 2,209 | CN25: 3,141 | CO25: 4,361 | CP25: 7,323 | CQ25: 2,302 | CR25: 623 | CS25: 131 | CT25: 0 | CU25: 0 | CV25: 0 | CW25: 0 | CX25: 953 | CY25: 2,161 | CZ25: 1,907 | DA25: 4,617 | DB25: 6,884 | DC25: 2,697 | DD25: 701 | DE25: 16 | DF25: 0 | DG25: 0 | DH25: 0 | DI25: 55 | DJ25: 496 | DK25: 3,093 | DL25: 1,655 | DM25: 4,731 | DN25: 7,720 | DO25: 2,347 | DP25: 758 | DQ25: 22 | DR25: 0 | DS25: 0 | DT25: 0 | DU25: 0 | DV25: 599 | DW25: 1,447 | DX25: 2,040 | DY25: 4,620 | DZ25: 6,118 | EA25: 3,086 | EB25: 722 | EC25: 95 | ED25: 0 | EE25: 0 | EF25: 0 | EG25: 14 | EH25: 936 | EI25: 1,885 | EJ25: 2,375 | EK25: 5,408 | EL25: 7,821 | EM25: 2,139 | EN25: 706 | EO25: 104 | EP25: 0 | EQ25: 0 | ER25: 0 | ES25: 102 | ET25: 508 | EU25: 3,019 | EV25: 1,841 | EW25: 5,425 | EX25: 7,998 | EY25: 2,028 | EZ25: 696 | FA25: 100 | FB25: 0 | FC25: 0 | FD25: 0 | FE25: 61 | FF25: 847 | FG25: 2,349 | FH25: 2,771 | FI25: 5,595 | FJ25: 7,292 | FK25: 2,574 | FL25: 705 | FM25: 57 | FN25: 0 | FO25: 0 | FP25: 0 | FQ25: 17 | FR25: 838 | FS25: 2,377 | FT25: 2,368 | FU25: 5,216 | FV25: 7,497 | FW25: 3,004 | FX25: 590 | FY25: 46 | FZ25: 0 | GA25: 0 | GB25: 0 | GC25: 0 | GD25: 878 | GE25: 1,733 | GF25: 3,585 | GG25: 4,982 | GH25: 6,881 | GI25: 3,179 | GJ25: 745 | GK25: 44 | GL25: 0 | GM25: 0 | GN25: 0 | GO25: 11 | GP25: 1,368 | GQ25: 2,776 | GR25: 2,623 | GS25: 4,786 | GT25: 7,852 | GU25: 3,284 | GV25: 934 | GW25: 113 | GX25: 3 | GY25: 0 | GZ25: 0 | HA25: 2 | HB25: 885 | HC25: 3,634 | HD25: 2,269 | HE25: 4,788 | HF25: 5,742 | HG25: 2,428 | HH25: 854 | HI25: 234 | HJ25: 8 | HK25: 0 | HL25: 0 | HM25: 36 | HN25: 950 | HO25: 2,634 | HP25: 3,958 | HQ25: 5,190 | HR25: 6,500 | HS25: 2,188 | HT25: 736 | HU25: 153 | HV25: 79 | HW25: 85 | HX25: 11 | HY25: 16 | HZ25: 788 | IA25: 2,699 | IB25: 3,611 | IC25: 4,859 | ID25: 5,584 | IE25: 2,626 | IF25: 511 | IG25: 154 | IH25: 0 | II25: 164 | IJ25: 0 | IK25: 169 | IL25: 749 | IM25: 3,542 | IN25: 3,803 | IO25: 5,687 | IP25: 5,977 | IQ25: 3,243 | IR25: 720 | IS25: 138 | IT25: 0 | IU25: 135 | IV25: 8 | IW25: 64 | IX25: 1,172 | IY25: 3,468 | IZ25: 4,751 | JA25: 6,140 | JB25: 7,614 | JC25: 3,459 | JD25: 935 | JE25: 100 | JF25: 164 | JG25: 143 | JH25: 0 | JI25: 41 | JJ25: 2,178 | JK25: 4,909 | JL25: 3,967 | JM25: 6,023 | JN25: 6,796 | JO25: 3,706 | JP25: 1,198 | JQ25: 114 | JR25: 25 | JS25: 268 | JT25: 0 | JU25: 10 | JV25: 1,988 | JW25: 2,842 | JX25: 5,429 | JY25: 6,582 | JZ25: 9,283 | KA25: 3,795 | KB25: 1,453 | KC25: 114 | KD25: 2 | KE25: 129 | KF25: 0 | KG25: 4 | KH25: 33 | KI25: 445 | KJ25: 5,614 | KK25: 7,569 | KL25: 9,203 | KM25: 5,992 | KN25: 1,214 | KO25: 32 | KP25: 24 | KQ25: 31 | KR25: 25 | KS25: 39 | KT25: 39 | KU25: 1,851 | KV25: 5,655 | KW25: 7,053 | KX25: 8,075 | KY25: 4,233 | KZ25: 1,412 | LA25: 66 | LB25: 24 | LC25: 15 | LD25: 16 | LE25: 73 | LF25: 1,117 | LG25: 3,005 | LH25: 4,589 | LI25: 4,807 | LJ25: 5,707 | LK25: 2,132 | LL25: 1,031 | LM25: 89 | LN25: 24 | LO25: 58 | LP25: 13 | LQ25: 37 | LR25: 779 | LS25: 2,208 | LT25: 2,544 | LU25: 5,226 | LV25: 6,780 | LW25: 2,402 | LX25: 1,014 | LY25: 63 | LZ25: 19 | MA25: 71 | MB25: 8 | MC25: 89 | MD25: 971 | ME25: 3,571 | MF25: 3,086 | MG25: 5,748 | MH25: 6,011 | MI25: 1,609 | MJ25: 705 | MK25: 89 | ML25: 103
A26: 10311 | B26: Oslip (ab 11/23) | LY26: 87 | LZ26: 57 | MA26: 44 | MB26: 103 | MC26: 186 | MD26: 261 | ME26: 521 | MF26: 389 | MG26: 737 | MH26: 889 | MI26: 300 | MJ26: 293 | MK26: 123 | ML26: 138
A27: 10716 | B27: Pamhagen | C27: 1,926 | D27: 871 | E27: 711 | F27: 1,155 | G27: 7,295 | H27: 8,213 | I27: 12,387 | J27: 12,529 | K27: 8,420 | L27: 4,472 | M27: 0 | N27: 290 | O27: 1,898 | P27: 1,014 | Q27: 1,385 | R27: 1,164 | S27: 6,725 | T27: 7,279 | U27: 10,559 | V27: 12,077 | W27: 8,089 | X27: 0 | Y27: 0 | Z27: 774 | AA27: 1,886 | AB27: 1,530 | AC27: 1,411 | AD27: 3,696 | AE27: 8,109 | AF27: 8,908 | AG27: 11,807 | AH27: 13,480 | AI27: 8,727 | AJ27: 3,995 | AK27: 0 | AL27: 0 | AM27: 2,760 | AN27: 2,344 | AO27: 2,673 | AP27: 5,862 | AQ27: 9,506 | AR27: 9,837 | AS27: 11,937 | AT27: 14,153 | AU27: 9,462 | AV27: 8,791 | AW27: 2,227 | AX27: 3,104 | AY27: 3,451 | AZ27: 2,530 | BA27: 2,644 | BB27: 6,323 | BC27: 8,495 | BD27: 9,872 | BE27: 13,213 | BF27: 14,788 | BG27: 10,489 | BH27: 9,350 | BI27: 2,121 | BJ27: 2,802 | BK27: 3,920 | BL27: 2,435 | BM27: 3,946 | BN27: 8,925 | BO27: 8,778 | BP27: 11,311 | BQ27: 14,978 | BR27: 13,093 | BS27: 7,935 | BT27: 8,493 | BU27: 5,141 | BV27: 2,882 | BW27: 3,740 | BX27: 2,776 | BY27: 6,020 | BZ27: 6,085 | CA27: 9,599 | CB27: 9,870 | CC27: 12,883 | CD27: 14,169 | CE27: 7,304 | CF27: 9,845 | CG27: 2,727 | CH27: 2,546 | CI27: 3,623 | CJ27: 3,050 | CK27: 3,007 | CL27: 8,735 | CM27: 8,099 | CN27: 12,432 | CO27: 12,687 | CP27: 14,812 | CQ27: 8,634 | CR27: 9,026 | CS27: 3,369 | CT27: 2,473 | CU27: 3,799 | CV27: 2,970 | CW27: 2,917 | CX27: 8,205 | CY27: 6,450 | CZ27: 9,874 | DA27: 11,718 | DB27: 15,149 | DC27: 8,739 | DD27: 8,584 | DE27: 1,784 | DF27: 2,479 | DG27: 3,927 | DH27: 2,603 | DI27: 5,482 | DJ27: 5,594 | DK27: 9,103 | DL27: 8,797 | DM27: 12,137 | DN27: 14,559 | DO27: 7,088 | DP27: 6,997 | DQ27: 8 | DR27: 2,249 | DS27: 3,990 | DT27: 2,432 | DU27: 3,252 | DV27: 7,631 | DW27: 5,573 | DX27: 10,876 | DY27: 12,103 | DZ27: 13,502 | EA27: 8,128 | EB27: 8,966 | EC27: 2,237 | ED27: 2,187 | EE27: 4,152 | EF27: 3,429 | EG27: 3,423 | EH27: 8,589 | EI27: 8,499 | EJ27: 9,039 | EK27: 11,783 | EL27: 13,731 | EM27: 10,896 | EN27: 7,936 | EO27: 1,953 | EP27: 2,429 | EQ27: 4,755 | ER27: 2,804 | ES27: 6,098 | ET27: 4,686 | EU27: 10,972 | EV27: 8,191 | EW27: 12,595 | EX27: 14,083 | EY27: 8,426 | EZ27: 8,186 | FA27: 2,806 | FB27: 2,903 | FC27: 4,885 | FD27: 3,016 | FE27: 3,524 | FF27: 7,697 | FG27: 7,537 | FH27: 10,951 | FI27: 13,579 | FJ27: 13,703 | FK27: 9,761 | FL27: 10,054 | FM27: 7 | FN27: 2,860 | FO27: 5,027 | FP27: 2,804 | FQ27: 4,800 | FR27: 4,977 | FS27: 8,963 | FT27: 9,175 | FU27: 12,891 | FV27: 14,112 | FW27: 8,341 | FX27: 8,169 | FY27: 2,910 | FZ27: 2,083 | GA27: 4,557 | GB27: 2,607 | GC27: 3,326 | GD27: 5,958 | GE27: 6,630 | GF27: 10,378 | GG27: 12,113 | GH27: 13,184 | GI27: 7,658 | GJ27: 7,226 | GK27: 2,494 | GL27: 2,381 | GM27: 5,359 | GN27: 2,407 | GO27: 3,975 | GP27: 6,784 | GQ27: 7,619 | GR27: 9,251 | GS27: 12,594 | GT27: 13,764 | GU27: 7,551 | GV27: 7,208 | GW27: 3,609 | GX27: 2,193 | GY27: 5,053 | GZ27: 2,657 | HA27: 6,141 | HB27: 4,334 | HC27: 10,096 | HD27: 8,160 | HE27: 11,634 | HF27: 12,995 | HG27: 7,176 | HH27: 7,140 | HI27: 2,460 | HJ27: 2,301 | HK27: 5,360 | HL27: 3,015 | HM27: 3,614 | HN27: 7,477 | HO27: 7,810 | HP27: 9,384 | HQ27: 11,997 | HR27: 14,192 | HS27: 6,835 | HT27: 7,303 | HU27: 3,624 | HV27: 2,523 | HW27: 5,205 | HX27: 3,473 | HY27: 4,433 | HZ27: 5,327 | IA27: 8,893 | IB27: 6,684 | IC27: 12,020 | ID27: 14,263 | IE27: 8,160 | IF27: 6,083 | IG27: 3,051 | IH27: 2,202 | II27: 6,226 | IJ27: 3,161 | IK27: 6,149 | IL27: 4,977 | IM27: 9,088 | IN27: 7,797 | IO27: =12986+8 -> 12,994 | IP27: 14,291 | IQ27: 8,192 | IR27: 7,785 | IS27: 2,200 | IT27: 2,347 | IU27: 5,682 | IV27: 3,966 | IW27: 4,267 | IX27: 6,787 | IY27: 4,990 | IZ27: 10,561 | JA27: 13,338 | JB27: 13,971 | JC27: 7,577 | JD27: 7,975 | JE27: 4,881 | JF27: 2,078 | JG27: 5,548 | JH27: 3,859 | JI27: 5,600 | JJ27: 5,944 | JK27: 8,893 | JL27: 7,727 | JM27: 14,058 | JN27: 13,744 | JO27: 7,155 | JP27: 8,477 | JQ27: 3,984 | JR27: 2,121 | JS27: 6,159 | JT27: 1,319 | JU27: 4,407 | JV27: 7,743 | JW27: 8,189 | JX27: 10,305 | JY27: 13,467 | JZ27: 13,752 | KA27: 7,704 | KB27: 7,215 | KC27: 2,823 | KD27: 2,199 | KE27: 5,089 | KF27: 3,754 | KG27: 1,850 | KH27: 0 | KI27: 532 | KJ27: 3,043 | KK27: 14,447 | KL27: 16,564 | KM27: 10,742 | KN27: 7,463 | KO27: 12 | KP27: 65 | KQ27: 6 | KR27: 0 | KS27: 0 | KT27: 0 | KU27: 3,616 | KV27: 9,201 | KW27: 15,033 | KX27: 16,347 | KY27: 9,597 | KZ27: 9,736 | LA27: 2,050 | LB27: 1,722 | LC27: 4,444 | LD27: 3,238 | LE27: 3,576 | LF27: 8,062 | LG27: 9,680 | LH27: 11,310 | LI27: 14,853 | LJ27: 15,745 | LK27: 10,668 | LL27: 9,528 | LM27: 855 | LN27: 1,045 | LO27: 4,664 | LP27: 4,025 | LQ27: 3,090 | LR27: 2,238 | LS27: 6,633 | LT27: 6,804 | LU27: 11,299 | LV27: 14,206 | LW27: 7,815 | LX27: 7,816 | LY27: 529 | LZ27: 2,291 | MA27: 6,029 | MB27: 4,401 | MC27: 5,487 | MD27: 4,706 | ME27: 7,935 | MF27: 9,300 | MG27: 14,796 | MH27: 15,708 | MI27: 7,930 | MJ27: 7,141 | MK27: 2,101 | ML27: 2,573
A28: 10717 | B28: Parndorf (ab 5/09) | FG28: 1,605 | FH28: 1,676 | FI28: 2,961 | FJ28: 3,855 | FK28: 2,991 | FL28: 2,394 | FM28: 1,628 | FN28: 1,583 | FO28: 1,547 | FP28: 1,419 | FQ28: 1,928 | FR28: 2,208 | FS28: 2,906 | FT28: 2,844 | FU28: 3,747 | FV28: 4,410 | FW28: 4,391 | FX28: 4,029 | FY28: 3,202 | FZ28: 2,576 | GA28: 2,369 | GB28: 1,842 | GC28: 2,087 | GD28: 2,911 | GE28: 3,183 | GF28: 4,099 | GG28: 3,644 | GH28: 6,143 | GI28: 3,945 | GJ28: 3,466 | GK28: 3,243 | GL28: 3,976 | GM28: 1,883 | GN28: 2,777 | GO28: 1,677 | GP28: 4,506 | GQ28: 6,423 | GR28: 6,677 | GS28: 4,973 | GT28: 5,819 | GU28: 4,560 | GV28: 4,413 | GW28: 3,851 | GX28: 3,307 | GY28: 3,007 | GZ28: 2,839 | HA28: 3,343 | HB28: 4,233 | HC28: 4,072 | HD28: 3,886 | HE28: 4,463 | HF28: 5,114 | HG28: 4,026 | HH28: 4,177 | HI28: 3,806 | HJ28: 3,873 | HK28: 3,673 | HL28: 3,109 | HM28: 3,538 | HN28: 4,262 | HO28: 5,093 | HP28: 4,637 | HQ28: 5,398 | HR28: 5,545 | HS28: 4,947 | HT28: 4,846 | HU28: 3,923 | HV28: 4,078 | HW28: 3,151 | HX28: 2,571 | HY28: 3,013 | HZ28: 3,420 | IA28: 3,812 | IB28: 4,139 | IC28: 4,678 | ID28: 4,976 | IE28: 3,838 | IF28: 3,893 | IG28: 3,481 | IH28: 3,409 | II28: 3,284 | IJ28: 2,818 | IK28: 3,121 | IL28: 3,431 | IM28: 4,095 | IN28: 3,926 | IO28: 4,736 | IP28: 4,652 | IQ28: 4,125 | IR28: 3,764 | IS28: 3,521 | IT28: 3,604 | IU28: 3,144 | IV28: 2,658 | IW28: 3,507 | IX28: 4,338 | IY28: 4,200 | IZ28: 3,937 | JA28: 4,660 | JB28: 5,049 | JC28: 4,202 | JD28: 3,850 | JE28: 3,758 | JF28: 3,588 | JG28: 3,234 | JH28: 2,562 | JI28: 2,850 | JJ28: 3,287 | JK28: 3,875 | JL28: 4,358 | JM28: 4,722 | JN28: 5,347 | JO28: 4,196 | JP28: 4,609 | JQ28: 3,798 | JR28: 3,914 | JS28: 3,145 | JT28: 2,351 | JU28: 2,789 | JV28: 4,460 | JW28: 4,966 | JX28: 5,546 | JY28: 6,713 | JZ28: 7,708 | KA28: 6,362 | KB28: 6,695 | KC28: 5,244 | KD28: 5,467 | KE28: 4,306 | KF28: 3,541 | KG28: 1,206 | KH28: 7 | KI28: 169 | KJ28: 2,351 | KK28: 3,560 | KL28: 11,757 | KM28: 5,911 | KN28: 3,298 | KO28: 1,531 | KP28: 1,000 | KQ28: 632 | KR28: 1,522 | KS28: 3,096 | KT28: 2,477 | KU28: 3,926 | KV28: 6,210 | KW28: 9,607 | KX28: 11,515 | KY28: 7,255 | KZ28: 6,859 | LA28: 4,932 | LB28: 4,113 | LC28: 4,936 | LD28: 4,804 | LE28: 5,857 | LF28: 6,527 | LG28: 7,344 | LH28: 9,503 | LI28: 12,540 | LJ28: 14,512 | LK28: 10,393 | LL28: 10,413 | LM28: 10,184 | LN28: 10,603 | LO28: 8,414 | LP28: 7,340 | LQ28: 6,967 | LR28: 10,112 | LS28: 10,295 | LT28: 12,509 | LU28: 15,602 | LV28: 16,264 | LW28: 12,063 | LX28: 10,535 | LY28: 11,876 | LZ28: 11,005 | MA28: 8,959 | MB28: 8,059 | MC28: 8,187 | MD28: 8,827 | ME28: 11,987 | MF28: 12,198 | MG28: 15,176 | MH28: 17,087 | MI28: 11,571 | MJ28: 11,993 | MK28: 11,897 | ML28: 12,669
A29: 10718 | B29: Podersdorf a. See | C29: 0 | D29: 0 | E29: 0 | F29: 8,549 | G29: 29,896 | H29: 51,704 | I29: 85,489 | J29: 125,584 | K29: 28,703 | L29: 7,567 | M29: 0 | N29: 0 | O29: 0 | P29: 0 | Q29: 1,236 | R29: 5,456 | S29: 43,768 | T29: 30,236 | U29: 78,282 | V29: 128,646 | W29: 35,810 | X29: 8,473 | Y29: 403 | Z29: 0 | AA29: 0 | AB29: 0 | AC29: 0 | AD29: 9,681 | AE29: 49,091 | AF29: 81,469 | AG29: 83,576 | AH29: 130,425 | AI29: 30,829 | AJ29: 4,932 | AK29: 171 | AL29: 114 | AM29: 10 | AN29: 0 | AO29: 1,251 | AP29: 10,074 | AQ29: 47,129 | AR29: 69,642 | AS29: 96,642 | AT29: 126,481 | AU29: 35,223 | AV29: 7,662 | AW29: 256 | AX29: 6 | AY29: 0 | AZ29: 9 | BA29: 338 | BB29: 20,146 | BC29: 38,520 | BD29: 74,238 | BE29: 91,665 | BF29: 123,225 | BG29: 36,401 | BH29: 11,774 | BI29: 88 | BJ29: 0 | BK29: 6 | BL29: 0 | BM29: 18 | BN29: 21,009 | BO29: 40,120 | BP29: 68,944 | BQ29: 93,580 | BR29: 127,411 | BS29: 33,688 | BT29: 13,009 | BU29: 252 | BV29: 5 | BW29: 0 | BX29: 61 | BY29: 2,691 | BZ29: 14,694 | CA29: 74,371 | CB29: 58,565 | CC29: 91,763 | CD29: 117,086 | CE29: 41,697 | CF29: 8,759 | CG29: 1,252 | CH29: 0 | CI29: 0 | CJ29: 0 | CK29: 1,083 | CL29: 17,920 | CM29: 52,749 | CN29: 71,307 | CO29: 87,980 | CP29: 117,295 | CQ29: 36,993 | CR29: 9,394 | CS29: 203 | CT29: 13 | CU29: 0 | CV29: 0 | CW29: 1,384 | CX29: 12,680 | CY29: 48,807 | CZ29: 50,827 | DA29: 72,938 | DB29: 106,630 | DC29: 37,223 | DD29: 8,033 | DE29: 214 | DF29: 37 | DG29: 0 | DH29: 13 | DI29: 1,635 | DJ29: 12,976 | DK29: 55,501 | DL29: 45,372 | DM29: 74,090 | DN29: 98,701 | DO29: 38,734 | DP29: 9,393 | DQ29: 353 | DR29: 0 | DS29: 11 | DT29: 16 | DU29: 226 | DV29: 16,975 | DW29: 39,327 | DX29: 52,983 | DY29: 73,201 | DZ29: 86,116 | EA29: 39,984 | EB29: 10,758 | EC29: 761 | ED29: 22 | EE29: 1 | EF29: 8 | EG29: 407 | EH29: 23,270 | EI29: 45,392 | EJ29: 54,047 | EK29: 80,346 | EL29: 96,238 | EM29: 34,058 | EN29: 11,333 | EO29: 558 | EP29: 39 | EQ29: 0 | ER29: 35 | ES29: 866 | ET29: 14,855 | EU29: 57,876 | EV29: 48,865 | EW29: 81,179 | EX29: 103,612 | EY29: 36,835 | EZ29: 10,904 | FA29: 1,230 | FB29: 707 | FC29: 689 | FD29: 953 | FE29: 1,977 | FF29: 21,030 | FG29: 54,682 | FH29: 62,080 | FI29: 87,260 | FJ29: 105,840 | FK29: 40,695 | FL29: 11,709 | FM29: 1,743 | FN29: 884 | FO29: 877 | FP29: 828 | FQ29: 2,072 | FR29: 19,979 | FS29: 50,745 | FT29: 58,742 | FU29: 87,600 | FV29: 106,741 | FW29: 39,251 | FX29: 12,196 | FY29: 1,836 | FZ29: 167 | GA29: 36 | GB29: 44 | GC29: 37 | GD29: 22,702 | GE29: 40,650 | GF29: 69,772 | GG29: 81,559 | GH29: 108,122 | GI29: 42,631 | GJ29: 11,955 | GK29: 1,356 | GL29: 13 | GM29: 12 | GN29: 117 | GO29: 885 | GP29: 27,476 | GQ29: 51,233 | GR29: 59,180 | GS29: 82,086 | GT29: 106,018 | GU29: 44,932 | GV29: 11,344 | GW29: 1,911 | GX29: 0 | GY29: 17 | GZ29: 83 | HA29: 624 | HB29: 21,925 | HC29: 53,748 | HD29: 51,352 | HE29: 88,070 | HF29: 101,682 | HG29: 37,173 | HH29: 11,003 | HI29: 1,269 | HJ29: 10 | HK29: 12 | HL29: 34 | HM29: 945 | HN29: 23,979 | HO29: 47,874 | HP29: 63,273 | HQ29: 77,827 | HR29: 97,602 | HS29: 33,760 | HT29: 10,049 | HU29: 1,369 | HV29: 112 | HW29: 190 | HX29: 246 | HY29: 1,073 | HZ29: 23,268 | IA29: 48,542 | IB29: 59,082 | IC29: 81,422 | ID29: 101,668 | IE29: 42,054 | IF29: 7,606 | IG29: 1,538 | IH29: 120 | II29: 48 | IJ29: 88 | IK29: 3,929 | IL29: 28,045 | IM29: 66,525 | IN29: 65,173 | IO29: 91,822 | IP29: 107,350 | IQ29: 48,487 | IR29: 8,729 | IS29: 1,926 | IT29: 55 | IU29: 134 | IV29: 80 | IW29: 917 | IX29: 29,933 | IY29: 51,808 | IZ29: 73,548 | JA29: 93,189 | JB29: 103,657 | JC29: 56,374 | JD29: 9,718 | JE29: 2,099 | JF29: 113 | JG29: 60 | JH29: 146 | JI29: 2,164 | JJ29: 30,895 | JK29: 60,230 | JL29: 64,158 | JM29: 91,517 | JN29: 101,002 | JO29: 56,564 | JP29: 12,066 | JQ29: 3,260 | JR29: 242 | JS29: 354 | JT29: 272 | JU29: 1,717 | JV29: 33,109 | JW29: 48,249 | JX29: 75,486 | JY29: 92,195 | JZ29: 105,614 | KA29: 55,747 | KB29: 12,138 | KC29: 3,186 | KD29: 350 | KE29: 330 | KF29: 238 | KG29: 73 | KH29: 41 | KI29: 19,681 | KJ29: 58,294 | KK29: 100,285 | KL29: 111,041 | KM29: 74,396 | KN29: 14,164 | KO29: 353 | KP29: 2 | KQ29: 14 | KR29: 82 | KS29: 1,083 | KT29: 3,489 | KU29: 27,739 | KV29: 58,282 | KW29: 95,128 | KX29: 105,188 | KY29: 69,035 | KZ29: 13,670 | LA29: 2,638 | LB29: 197 | LC29: 185 | LD29: 347 | LE29: 689 | LF29: 26,613 | LG29: 49,762 | LH29: 69,378 | LI29: 78,077 | LJ29: 87,180 | LK29: 51,316 | LL29: 12,035 | LM29: 3,614 | LN29: 989 | LO29: 694 | LP29: 847 | LQ29: 2,651 | LR29: 25,061 | LS29: 48,159 | LT29: 57,612 | LU29: 75,037 | LV29: 91,460 | LW29: 61,384 | LX29: 13,981 | LY29: 4,166 | LZ29: 1,304 | MA29: 1,052 | MB29: 741 | MC29: 7,789 | MD29: 26,746 | ME29: 61,021 | MF29: 59,999 | MG29: 83,434 | MH29: 98,661 | MI29: 50,111 | MJ29: 12,091 | MK29: 4,337 | ML29: 1,167
A30: 10312 | B30: Purbach a. Neusiedler See | C30: 20 | D30: 23 | E30: 19 | F30: 367 | G30: 4,614 | H30: 4,963 | I30: 6,737 | J30: 6,412 | K30: 2,213 | L30: 732 | M30: 0 | N30: 107 | O30: 0 | P30: 55 | Q30: 50 | R30: 269 | S30: 3,862 | T30: 4,493 | U30: 5,641 | V30: 6,516 | W30: 2,889 | X30: 566 | Y30: 205 | Z30: 0 | AA30: 97 | AB30: 0 | AC30: 111 | AD30: 188 | AE30: 5,198 | AF30: 5,517 | AG30: 5,206 | AH30: 7,362 | AI30: 2,702 | AJ30: 922 | AK30: 0 | AL30: 206 | AM30: 0 | AN30: 0 | AO30: 102 | AP30: 258 | AQ30: 2,561 | AR30: 4,765 | AS30: 5,271 | AT30: 6,315 | AU30: 2,271 | AV30: 860 | AW30: 0 | AX30: 557 | AY30: 0 | AZ30: 0 | BA30: 162 | BB30: 641 | BC30: 3,862 | BD30: 5,587 | BE30: 5,769 | BF30: 7,485 | BG30: 2,050 | BH30: 569 | BI30: 585 | BJ30: 49 | BK30: 0 | BL30: 42 | BM30: 118 | BN30: 989 | BO30: 3,833 | BP30: 4,351 | BQ30: 5,023 | BR30: 8,346 | BS30: 1,445 | BT30: 703 | BU30: 173 | BV30: 42 | BW30: 47 | BX30: 45 | BY30: 36 | BZ30: 692 | CA30: 3,559 | CB30: 4,738 | CC30: 6,773 | CD30: 8,251 | CE30: 2,320 | CF30: 681 | CG30: 380 | CH30: 43 | CI30: 22 | CJ30: 127 | CK30: 43 | CL30: 605 | CM30: 4,181 | CN30: 4,834 | CO30: 5,625 | CP30: 6,667 | CQ30: 2,382 | CR30: 798 | CS30: 273 | CT30: 81 | CU30: 66 | CV30: 46 | CW30: 191 | CX30: 499 | CY30: 2,305 | CZ30: 3,060 | DA30: 5,586 | DB30: 7,691 | DC30: 2,102 | DD30: 830 | DE30: 360 | DF30: 80 | DG30: 57 | DH30: 77 | DI30: 103 | DJ30: 232 | DK30: 3,009 | DL30: 3,761 | DM30: 5,946 | DN30: 7,462 | DO30: 3,198 | DP30: 659 | DQ30: 370 | DR30: 0 | DS30: 29 | DT30: 0 | DU30: 142 | DV30: 1,411 | DW30: 3,249 | DX30: 3,707 | DY30: 5,134 | DZ30: 7,335 | EA30: 2,315 | EB30: 703 | EC30: 446 | ED30: 0 | EE30: 0 | EF30: 0 | EG30: 294 | EH30: 1,071 | EI30: 3,401 | EJ30: 4,110 | EK30: 4,765 | EL30: 8,673 | EM30: 2,087 | EN30: 1,336 | EO30: 453 | EP30: 0 | EQ30: 0 | ER30: 30 | ES30: 25 | ET30: 584 | EU30: 3,913 | EV30: 3,674 | EW30: 5,314 | EX30: 7,241 | EY30: 2,370 | EZ30: 1,131 | FA30: 460 | FB30: 85 | FC30: 26 | FD30: 46 | FE30: 116 | FF30: 748 | FG30: 3,631 | FH30: 3,595 | FI30: 6,014 | FJ30: 8,084 | FK30: 2,865 | FL30: 1,384 | FM30: 583 | FN30: 273 | FO30: 75 | FP30: 94 | FQ30: 202 | FR30: 1,022 | FS30: 3,172 | FT30: 4,369 | FU30: 5,862 | FV30: 7,247 | FW30: 2,642 | FX30: 1,806 | FY30: 641 | FZ30: 61 | GA30: 30 | GB30: 0 | GC30: 131 | GD30: 1,164 | GE30: 2,784 | GF30: 4,630 | GG30: 6,309 | GH30: 7,005 | GI30: 2,925 | GJ30: 1,364 | GK30: 626 | GL30: 32 | GM30: 44 | GN30: 0 | GO30: 188 | GP30: 1,030 | GQ30: 2,990 | GR30: 4,093 | GS30: 6,343 | GT30: 8,498 | GU30: 2,885 | GV30: 1,185 | GW30: 675 | GX30: 117 | GY30: 61 | GZ30: 18 | HA30: 161 | HB30: 1,160 | HC30: 3,648 | HD30: 4,034 | HE30: 6,022 | HF30: 7,896 | HG30: 2,580 | HH30: 1,340 | HI30: 588 | HJ30: 48 | HK30: 16 | HL30: 165 | HM30: 195 | HN30: 1,362 | HO30: 4,007 | HP30: 4,473 | HQ30: 5,468 | HR30: 7,522 | HS30: 2,351 | HT30: 1,217 | HU30: 792 | HV30: 366 | HW30: 184 | HX30: 53 | HY30: 124 | HZ30: 1,065 | IA30: 2,777 | IB30: 4,574 | IC30: 6,172 | ID30: 7,246 | IE30: 2,556 | IF30: 986 | IG30: 655 | IH30: 118 | II30: 73 | IJ30: 111 | IK30: 264 | IL30: 815 | IM30: 2,897 | IN30: 3,803 | IO30: 5,966 | IP30: 6,342 | IQ30: 2,653 | IR30: 925 | IS30: 694 | IT30: 190 | IU30: 81 | IV30: 78 | IW30: 194 | IX30: 1,269 | IY30: 2,522 | IZ30: 4,080 | JA30: 5,537 | JB30: 6,510 | JC30: 2,344 | JD30: 803 | JE30: 644 | JF30: 260 | JG30: 70 | JH30: 65 | JI30: 152 | JJ30: 950 | JK30: 2,470 | JL30: 3,706 | JM30: 4,835 | JN30: 5,085 | JO30: 1,469 | JP30: 811 | JQ30: 705 | JR30: 179 | JS30: 80 | JT30: 59 | JU30: 193 | JV30: 1,138 | JW30: 3,204 | JX30: 4,505 | JY30: 5,055 | JZ30: 6,363 | KA30: 1,793 | KB30: 882 | KC30: 708 | KD30: 223 | KE30: 99 | KF30: 42 | KG30: 34 | KH30: 0 | KI30: 292 | KJ30: 2,178 | KK30: 5,440 | KL30: 6,962 | KM30: 2,979 | KN30: 852 | KO30: 8 | KP30: 0 | KQ30: 11 | KR30: 0 | KS30: 0 | KT30: 12 | KU30: 611 | KV30: 2,742 | KW30: 5,676 | KX30: 6,694 | KY30: 2,721 | KZ30: 1,201 | LA30: 485 | LB30: 123 | LC30: 106 | LD30: 194 | LE30: 264 | LF30: 1,924 | LG30: 3,799 | LH30: 4,291 | LI30: 4,199 | LJ30: 5,022 | LK30: 2,249 | LL30: 1,411 | LM30: 895 | LN30: 350 | LO30: 83 | LP30: 101 | LQ30: 187 | LR30: 1,620 | LS30: 3,400 | LT30: 3,947 | LU30: 4,345 | LV30: 4,946 | LW30: 2,792 | LX30: 1,364 | LY30: 725 | LZ30: 367 | MA30: 291 | MB30: 151 | MC30: 357 | MD30: 965 | ME30: 3,755 | MF30: 4,635 | MG30: 4,626 | MH30: 5,786 | MI30: 2,448 | MJ30: 1,419 | MK30: 683 | ML30: 370
A31: 10201 | B31: Rust | C31: 1,281 | D31: 1,358 | E31: 2,827 | F31: 4,552 | G31: 12,415 | H31: 14,925 | I31: 21,688 | J31: 29,414 | K31: 12,837 | L31: 7,982 | M31: 2,801 | N31: 1,612 | O31: 1,386 | P31: 891 | Q31: 2,769 | R31: 4,442 | S31: 13,934 | T31: 12,557 | U31: 19,153 | V31: 29,169 | W31: 14,363 | X31: 7,837 | Y31: 2,739 | Z31: 1,601 | AA31: 2,074 | AB31: 1,570 | AC31: 2,489 | AD31: 6,019 | AE31: 12,524 | AF31: 14,328 | AG31: 20,166 | AH31: 29,549 | AI31: 13,585 | AJ31: 8,342 | AK31: 3,039 | AL31: 1,617 | AM31: 2,286 | AN31: 1,698 | AO31: 2,399 | AP31: 5,200 | AQ31: 12,736 | AR31: 12,572 | AS31: 20,038 | AT31: 30,667 | AU31: 14,187 | AV31: 7,550 | AW31: 2,138 | AX31: 1,891 | AY31: 1,752 | AZ31: 1,285 | BA31: 2,459 | BB31: 6,699 | BC31: 9,270 | BD31: 17,545 | BE31: 22,124 | BF31: 30,170 | BG31: 12,874 | BH31: 6,975 | BI31: 2,901 | BJ31: 2,348 | BK31: 2,116 | BL31: 1,290 | BM31: 2,693 | BN31: 6,599 | BO31: 13,153 | BP31: 17,148 | BQ31: =23498+2390 -> 25,888 | BR31: =33460+1004 -> 34,464 | BS31: 11,552 | BT31: 6,901 | BU31: 3,189 | BV31: 1,733 | BW31: 1,750 | BX31: 2,045 | BY31: 3,197 | BZ31: 4,273 | CA31: 15,908 | CB31: 14,437 | CC31: 24,153 | CD31: 30,151 | CE31: 12,703 | CF31: 7,035 | CG31: 2,807 | CH31: 1,342 | CI31: 1,180 | CJ31: 1,430 | CK31: 1,877 | CL31: 6,687 | CM31: 14,192 | CN31: 19,762 | CO31: 25,926 | CP31: 32,328 | CQ31: 14,104 | CR31: 6,325 | CS31: 3,360 | CT31: 2,002 | CU31: 1,759 | CV31: 1,475 | CW31: 3,004 | CX31: 6,759 | CY31: 13,684 | CZ31: 14,494 | DA31: 24,588 | DB31: 32,755 | DC31: 14,612 | DD31: 6,639 | DE31: 2,031 | DF31: 1,898 | DG31: 1,517 | DH31: 875 | DI31: 1,987 | DJ31: =4780+238 -> 5,018 | DK31: =14482+499 -> 14,981 | DL31: 13,988 | DM31: 23,845 | DN31: 31,254 | DO31: 13,865 | DP31: 7,780 | DQ31: 3,063 | DR31: 1,999 | DS31: 1,745 | DT31: 1,691 | DU31: 2,336 | DV31: 5,900 | DW31: 11,480 | DX31: 15,826 | DY31: 22,355 | DZ31: 26,795 | EA31: 15,972 | EB31: 8,166 | EC31: 3,189 | ED31: 2,328 | EE31: 2,118 | EF31: 1,496 | EG31: 2,203 | EH31: 7,514 | EI31: 12,670 | EJ31: 16,164 | EK31: 25,573 | EL31: 28,067 | EM31: 13,396 | EN31: 8,359 | EO31: 3,123 | EP31: 2,257 | EQ31: 2,046 | ER31: 2,779 | ES31: 2,736 | ET31: 5,977 | EU31: 16,992 | EV31: 12,583 | EW31: 24,988 | EX31: 28,919 | EY31: 14,441 | EZ31: 6,249 | FA31: 3,235 | FB31: 2,577 | FC31: 1,931 | FD31: 1,057 | FE31: 2,702 | FF31: 8,011 | FG31: 14,309 | FH31: 14,380 | FI31: 24,437 | FJ31: 28,023 | FK31: 14,636 | FL31: 7,341 | FM31: 2,448 | FN31: 2,486 | FO31: 1,800 | FP31: 2,567 | FQ31: 3,152 | FR31: 7,270 | FS31: 12,294 | FT31: 14,406 | FU31: 23,342 | FV31: 28,923 | FW31: 13,268 | FX31: 6,514 | FY31: 3,199 | FZ31: 2,833 | GA31: 3,760 | GB31: 4,401 | GC31: 5,496 | GD31: 9,492 | GE31: 13,818 | GF31: 20,806 | GG31: 24,209 | GH31: 30,552 | GI31: 16,482 | GJ31: 9,510 | GK31: 6,305 | GL31: 5,334 | GM31: 3,978 | GN31: 3,201 | GO31: 4,887 | GP31: 9,063 | GQ31: 15,072 | GR31: 17,817 | GS31: 24,528 | GT31: 30,908 | GU31: 15,362 | GV31: 9,402 | GW31: 6,104 | GX31: 4,688 | GY31: 4,541 | GZ31: 3,681 | HA31: 5,237 | HB31: 7,780 | HC31: 16,815 | HD31: 15,765 | HE31: 27,251 | HF31: 30,395 | HG31: 14,955 | HH31: 8,446 | HI31: 6,485 | HJ31: 4,391 | HK31: 5,064 | HL31: 4,990 | HM31: 5,908 | HN31: 10,012 | HO31: 15,496 | HP31: 18,953 | HQ31: 26,489 | HR31: 28,217 | HS31: 14,120 | HT31: 9,397 | HU31: 6,420 | HV31: 5,338 | HW31: 4,306 | HX31: 3,785 | HY31: 5,675 | HZ31: 9,103 | IA31: 15,216 | IB31: 19,666 | IC31: 26,554 | ID31: 28,223 | IE31: 14,722 | IF31: 8,971 | IG31: 6,262 | IH31: 5,999 | II31: 5,045 | IJ31: 4,428 | IK31: 5,745 | IL31: 8,597 | IM31: 16,550 | IN31: 16,773 | IO31: 25,999 | IP31: 29,153 | IQ31: 15,699 | IR31: 9,270 | IS31: 6,233 | IT31: 5,979 | IU31: 4,441 | IV31: 3,727 | IW31: 4,948 | IX31: 10,110 | IY31: 15,203 | IZ31: 20,903 | JA31: 28,098 | JB31: 29,302 | JC31: 16,106 | JD31: 10,496 | JE31: 6,887 | JF31: 5,827 | JG31: 4,856 | JH31: 3,889 | JI31: 6,002 | JJ31: 11,886 | JK31: 19,091 | JL31: 19,936 | JM31: 28,159 | JN31: 31,111 | JO31: 17,248 | JP31: 10,652 | JQ31: 8,065 | JR31: 6,326 | JS31: 4,763 | JT31: 4,127 | JU31: 5,950 | JV31: 12,165 | JW31: 15,867 | JX31: 21,852 | JY31: 26,847 | JZ31: 35,708 | KA31: 17,869 | KB31: 11,197 | KC31: 7,747 | KD31: 6,791 | KE31: 5,681 | KF31: 4,338 | KG31: 2,559 | KH31: 94 | KI31: 2,090 | KJ31: 18,397 | KK31: 32,842 | KL31: 37,691 | KM31: 23,584 | KN31: 10,608 | KO31: 2,897 | KP31: 2,500 | KQ31: 3,112 | KR31: 2,826 | KS31: 3,364 | KT31: 3,353 | KU31: 9,054 | KV31: 21,924 | KW31: 32,895 | KX31: 36,455 | KY31: 21,259 | KZ31: 13,617 | LA31: 4,780 | LB31: 4,205 | LC31: 3,689 | LD31: 2,845 | LE31: 5,267 | LF31: 11,099 | LG31: 17,759 | LH31: 21,671 | LI31: 27,680 | LJ31: 29,545 | LK31: 17,149 | LL31: 12,113 | LM31: 6,583 | LN31: 5,811 | LO31: 4,941 | LP31: 3,928 | LQ31: 5,204 | LR31: 10,181 | LS31: 16,137 | LT31: 17,892 | LU31: 28,353 | LV31: 31,169 | LW31: 16,883 | LX31: 11,779 | LY31: 7,272 | LZ31: 6,074 | MA31: 4,968 | MB31: 4,070 | MC31: 6,844 | MD31: 9,780 | ME31: 18,540 | MF31: 17,600 | MG31: 26,800 | MH31: 31,004 | MI31: 14,509 | MJ31: 11,515 | MK31: 7,523 | ML31: 6,645
A32: 10719 | B32: Sankt Andrä a. Zicksee | C32: 1,556 | D32: 4,034 | E32: 4,164 | F32: 4,066 | G32: 11,515 | H32: 11,977 | I32: 16,745 | J32: 22,753 | K32: 6,659 | L32: 4,002 | M32: 2,975 | N32: 591 | O32: 788 | P32: 2,626 | Q32: 3,658 | R32: 3,970 | S32: 11,686 | T32: 8,936 | U32: 15,321 | V32: 22,134 | W32: 7,585 | X32: 4,190 | Y32: 4,163 | Z32: 1,438 | AA32: 1,155 | AB32: 3,852 | AC32: 4,136 | AD32: 4,222 | AE32: 9,502 | AF32: 11,807 | AG32: 16,815 | AH32: 22,158 | AI32: 6,801 | AJ32: 4,204 | AK32: 4,078 | AL32: 1,724 | AM32: 0 | AN32: 3,444 | AO32: 4,239 | AP32: 4,134 | AQ32: 11,798 | AR32: 11,534 | AS32: 16,728 | AT32: 23,704 | AU32: 7,681 | AV32: 4,299 | AW32: 4,186 | AX32: 1,394 | AY32: 2,273 | AZ32: 3,945 | BA32: 4,223 | BB32: 6,138 | BC32: 7,691 | BD32: 15,944 | BE32: 16,099 | BF32: 21,861 | BG32: 7,084 | BH32: 4,450 | BI32: 4,082 | BJ32: 1,097 | BK32: 1,663 | BL32: 3,538 | BM32: 4,272 | BN32: 5,973 | BO32: 8,109 | BP32: 12,502 | BQ32: 16,960 | BR32: 18,306 | BS32: 6,093 | BT32: 4,484 | BU32: 4,134 | BV32: 921 | BW32: 2,730 | BX32: 3,832 | BY32: 4,344 | BZ32: 5,042 | CA32: 11,483 | CB32: 9,453 | CC32: 14,240 | CD32: 16,736 | CE32: 6,753 | CF32: 4,411 | CG32: 4,075 | CH32: 1,615 | CI32: 1,836 | CJ32: 3,992 | CK32: 4,398 | CL32: 5,636 | CM32: 8,387 | CN32: 11,437 | CO32: 11,896 | CP32: 14,361 | CQ32: 6,152 | CR32: 4,624 | CS32: 3,959 | CT32: 1,371 | CU32: 2,197 | CV32: 4,048 | CW32: 4,573 | CX32: 6,419 | CY32: 9,434 | CZ32: 8,807 | DA32: 11,281 | DB32: 16,189 | DC32: 6,293 | DD32: 4,228 | DE32: 3,987 | DF32: 2,173 | DG32: 1,517 | DH32: 3,467 | DI32: 4,343 | DJ32: 4,848 | DK32: 10,181 | DL32: 8,391 | DM32: 11,253 | DN32: 13,897 | DO32: =6233+251 -> 6,484 | DP32: 4,248 | DQ32: 4,068 | DR32: 1,155 | DS32: 2,685 | DT32: 3,871 | DU32: 4,309 | DV32: 5,218 | DW32: 7,718 | DX32: 8,594 | DY32: 10,352 | DZ32: 11,073 | EA32: 6,116 | EB32: 4,446 | EC32: 4,061 | ED32: 1,807 | EE32: 3,022 | EF32: 3,657 | EG32: 4,292 | EH32: 5,766 | EI32: 8,793 | EJ32: 8,140 | EK32: 10,601 | EL32: 12,574 | EM32: 6,172 | EN32: 5,136 | EO32: 4,231 | EP32: 801 | EQ32: 2,840 | ER32: 4,278 | ES32: 4,395 | ET32: 4,902 | EU32: 9,369 | EV32: 7,552 | EW32: 8,690 | EX32: 13,795 | EY32: 5,882 | EZ32: 4,768 | FA32: 4,495 | FB32: 2,947 | FC32: 3,938 | FD32: 4,159 | FE32: 4,553 | FF32: 5,375 | FG32: 8,344 | FH32: 7,767 | FI32: 9,266 | FJ32: 12,585 | FK32: 6,493 | FL32: 4,648 | FM32: 4,092 | FN32: 3,084 | FO32: 2,417 | FP32: 3,071 | FQ32: 2,635 | FR32: 4,970 | FS32: 7,086 | FT32: 7,474 | FU32: 8,578 | FV32: 10,920 | FW32: 5,640 | FX32: 4,491 | FY32: 4,025 | FZ32: 3,192 | GA32: 3,269 | GB32: 3,401 | GC32: 4,029 | GD32: 5,177 | GE32: 6,200 | GF32: 8,751 | GG32: 8,297 | GH32: 12,423 | GI32: 6,306 | GJ32: 4,238 | GK32: 3,631 | GL32: 2,323 | GM32: 3,300 | GN32: 3,267 | GO32: 3,874 | GP32: 5,400 | GQ32: 7,244 | GR32: 7,730 | GS32: 7,527 | GT32: 9,909 | GU32: 5,608 | GV32: 4,333 | GW32: 3,864 | GX32: 903 | GY32: 3,257 | GZ32: 3,482 | HA32: 3,910 | HB32: 4,517 | HC32: 7,584 | HD32: 6,642 | HE32: 8,801 | HF32: 9,754 | HG32: 5,534 | HH32: 4,499 | HI32: 4,077 | HJ32: 2,354 | HK32: 3,220 | HL32: 3,081 | HM32: 3,783 | HN32: 5,039 | HO32: 6,566 | HP32: 7,543 | HQ32: 7,734 | HR32: 9,025 | HS32: 5,511 | HT32: 4,115 | HU32: 3,729 | HV32: 2,845 | HW32: 3,208 | HX32: 3,212 | HY32: 3,818 | HZ32: 4,570 | IA32: 6,347 | IB32: 6,952 | IC32: 7,939 | ID32: 9,099 | IE32: 5,714 | IF32: 4,831 | IG32: 4,468 | IH32: 2,945 | II32: 3,573 | IJ32: 3,622 | IK32: 4,473 | IL32: 4,763 | IM32: 8,286 | IN32: 5,720 | IO32: 9,321 | IP32: 11,953 | IQ32: 6,461 | IR32: 5,100 | IS32: 4,519 | IT32: 4,255 | IU32: 4,076 | IV32: 4,122 | IW32: 4,690 | IX32: 5,768 | IY32: 7,336 | IZ32: 9,143 | JA32: 10,445 | JB32: 12,118 | JC32: 6,580 | JD32: 5,087 | JE32: 4,525 | JF32: 3,678 | JG32: 4,181 | JH32: 3,822 | JI32: 4,756 | JJ32: 6,550 | JK32: 9,304 | JL32: 7,628 | JM32: 9,116 | JN32: 10,094 | JO32: 6,395 | JP32: 4,938 | JQ32: 4,458 | JR32: 3,677 | JS32: 4,228 | JT32: 3,812 | JU32: 4,559 | JV32: 6,224 | JW32: 6,940 | JX32: 9,427 | JY32: 7,731 | JZ32: =8163+2223 -> 10,386 | KA32: 6,416 | KB32: 5,066 | KC32: 4,407 | KD32: 3,810 | KE32: 4,124 | KF32: 4,172 | KG32: 2,532 | KH32: 84 | KI32: 507 | KJ32: 5,820 | KK32: 8,616 | KL32: 10,192 | KM32: 7,675 | KN32: 4,565 | KO32: 3,675 | KP32: 2,898 | KQ32: 3,050 | KR32: 3,208 | KS32: 3,739 | KT32: 3,494 | KU32: 5,555 | KV32: 8,206 | KW32: 7,812 | KX32: 9,022 | KY32: 6,752 | KZ32: 4,614 | LA32: 3,904 | LB32: 3,462 | LC32: 3,837 | LD32: 3,390 | LE32: 3,961 | LF32: 4,773 | LG32: 6,615 | LH32: 6,950 | LI32: 6,590 | LJ32: 7,122 | LK32: 4,901 | LL32: 4,136 | LM32: 3,635 | LN32: 3,205 | LO32: 3,453 | LP32: 3,400 | LQ32: 3,486 | LR32: 4,496 | LS32: 5,818 | LT32: 5,563 | LU32: 6,528 | LV32: 7,358 | LW32: 5,972 | LX32: 4,939 | LY32: 4,469 | LZ32: 3,538 | MA32: 4,506 | MB32: 4,230 | MC32: 4,884 | MD32: 5,536 | ME32: 7,770 | MF32: 6,836 | MG32: 7,518 | MH32: 8,463 | MI32: 5,687 | MJ32: 4,998 | MK32: 4,453 | ML32: 3,398
A33: 10313 | B33: Sankt Margarethen i. Bgld. | C33: 8 | D33: 0 | E33: 0 | F33: 36 | G33: 243 | H33: 833 | I33: 1,506 | J33: 2,663 | K33: 605 | L33: 139 | M33: 0 | N33: 0 | O33: 0 | P33: 0 | Q33: 0 | R33: 27 | S33: 448 | T33: 470 | U33: 1,071 | V33: 1,995 | W33: 647 | X33: 11 | Y33: 28 | Z33: 0 | AA33: 0 | AB33: 0 | AC33: 0 | AD33: 56 | AE33: 528 | AF33: 235 | AG33: 1,226 | AH33: 1,972 | AI33: 712 | AJ33: 190 | AK33: 35 | AL33: 0 | AM33: 0 | AN33: 0 | AO33: 0 | AP33: 32 | AQ33: 323 | AR33: 544 | AS33: 949 | AT33: 2,088 | AU33: 486 | AV33: 109 | AW33: 4 | AX33: 0 | AY33: 0 | AZ33: 0 | BA33: 6 | BB33: 110 | BC33: 132 | BD33: 729 | BE33: 1,446 | BF33: 2,458 | BG33: 714 | BH33: 188 | BI33: 8 | BJ33: 96 | BK33: 0 | BL33: 0 | BM33: 15 | BN33: 80 | BO33: 221 | BP33: 714 | BQ33: 2,060 | BR33: 2,697 | BS33: 539 | BT33: 659 | BU33: 5 | BV33: 0 | BW33: 21 | BX33: 0 | BY33: 0 | BZ33: 176 | CA33: 549 | CB33: 452 | CC33: 1,480 | CD33: 2,879 | CE33: 447 | CF33: 350 | CG33: 16 | CH33: 0 | CI33: 9 | CJ33: 37 | CK33: 18 | CL33: 233 | CM33: 404 | CN33: 452 | CO33: 1,547 | CP33: 2,389 | CQ33: 577 | CR33: 8 | CS33: 41 | CT33: 0 | CU33: 9 | CV33: 0 | CW33: 0 | CX33: 0 | CY33: 186 | CZ33: 418 | DA33: 1,448 | DB33: 2,776 | DC33: 441 | DD33: 213 | DE33: 0 | DF33: 0 | DG33: 5 | DH33: 14 | DI33: 0 | DJ33: 0 | DK33: 260 | DL33: 669 | DM33: 1,841 | DN33: 2,703 | DO33: 584 | DP33: 54 | DQ33: 239 | DR33: 0 | DS33: 0 | DT33: 0 | DU33: 0 | DV33: 0 | DW33: 120 | DX33: 448 | DY33: 1,545 | DZ33: 2,507 | EA33: 156 | EB33: 22 | EC33: 244 | ED33: 0 | EE33: 0 | EF33: 0 | EG33: 0 | EH33: 20 | EI33: 229 | EJ33: 381 | EK33: 2,476 | EL33: 3,238 | EM33: 192 | EN33: 400 | EO33: 0 | EP33: 19 | EQ33: 0 | ER33: 0 | ES33: 0 | ET33: 4 | EU33: 686 | EV33: 914 | EW33: 2,634 | EX33: 2,897 | EY33: 681 | EZ33: 59 | FA33: 235 | FB33: 0 | FC33: 0 | FD33: 0 | FE33: 0 | FF33: 542 | FG33: 443 | FH33: 971 | FI33: 3,058 | FJ33: 3,268 | FK33: 438 | FL33: 84 | FM33: 131 | FN33: 0 | FO33: 181 | FP33: 0 | FQ33: 0 | FR33: 8 | FS33: 740 | FT33: 730 | FU33: 2,697 | FV33: 3,481 | FW33: 730 | FX33: 90 | FY33: 175 | FZ33: 223 | GA33: 82 | GB33: 0 | GC33: 445 | GD33: 310 | GE33: 592 | GF33: 1,247 | GG33: 2,414 | GH33: 2,624 | GI33: 654 | GJ33: 355 | GK33: 268 | GL33: 28 | GM33: 111 | GN33: 20 | GO33: 95 | GP33: 248 | GQ33: 937 | GR33: 477 | GS33: 1,889 | GT33: 2,389 | GU33: 485 | GV33: 40 | GW33: 239 | GX33: 0 | GY33: 0 | GZ33: 0 | HA33: 0 | HB33: 4 | HC33: 312 | HD33: 434 | HE33: 1,968 | HF33: 2,094 | HG33: 349 | HH33: 10 | HI33: 0 | HJ33: 42 | HK33: 0 | HL33: 0 | HM33: 0 | HN33: 18 | HO33: 54 | HP33: 1,107 | HQ33: 1,964 | HR33: 1,621 | HS33: 343 | HT33: 89 | HU33: 37 | HV33: 12 | HW33: 0 | HX33: 0 | HY33: 40 | HZ33: 157 | IA33: 260 | IB33: 950 | IC33: 1,753 | ID33: 1,447 | IE33: 517 | IF33: 308 | IG33: 59 | IH33: 4 | II33: 17 | IJ33: 18 | IK33: 12 | IL33: 7 | IM33: 321 | IN33: 526 | IO33: 1,751 | IP33: 1,515 | IQ33: 453 | IR33: 183 | IS33: 128 | IT33: 48 | IU33: 27 | IV33: 17 | IW33: 58 | IX33: 192 | IY33: 241 | IZ33: 502 | JA33: 1,208 | JB33: 1,567 | JC33: 539 | JD33: 405 | JE33: 174 | JF33: 118 | JG33: 40 | JH33: 6 | JI33: 106 | JJ33: 397 | JK33: 400 | JL33: 443 | JM33: 1,025 | JN33: 1,196 | JO33: 492 | JP33: 197 | JQ33: 125 | JR33: 19 | JS33: 68 | JT33: 90 | JU33: 34 | JV33: 85 | JW33: 325 | JX33: 329 | JY33: 1,282 | JZ33: 1,548 | KA33: 277 | KB33: 328 | KC33: 63 | KD33: 49 | KE33: 40 | KF33: 37 | KG33: 64 | KH33: 4 | KI33: 69 | KJ33: 169 | KK33: 687 | KL33: 989 | KM33: 339 | KN33: 72 | KO33: 98 | KP33: 42 | KQ33: 76 | KR33: 53 | KS33: 71 | KT33: 139 | KU33: 215 | KV33: 374 | KW33: 917 | KX33: 1,193 | KY33: 619 | KZ33: 341 | LA33: 69 | LB33: 51 | LC33: 44 | LD33: 69 | LE33: 94 | LF33: 140 | LG33: 253 | LH33: 484 | LI33: 965 | LJ33: 996 | LK33: 282 | LL33: 161 | LM33: 41 | LN33: 23 | LO33: 15 | LP33: 27 | LQ33: 48 | LR33: 67 | LS33: 166 | LT33: 195 | LU33: 1,101 | LV33: 841 | LW33: 213 | LX33: 142 | LY33: 53 | LZ33: 42 | MA33: 24 | MB33: 4 | MC33: 29 | MD33: 70 | ME33: 287 | MF33: 190 | MG33: 844 | MH33: 826 | MI33: 104 | MJ33: 160 | MK33: 62 | ML33: 15
A34: 10314 | B34: Schützen a. Geb. (ab 11/23) | LY34: 22 | LZ34: 18 | MA34: 14 | MB34: 14 | MC34: 46 | MD34: 69 | ME34: 52 | MF34: 106 | MG34: 169 | MH34: 402 | MI34: 179 | MJ34: 64 | MK34: 16 | ML34: 175
A35: 10315 | B35: Siegendorf (bis 4/99) | C35: 7 | D35: 21 | E35: 17 | F35: 17 | G35: 190 | H35: 36 | I35: 203 | J35: 386 | K35: 77 | L35: 74 | M35: 10 | N35: 21 | O35: 1 | P35: 8 | Q35: 9 | R35: 17 | S35: 174 | T35: 124 | U35: 192 | V35: 268 | W35: 45 | X35: 81 | Y35: 4 | Z35: 9 | AA35: 2 | AB35: 49 | AC35: 18 | AD35: 40 | AE35: 78 | AF35: 174 | AG35: 314 | AH35: 454 | AI35: 170 | AJ35: 45 | AK35: 0 | AL35: 0 | AM35: 0 | AN35: 0 | AO35: 11 | AP35: 10 | AQ35: 0 | AR35: 0 | AS35: 0 | AT35: 0 | AU35: 0 | AV35: 0 | AW35: 0 | AX35: 0 | AY35: 0 | AZ35: 0 | BA35: 0 | BB35: 0 | MI35: 0 | MJ35: 0 | MK35: 0 | ML35: 0
A36: 10720 | B36: Tadten (ab 11/23) | LY36: 43 | LZ36: 10 | MA36: 31 | MB36: 2 | MC36: 53 | MD36: 78 | ME36: 149 | MF36: 159 | MG36: 266 | MH36: 304 | MI36: 86 | MJ36: 37 | MK36: 34 | ML36: 15
A37: 10317 | B37: Trausdorf a. d. Wulka | C37: 168 | D37: 330 | E37: 404 | F37: 501 | G37: 888 | H37: 776 | I37: 1,036 | J37: 1,221 | K37: 1,001 | L37: 478 | M37: 130 | N37: 61 | O37: 217 | P37: 118 | Q37: 117 | R37: 219 | S37: 377 | T37: 325 | U37: 573 | V37: 991 | W37: 592 | X37: 743 | Y37: 159 | Z37: 89 | AA37: 157 | AB37: 143 | AC37: 199 | AD37: 200 | AE37: 545 | AF37: 652 | AG37: 673 | AH37: 763 | AI37: 627 | AJ37: 193 | AK37: 177 | AL37: 186 | AM37: 134 | AN37: 130 | AO37: 221 | AP37: 177 | AQ37: 474 | AR37: 710 | AS37: 777 | AT37: 1,201 | AU37: 434 | AV37: 197 | AW37: 123 | AX37: 64 | AY37: 84 | AZ37: 137 | BA37: 147 | BB37: 263 | BC37: 425 | BD37: 425 | BE37: 819 | BF37: 1,194 | BG37: 556 | BH37: 546 | BI37: 66 | BJ37: 93 | BK37: 113 | BL37: 219 | BM37: 354 | BN37: 343 | BO37: 606 | BP37: 319 | BQ37: 842 | BR37: 1,117 | BS37: 659 | BT37: 423 | BU37: 72 | BV37: 158 | BW37: 252 | BX37: 74 | BY37: 80 | BZ37: 268 | CA37: 413 | CB37: 344 | CC37: 1,014 | CD37: 1,277 | CE37: 397 | CF37: 435 | CG37: 87 | CH37: 58 | CI37: 124 | CJ37: 116 | CK37: 185 | CL37: 423 | CM37: 340 | CN37: 555 | CO37: 779 | CP37: 825 | CQ37: 448 | CR37: 155 | CS37: 134 | CT37: 17 | CU37: 51 | CV37: 23 | CW37: 66 | CX37: 164 | CY37: 506 | CZ37: 416 | DA37: 1,030 | DB37: 1,378 | DC37: 399 | DD37: 184 | DE37: 129 | DF37: 112 | DG37: 153 | DH37: 103 | DI37: 202 | DJ37: 257 | DK37: 543 | DL37: 509 | DM37: 812 | DN37: 1,345 | DO37: 553 | DP37: 266 | DQ37: 132 | DR37: 101 | DS37: 74 | DT37: 64 | DU37: 53 | DV37: 190 | DW37: 305 | DX37: 291 | DY37: 751 | DZ37: 680 | EA37: 527 | EB37: 529 | EC37: 157 | ED37: 177 | EE37: 161 | EF37: 196 | EG37: 216 | EH37: 247 | EI37: 377 | EJ37: 549 | EK37: 1,035 | EL37: 1,253 | EM37: 629 | EN37: 416 | EO37: 174 | EP37: 123 | EQ37: 207 | ER37: 203 | ES37: 49 | ET37: 313 | EU37: 525 | EV37: 489 | EW37: 995 | EX37: 1,307 | EY37: 599 | EZ37: 273 | FA37: 71 | FB37: 118 | FC37: 113 | FD37: 118 | FE37: 125 | FF37: 102 | FG37: 351 | FH37: 287 | FI37: 1,111 | FJ37: 1,014 | FK37: 558 | FL37: 260 | FM37: 34 | FN37: 62 | FO37: 80 | FP37: 103 | FQ37: 78 | FR37: 236 | FS37: 219 | FT37: 231 | FU37: 779 | FV37: 1,261 | FW37: 244 | FX37: 324 | FY37: 140 | FZ37: 41 | GA37: 100 | GB37: 117 | GC37: 74 | GD37: 148 | GE37: 214 | GF37: 456 | GG37: 625 | GH37: 1,043 | GI37: 377 | GJ37: 168 | GK37: 128 | GL37: 57 | GM37: 123 | GN37: 50 | GO37: 73 | GP37: 181 | GQ37: 243 | GR37: 289 | GS37: 748 | GT37: 936 | GU37: 277 | GV37: 97 | GW37: 75 | GX37: 105 | GY37: 62 | GZ37: 60 | HA37: 190 | HB37: 126 | HC37: 134 | HD37: 241 | HE37: 510 | HF37: 667 | HG37: 200 | HH37: 90 | HI37: 125 | HJ37: 46 | HK37: 138 | HL37: 85 | HM37: 95 | HN37: 99 | HO37: 178 | HP37: 169 | HQ37: 673 | HR37: 694 | HS37: 205 | HT37: 178 | HU37: 91 | HV37: 15 | HW37: 68 | HX37: 59 | HY37: 192 | HZ37: 78 | IA37: 214 | IB37: 162 | IC37: 243 | ID37: 345 | IE37: 227 | IF37: 174 | IG37: 134 | IH37: 59 | II37: 14 | IJ37: 64 | IK37: 33 | IL37: 101 | IM37: 210 | IN37: 236 | IO37: 652 | IP37: 459 | IQ37: 330 | IR37: 202 | IS37: 35 | IT37: 58 | IU37: 41 | IV37: 66 | IW37: 60 | IX37: 113 | IY37: 129 | IZ37: 156 | JA37: 465 | JB37: 739 | JC37: 330 | JD37: 90 | JE37: 70 | JF37: 34 | JG37: 41 | JH37: 70 | JI37: 149 | JJ37: 210 | JK37: 170 | JL37: 210 | JM37: 257 | JN37: 364 | JO37: 131 | JP37: 118 | JQ37: 31 | JR37: 28 | JS37: 17 | JT37: 27 | JU37: 69 | JV37: 62 | JW37: 322 | JX37: 277 | JY37: 719 | JZ37: 670 | KA37: 217 | KB37: 295 | KC37: 86 | KD37: 56 | KE37: 32 | KF37: 41 | KG37: 34 | KH37: 0 | KI37: 11 | KJ37: 173 | KK37: 543 | KL37: 710 | KM37: 302 | KN37: 70 | KO37: 0 | KP37: 0 | KQ37: 2 | KR37: 0 | KS37: 0 | KT37: 0 | KU37: 67 | KV37: 272 | KW37: 819 | KX37: 908 | KY37: 404 | KZ37: 269 | LA37: 35 | LB37: 94 | LC37: 39 | LD37: 25 | LE37: 114 | LF37: 90 | LG37: 235 | LH37: 405 | LI37: 868 | LJ37: 746 | LK37: 298 | LL37: 151 | LM37: 65 | LN37: 54 | LO37: 61 | LP37: 66 | LQ37: 76 | LR37: 188 | LS37: 235 | LT37: 239 | LU37: 1,026 | LV37: 868 | LW37: 470 | LX37: 444 | LY37: 60 | LZ37: 89 | MA37: 36 | MB37: 133 | MC37: 125 | MD37: 303 | ME37: 566 | MF37: 480 | MG37: 1,135 | MH37: 980 | MI37: 343 | MJ37: 249 | MK37: 79 | ML37: 44
A38: 10721 | B38: Wallern i. Bgld. | C38: 9 | D38: 36 | E38: 57 | F38: 16 | G38: 947 | H38: 701 | I38: 705 | J38: 1,088 | K38: 573 | L38: 415 | M38: 200 | N38: 41 | O38: 2 | P38: 0 | Q38: 31 | R38: 18 | S38: 587 | T38: 496 | U38: 726 | V38: 1,173 | W38: 464 | X38: 261 | Y38: 100 | Z38: 24 | AA38: 0 | AB38: 6 | AC38: 9 | AD38: 204 | AE38: 280 | AF38: 422 | AG38: 542 | AH38: 1,193 | AI38: 237 | AJ38: 149 | AK38: 80 | AL38: 80 | AM38: 31 | AN38: 20 | AO38: 37 | AP38: 30 | AQ38: 269 | AR38: 98 | AS38: 128 | AT38: 1,188 | AU38: 163 | AV38: 88 | AW38: 70 | AX38: 0 | AY38: 11 | AZ38: 6 | BA38: 39 | BB38: 13 | BC38: 193 | BD38: 832 | BE38: 565 | BF38: 1,231 | BG38: 266 | BH38: 49 | BI38: 53 | BJ38: 32 | BK38: 75 | BL38: 19 | BM38: 13 | BN38: 21 | BO38: 753 | BP38: 327 | BQ38: 447 | BR38: 1,771 | BS38: 192 | BT38: 40 | BU38: 40 | BV38: 21 | BW38: 1 | BX38: 0 | BY38: 51 | BZ38: 0 | CA38: 396 | CB38: 401 | CC38: 439 | CD38: 913 | CE38: 130 | CF38: 80 | CG38: 45 | CH38: 5 | CI38: 0 | CJ38: 0 | CK38: 8 | CL38: 28 | CM38: 1,024 | CN38: 667 | CO38: 724 | CP38: 1,165 | CQ38: 293 | CR38: 72 | CS38: 90 | CT38: 24 | CU38: 0 | CV38: 0 | CW38: 0 | CX38: 161 | CY38: 126 | CZ38: 741 | DA38: 1,263 | DB38: 1,486 | DC38: 341 | DD38: 93 | DE38: 99 | DF38: 8 | DG38: 55 | DH38: 1 | DI38: 26 | DJ38: 116 | DK38: 1,080 | DL38: 819 | DM38: 812 | DN38: 1,726 | DO38: 346 | DP38: 91 | DQ38: 141 | DR38: 23 | DS38: 409 | DT38: 6 | DU38: 113 | DV38: 140 | DW38: 536 | DX38: 969 | DY38: 754 | DZ38: 1,022 | EA38: 630 | EB38: 191 | EC38: 258 | ED38: 159 | EE38: 31 | EF38: 114 | EG38: 42 | EH38: 80 | EI38: 326 | EJ38: 777 | EK38: 659 | EL38: 1,654 | EM38: 529 | EN38: 73 | EO38: 161 | EP38: 72 | EQ38: 35 | ER38: 8 | ES38: 22 | ET38: 144 | EU38: 515 | EV38: 1,333 | EW38: 482 | EX38: =376+929 -> 1,305 | EY38: 343 | EZ38: 145 | FA38: 125 | FB38: 36 | FC38: 27 | FD38: 11 | FE38: 41 | FF38: 108 | FG38: 720 | FH38: 752 | FI38: 813 | FJ38: 1,418 | FK38: 415 | FL38: 383 | FM38: 188 | FN38: 10 | FO38: 4 | FP38: 21 | FQ38: 84 | FR38: 94 | FS38: 634 | FT38: 914 | FU38: 434 | FV38: 1,274 | FW38: 447 | FX38: 204 | FY38: 152 | FZ38: 86 | GA38: 16 | GB38: 8 | GC38: 99 | GD38: 116 | GE38: 388 | GF38: 988 | GG38: 886 | GH38: 1,405 | GI38: 476 | GJ38: 158 | GK38: 119 | GL38: 81 | GM38: 24 | GN38: 26 | GO38: 29 | GP38: 150 | GQ38: 1,094 | GR38: 1,061 | GS38: 1,269 | GT38: 1,790 | GU38: 699 | GV38: 383 | GW38: 336 | GX38: 137 | GY38: 43 | GZ38: 118 | HA38: 69 | HB38: 232 | HC38: 580 | HD38: 734 | HE38: 608 | HF38: 1,688 | HG38: 734 | HH38: 269 | HI38: 218 | HJ38: 78 | HK38: 51 | HL38: 146 | HM38: 14 | HN38: 58 | HO38: 1,485 | HP38: 710 | HQ38: 592 | HR38: 1,329 | HS38: 626 | HT38: 61 | HU38: 232 | HV38: 60 | HW38: 59 | HX38: 243 | HY38: 76 | HZ38: 121 | IA38: 757 | IB38: 649 | IC38: 447 | ID38: 1,330 | IE38: 714 | IF38: 273 | IG38: 337 | IH38: 90 | II38: 135 | IJ38: 170 | IK38: 140 | IL38: 222 | IM38: 1,137 | IN38: 888 | IO38: 1,004 | IP38: 1,315 | IQ38: 1,104 | IR38: 462 | IS38: 505 | IT38: 120 | IU38: 70 | IV38: 120 | IW38: 88 | IX38: 167 | IY38: 1,070 | IZ38: 617 | JA38: 875 | JB38: 1,118 | JC38: 768 | JD38: 102 | JE38: 384 | JF38: 283 | JG38: 59 | JH38: 174 | JI38: 48 | JJ38: 312 | JK38: 591 | JL38: 730 | JM38: 863 | JN38: 826 | JO38: 649 | JP38: 96 | JQ38: 406 | JR38: 193 | JS38: 51 | JT38: 95 | JU38: 427 | JV38: 305 | JW38: 723 | JX38: 897 | JY38: 937 | JZ38: 1,038 | KA38: 605 | KB38: 208 | KC38: 260 | KD38: 50 | KE38: 65 | KF38: 44 | KG38: 180 | KH38: 64 | KI38: 143 | KJ38: 280 | KK38: 849 | KL38: 1,522 | KM38: 766 | KN38: 160 | KO38: 106 | KP38: 53 | KQ38: 64 | KR38: 61 | KS38: 211 | KT38: 243 | KU38: 179 | KV38: 387 | KW38: 951 | KX38: 1,671 | KY38: 717 | KZ38: 169 | LA38: 205 | LB38: 28 | LC38: 206 | LD38: 82 | LE38: 211 | LF38: 233 | LG38: 784 | LH38: 1,168 | LI38: 599 | LJ38: 758 | LK38: 556 | LL38: 149 | LM38: 226 | LN38: 92 | LO38: 24 | LP38: 165 | LQ38: 163 | LR38: 115 | LS38: 593 | LT38: 513 | LU38: 570 | LV38: 653 | LW38: 565 | LX38: 261 | LY38: 370 | LZ38: 58 | MA38: 62 | MB38: 69 | MC38: 210 | MD38: 86 | ME38: 369 | MF38: 716 | MG38: 583 | MH38: 761 | MI38: 265 | MJ38: 247 | MK38: 342 | ML38: 240
A39: 10722 | B39: Weiden a. See | C39: 0 | D39: 0 | E39: 0 | F39: 1,349 | G39: 5,737 | H39: 7,858 | I39: 11,418 | J39: 20,531 | K39: 6,107 | L39: 1,478 | M39: 280 | N39: 0 | O39: 0 | P39: 0 | Q39: 0 | R39: 496 | S39: 5,476 | T39: 11,774 | U39: 11,314 | V39: 19,919 | W39: 4,899 | X39: 2,376 | Y39: 344 | Z39: 0 | AA39: 0 | AB39: 0 | AC39: 0 | AD39: 861 | AE39: 6,700 | AF39: 9,166 | AG39: 13,918 | AH39: 18,957 | AI39: 5,956 | AJ39: 3,030 | AK39: 517 | AL39: 0 | AM39: 0 | AN39: 0 | AO39: 39 | AP39: 777 | AQ39: 5,655 | AR39: 9,431 | AS39: 14,698 | AT39: 18,379 | AU39: 7,340 | AV39: 1,353 | AW39: 363 | AX39: 0 | AY39: 0 | AZ39: 0 | BA39: 0 | BB39: 1,459 | BC39: 6,007 | BD39: 11,382 | BE39: 15,754 | BF39: 20,297 | BG39: 5,311 | BH39: 746 | BI39: 366 | BJ39: 0 | BK39: 0 | BL39: 0 | BM39: 0 | BN39: 1,618 | BO39: 6,652 | BP39: 10,597 | BQ39: 16,127 | BR39: 18,770 | BS39: 4,229 | BT39: 1,072 | BU39: 569 | BV39: 0 | BW39: 0 | BX39: 0 | BY39: 0 | BZ39: 1,555 | CA39: 8,242 | CB39: 9,974 | CC39: 15,269 | CD39: 18,658 | CE39: 5,639 | CF39: 1,146 | CG39: 631 | CH39: 0 | CI39: 0 | CJ39: 0 | CK39: 74 | CL39: 1,432 | CM39: 7,218 | CN39: 11,157 | CO39: 14,945 | CP39: 17,047 | CQ39: 3,800 | CR39: 1,103 | CS39: 539 | CT39: 24 | CU39: 17 | CV39: 20 | CW39: 73 | CX39: 1,167 | CY39: 6,247 | CZ39: 8,699 | DA39: 13,740 | DB39: 14,017 | DC39: 4,198 | DD39: 1,299 | DE39: 943 | DF39: 43 | DG39: 37 | DH39: 60 | DI39: 111 | DJ39: 1,218 | DK39: 4,982 | DL39: 8,011 | DM39: 13,748 | DN39: 13,135 | DO39: 4,053 | DP39: 1,483 | DQ39: 756 | DR39: 0 | DS39: 0 | DT39: 7 | DU39: 38 | DV39: 974 | DW39: 6,206 | DX39: 7,294 | DY39: 10,861 | DZ39: 11,878 | EA39: 3,434 | EB39: 922 | EC39: 1,033 | ED39: 4 | EE39: 0 | EF39: 103 | EG39: 198 | EH39: 1,121 | EI39: 4,037 | EJ39: 6,118 | EK39: 9,538 | EL39: 10,926 | EM39: 3,243 | EN39: 799 | EO39: 896 | EP39: 43 | EQ39: 6 | ER39: 97 | ES39: =23+70 -> 93 | ET39: 1,147 | EU39: 4,895 | EV39: 5,419 | EW39: 9,144 | EX39: 12,558 | EY39: 3,905 | EZ39: 1,710 | FA39: 1,319 | FB39: 18 | FC39: 57 | FD39: 55 | FE39: 109 | FF39: 1,276 | FG39: 4,496 | FH39: 5,735 | FI39: 9,741 | FJ39: 12,810 | FK39: 3,856 | FL39: 1,175 | FM39: 1,100 | FN39: 9 | FO39: 37 | FP39: 67 | FQ39: 208 | FR39: 1,855 | FS39: 3,931 | FT39: 6,969 | FU39: 10,006 | FV39: 12,804 | FW39: 4,088 | FX39: 838 | FY39: 1,137 | FZ39: 13 | GA39: 31 | GB39: 76 | GC39: 155 | GD39: 2,106 | GE39: 3,429 | GF39: 7,337 | GG39: 9,756 | GH39: 13,237 | GI39: 4,235 | GJ39: 1,387 | GK39: 1,489 | GL39: 63 | GM39: 31 | GN39: 53 | GO39: 312 | GP39: 2,585 | GQ39: 4,703 | GR39: 6,809 | GS39: 9,958 | GT39: 12,834 | GU39: 5,239 | GV39: 1,177 | GW39: 1,446 | GX39: 250 | GY39: 295 | GZ39: 360 | HA39: 475 | HB39: 1,667 | HC39: 4,413 | HD39: 6,271 | HE39: 10,071 | HF39: 12,091 | HG39: 4,617 | HH39: 1,649 | HI39: 1,849 | HJ39: 237 | HK39: 163 | HL39: 161 | HM39: 255 | HN39: 1,495 | HO39: 4,088 | HP39: 5,914 | HQ39: 8,989 | HR39: 10,605 | HS39: 3,427 | HT39: 712 | HU39: 1,018 | HV39: 57 | HW39: 68 | HX39: 92 | HY39: 102 | HZ39: 1,233 | IA39: 3,512 | IB39: 5,965 | IC39: 8,836 | ID39: 9,852 | IE39: 3,546 | IF39: 1,052 | IG39: 1,284 | IH39: 253 | II39: 79 | IJ39: 172 | IK39: 384 | IL39: 1,313 | IM39: 4,673 | IN39: 5,373 | IO39: 8,632 | IP39: 10,154 | IQ39: 4,023 | IR39: 689 | IS39: 898 | IT39: 100 | IU39: 102 | IV39: 29 | IW39: 178 | IX39: 982 | IY39: 3,339 | IZ39: 6,151 | JA39: 8,188 | JB39: 10,173 | JC39: 3,303 | JD39: 468 | JE39: 1,022 | JF39: 212 | JG39: 111 | JH39: 159 | JI39: 181 | JJ39: 1,547 | JK39: 4,139 | JL39: 5,168 | JM39: 8,192 | JN39: 9,320 | JO39: 2,892 | JP39: 773 | JQ39: 829 | JR39: 117 | JS39: 57 | JT39: 194 | JU39: 187 | JV39: 1,113 | JW39: 1,825 | JX39: 3,608 | JY39: 4,479 | JZ39: 5,143 | KA39: 2,165 | KB39: 608 | KC39: 847 | KD39: 275 | KE39: 180 | KF39: 189 | KG39: 57 | KH39: 42 | KI39: 213 | KJ39: 2,247 | KK39: 4,647 | KL39: 5,269 | KM39: 2,888 | KN39: 681 | KO39: 135 | KP39: 33 | KQ39: 0 | KR39: 210 | KS39: 25 | KT39: 195 | KU39: 584 | KV39: 2,686 | KW39: 4,129 | KX39: 5,630 | KY39: 2,419 | KZ39: 699 | LA39: 502 | LB39: 24 | LC39: 109 | LD39: 122 | LE39: 113 | LF39: 462 | LG39: 1,595 | LH39: 2,523 | LI39: 3,270 | LJ39: 3,465 | LK39: 1,544 | LL39: 529 | LM39: 489 | LN39: 190 | LO39: 194 | LP39: 217 | LQ39: 180 | LR39: 744 | LS39: 2,035 | LT39: 3,010 | LU39: 6,304 | LV39: 7,797 | LW39: 4,413 | LX39: 2,562 | LY39: 1,661 | LZ39: 1,536 | MA39: 41 | MB39: 1,205 | MC39: 1,659 | MD39: 1,915 | ME39: 4,142 | MF39: 4,308 | MG39: 6,386 | MH39: 7,417 | MI39: 3,721 | MJ39: 2,654 | MK39: 2,644 | ML39: 2,144
A40: 10318 | B40: Wimpassing a. d. Leitha (bis 4/99) | C40: 2 | D40: 12 | E40: 42 | F40: 15 | G40: 157 | H40: 0 | I40: 158 | J40: 196 | K40: 150 | L40: 155 | M40: 169 | N40: 122 | O40: 0 | P40: 26 | Q40: 120 | R40: 137 | S40: 96 | T40: 126 | U40: 151 | V40: 24 | W40: 50 | X40: 56 | Y40: 44 | Z40: 0 | AA40: 46 | AB40: 39 | AC40: 56 | AD40: 197 | AE40: 118 | AF40: 49 | AG40: 97 | AH40: 122 | AI40: 142 | AJ40: 52 | AK40: 67 | AL40: 48 | AM40: 69 | AN40: 87 | AO40: 217 | AP40: 180 | AQ40: 0 | AR40: 0 | AS40: 0 | AT40: 0 | AU40: 0 | AV40: 0 | AW40: 0 | AX40: 0 | AY40: 0 | AZ40: 0 | BA40: 0 | BB40: 0 | MI40: 0 | MJ40: 0 | MK40: 0 | ML40: 0
A41: 10723 | B41: Winden a. See (ab 11/06) | EC41: 24 | ED41: 0 | EE41: 0 | EF41: 0 | EG41: 29 | EH41: 107 | EI41: 121 | EJ41: 177 | EK41: 470 | EL41: 610 | EM41: 304 | EN41: 34 | EO41: 68 | EP41: 0 | EQ41: 0 | ER41: 0 | ES41: 0 | ET41: 32 | EU41: 287 | EV41: 222 | EW41: 554 | EX41: 959 | EY41: 246 | EZ41: 81 | FA41: 63 | FB41: 4 | FC41: 0 | FD41: 0 | FE41: 2 | FF41: 117 | FG41: 320 | FH41: 296 | FI41: 720 | FJ41: 916 | FK41: 171 | FL41: 44 | FM41: 32 | FN41: 0 | FO41: 0 | FP41: 0 | FQ41: 0 | FR41: 58 | FS41: 136 | FT41: 168 | FU41: 575 | FV41: 729 | FW41: 152 | FX41: 60 | FY41: 34 | FZ41: 0 | GA41: 0 | GB41: 0 | GC41: 0 | GD41: 73 | GE41: 176 | GF41: 384 | GG41: 417 | GH41: 638 | GI41: 231 | GJ41: 82 | GK41: 43 | GL41: 0 | GM41: 0 | GN41: 0 | GO41: 0 | GP41: 14 | GQ41: 220 | GR41: 186 | GS41: 431 | GT41: 694 | GU41: 294 | GV41: 142 | GW41: 21 | GX41: 0 | GY41: 0 | GZ41: 4 | HA41: 0 | HB41: 20 | HC41: 272 | HD41: 149 | HE41: 362 | HF41: 552 | HG41: 192 | HH41: 59 | HI41: 62 | HJ41: 15 | HK41: 0 | HL41: 0 | HM41: 2 | HN41: 58 | HO41: 136 | HP41: 212 | HQ41: 390 | HR41: 552 | HS41: 141 | HT41: 38 | HU41: 58 | HV41: 0 | HW41: 2 | HX41: 4 | HY41: 0 | HZ41: 60 | IA41: 268 | IB41: 181 | IC41: 408 | ID41: 593 | IE41: 135 | IF41: 36 | IG41: 32 | IH41: 0 | II41: 0 | IJ41: 0 | IK41: 24 | IL41: 56 | IM41: 266 | IN41: 242 | IO41: 555 | IP41: 578 | IQ41: 321 | IR41: 89 | IS41: 111 | IT41: 0 | IU41: 0 | IV41: 20 | IW41: 41 | IX41: 76 | IY41: 235 | IZ41: 222 | JA41: 617 | JB41: 709 | JC41: 217 | JD41: 203 | JE41: 14 | JF41: 6 | JG41: 27 | JH41: 0 | JI41: 14 | JJ41: 82 | JK41: 294 | JL41: 297 | JM41: 657 | JN41: 663 | JO41: 160 | JP41: 128 | JQ41: 109 | JR41: 43 | JS41: 8 | JT41: 0 | JU41: 0 | JV41: 53 | JW41: 196 | JX41: 258 | JY41: 587 | JZ41: 557 | KA41: 261 | KB41: 131 | KC41: 112 | KD41: 15 | KE41: 38 | KF41: 47 | KG41: 24 | KH41: 25 | KI41: 42 | KJ41: 260 | KK41: 657 | KL41: 671 | KM41: 317 | KN41: 60 | KO41: 42 | KP41: 12 | KQ41: 0 | KR41: 28 | KS41: 17 | KT41: 34 | KU41: =122+53 -> 175 | KV41: 506 | KW41: 689 | KX41: 791 | KY41: 376 | KZ41: 113 | LA41: 47 | LB41: 2 | LC41: 16 | LD41: 29 | LE41: 54 | LF41: 242 | LG41: 331 | LH41: 383 | LI41: 527 | LJ41: 467 | LK41: 257 | LL41: 59 | LM41: 37 | LN41: 15 | LO41: 39 | LP41: 63 | LQ41: 134 | LR41: 113 | LS41: 125 | LT41: 287 | LU41: 483 | LV41: 496 | LW41: 297 | LX41: 302 | LY41: 246 | LZ41: 120 | MA41: 136 | MB41: 113 | MC41: 150 | MD41: 173 | ME41: 283 | MF41: 355 | MG41: 529 | MH41: 584 | MI41: 312 | MJ41: 197 | MK41: 216 | ML41: 210
A42: 10724 | B42: Zurndorf (ab 11/06) | EC42: 326 | ED42: 164 | EE42: 0 | EF42: 0 | EG42: 126 | EH42: 226 | EI42: 339 | EJ42: 344 | EK42: 463 | EL42: 616 | EM42: 352 | EN42: 329 | EO42: 288 | EP42: 0 | EQ42: 0 | ER42: 0 | ES42: 186 | ET42: 248 | EU42: 365 | EV42: 366 | EW42: 418 | EX42: 466 | EY42: 363 | EZ42: 277 | FA42: 314 | FB42: 65 | FC42: 0 | FD42: 11 | FE42: 190 | FF42: 212 | FG42: 295 | FH42: 335 | FI42: 522 | FJ42: 533 | FK42: 285 | FL42: 240 | FM42: 141 | FN42: 117 | FO42: 21 | FP42: 77 | FQ42: 169 | FR42: 218 | FS42: 216 | FT42: 259 | FU42: 606 | FV42: 675 | FW42: 398 | FX42: 343 | FY42: 284 | FZ42: 124 | GA42: 48 | GB42: 3 | GC42: 269 | GD42: 198 | GE42: 314 | GF42: 308 | GG42: 617 | GH42: 296 | GI42: 505 | GJ42: 290 | GK42: 271 | GL42: 165 | GM42: 157 | GN42: 191 | GO42: 210 | GP42: 292 | GQ42: 274 | GR42: 379 | GS42: 388 | GT42: 428 | GU42: 262 | GV42: 277 | GW42: 198 | GX42: 132 | GY42: 0 | GZ42: 0 | HA42: 1 | HB42: 210 | HC42: 236 | HD42: 372 | HE42: 343 | HF42: 539 | HG42: 351 | HH42: 273 | HI42: 241 | HJ42: 0 | HK42: 43 | HL42: 57 | HM42: 433 | HN42: 209 | HO42: 395 | HP42: 443 | HQ42: 401 | HR42: 707 | HS42: 380 | HT42: 285 | HU42: 300 | HV42: 112 | HW42: 101 | HX42: 160 | HY42: 213 | HZ42: 173 | IA42: 416 | IB42: 498 | IC42: 573 | ID42: 546 | IE42: 393 | IF42: 200 | IG42: 436 | IH42: 109 | II42: 73 | IJ42: 153 | IK42: 196 | IL42: 336 | IM42: 562 | IN42: 706 | IO42: 756 | IP42: 793 | IQ42: 538 | IR42: 528 | IS42: 579 | IT42: 187 | IU42: 115 | IV42: 276 | IW42: 117 | IX42: 238 | IY42: 656 | IZ42: 818 | JA42: 783 | JB42: 796 | JC42: 620 | JD42: 392 | JE42: 465 | JF42: 36 | JG42: 74 | JH42: 81 | JI42: 281 | JJ42: 621 | JK42: 491 | JL42: 719 | JM42: 749 | JN42: 815 | JO42: 585 | JP42: 441 | JQ42: 537 | JR42: 177 | JS42: 68 | JT42: 216 | JU42: 275 | JV42: 440 | JW42: 625 | JX42: 785 | JY42: 796 | JZ42: 1,051 | KA42: 660 | KB42: 573 | KC42: 353 | KD42: 121 | KE42: 143 | KF42: 157 | KG42: 452 | KH42: 3 | KI42: 43 | KJ42: 352 | KK42: 906 | KL42: 1,308 | KM42: 553 | KN42: 322 | KO42: 23 | KP42: 3 | KQ42: 17 | KR42: 62 | KS42: 138 | KT42: 12 | KU42: 218 | KV42: 750 | KW42: 1,215 | KX42: 1,163 | KY42: 827 | KZ42: 734 | LA42: 414 | LB42: 18 | LC42: 44 | LD42: 555 | LE42: 383 | LF42: 553 | LG42: 614 | LH42: 1,060 | LI42: 800 | LJ42: 978 | LK42: 681 | LL42: 977 | LM42: 652 | LN42: 300 | LO42: 8 | LP42: 570 | LQ42: 434 | LR42: 605 | LS42: 860 | LT42: 877 | LU42: 595 | LV42: 732 | LW42: 575 | LX42: 676 | LY42: 444 | LZ42: 112 | MA42: 0 | MB42: 685 | MC42: 412 | MD42: 411 | ME42: 399 | MF42: 472 | MG42: 755 | MH42: 791 | MI42: 633 | MJ42: 981 | MK42: 452 | ML42: 28
